BIOGUIDE_ID,OFFICE,QUARTER,CATEGORY,DATE,PAYEE,START DATE,END DATE,PURPOSE,AMOUNT,YEAR,TRANSCODE,TRANSCODELONG,RECORDID,RECIP (orig.)
,OFFICE OF THE SPEAKER,2015Q2,PERSONNEL BENEFITS,04-15,HON JOHN A BOEHNER,04/03/15,05/02/15,OFFICIAL EXPENSES FOR LEADERS,"2,083.33",2015,AP,Accounts payable,00785323,HON JOHN A BOEHNER
,OFFICE OF THE SPEAKER,2015Q2,PERSONNEL BENEFITS,05-14,HON JOHN A BOEHNER,05/03/15,06/02/15,OFFICIAL EXPENSES FOR LEADERS,"2,083.33",2015,AP,Accounts payable,00791109,HON JOHN A BOEHNER
,OFFICE OF THE SPEAKER,2015Q2,PERSONNEL BENEFITS,06-15,HON JOHN A BOEHNER,06/03/15,07/02/15,OFFICIAL EXPENSES FOR LEADERS,"2,083.33",2015,AP,Accounts payable,00796641,HON JOHN A BOEHNER
,OFFICE OF THE SPEAKER,2015Q2,PERSONNEL COMPENSATION,"","ANDREWS,THOMAS S",04/01/15,06/30/15,SPECIAL ASST TO THE SPEAKER,"15,000.00",2015,"","","","ANDREWS,THOMAS S"
,OFFICE OF THE SPEAKER,2015Q2,PERSONNEL COMPENSATION,"","BAILEY,BRADLEY",04/01/15,06/30/15,ASSIST TO SPEAKER FOR POLICY,"30,000.00",2015,"","","","BAILEY,BRADLEY"
,OFFICE OF THE SPEAKER,2015Q2,PERSONNEL COMPENSATION,"","BECKER,ALEXANDER M",04/01/15,06/30/15,FLOOR ASSISTANT,"11,250.00",2015,"","","","BECKER,ALEXANDER M"
,OFFICE OF THE SPEAKER,2015Q2,PERSONNEL COMPENSATION,"","BENJAMIN, WILLIAM C",04/01/15,06/30/15,DIR OF INFORMATION TECHNOLOGY,"24,500.01",2015,"","","","BENJAMIN, WILLIAM C"
,OFFICE OF THE SPEAKER,2015Q2,PERSONNEL COMPENSATION,"","BLAKE,KRISTENE",04/01/15,06/30/15,DIRECTOR OF SCHDLNG/EXEC ASST,"30,000.00",2015,"","","","BLAKE,KRISTENE"
,OFFICE OF THE SPEAKER,2015Q2,PERSONNEL COMPENSATION,"","BORDEN III, R C",04/01/15,06/30/15,SHARED EMPLOYEE,"41,750.01",2015,"","","","BORDEN III, R C"
,OFFICE OF THE SPEAKER,2015Q2,PERSONNEL COMPENSATION,"","BOYD,KATHRYN E",04/01/15,06/30/15,ASST COMMUNICATIONS DIRECTOR,"24,999.99",2015,"","","","BOYD,KATHRYN E"
,OFFICE OF THE SPEAKER,2015Q2,PERSONNEL COMPENSATION,"","BROWN,MARYAM S",04/01/15,06/30/15,ASST TO SPEAKER FOR POLICY,"42,000.00",2015,"","","","BROWN,MARYAM S"
,OFFICE OF THE SPEAKER,2015Q2,PERSONNEL COMPENSATION,"","CRAVEN, KELLY F",04/01/15,06/30/15,DIRECTOR OF HOUSE OPERATIONS,"43,125.00",2015,"","","","CRAVEN, KELLY F"
,OFFICE OF THE SPEAKER,2015Q2,PERSONNEL COMPENSATION,"","EASBY-SMITH,ANNE S",04/01/15,06/30/15,SPECIAL EVENTS ASSOCIATE,"13,250.01",2015,"","","","EASBY-SMITH,ANNE S"
,OFFICE OF THE SPEAKER,2015Q2,PERSONNEL COMPENSATION,"","ECKARD,NASTASHA",04/01/15,06/30/15,ASSIST TO SPEAKER FOR POLICY,"24,624.99",2015,"","","","ECKARD,NASTASHA"
,OFFICE OF THE SPEAKER,2015Q2,PERSONNEL COMPENSATION,"","EICHHORN, JARED D",04/01/15,06/30/15,FLOOR ASSISTANT,"15,000.00",2015,"","","","EICHHORN, JARED D"
,OFFICE OF THE SPEAKER,2015Q2,PERSONNEL COMPENSATION,"","FRANKS,JESSICA L",04/01/15,06/30/15,STAFF ASSISTANT,"8,750.01",2015,"","","","FRANKS,JESSICA L"
,OFFICE OF THE SPEAKER,2015Q2,PERSONNEL COMPENSATION,"","FRANKS,JESSICA L",03/01/15,05/31/15,STAFF ASSISTANT (OVERTIME),"1,003.29",2015,"","","","FRANKS,JESSICA L"
,OFFICE OF THE SPEAKER,2015Q2,PERSONNEL COMPENSATION,"","FRITZ,CORY M",04/01/15,06/30/15,PRESS SECRETARY,"30,000.00",2015,"","","","FRITZ,CORY M"
,OFFICE OF THE SPEAKER,2015Q2,PERSONNEL COMPENSATION,"","GILLESPIE,MAURA M",04/01/15,06/30/15,PRESS ADVISOR,"16,250.01",2015,"","","","GILLESPIE,MAURA M"
,OFFICE OF THE SPEAKER,2015Q2,PERSONNEL COMPENSATION,"","GOLDOUST,CARAH S",05/29/15,06/30/15,STAFF ASSISTANT,"3,111.11",2015,"","","","GOLDOUST,CARAH S"
,OFFICE OF THE SPEAKER,2015Q2,PERSONNEL COMPENSATION,"","GREEN, JO-MARIE S",04/01/15,06/30/15,GEN COUNSEL/CHIEF OF LEG OPS,"43,125.00",2015,"","","","GREEN, JO-MARIE S"
,OFFICE OF THE SPEAKER,2015Q2,PERSONNEL COMPENSATION,"","GREENE,WILLIAM P",04/01/15,06/30/15,DIRECTOR-OUTREACH,"36,249.99",2015,"","","","GREENE,WILLIAM P"
,OFFICE OF THE SPEAKER,2015Q2,PERSONNEL COMPENSATION,"","GRIEVE,ALEXANDER G",04/01/15,06/30/15,STAFF ASSISTANT,"8,750.01",2015,"","","","GRIEVE,ALEXANDER G"
,OFFICE OF THE SPEAKER,2015Q2,PERSONNEL COMPENSATION,"","GRIEVE,ALEXANDER G",03/01/15,05/31/15,STAFF ASSISTANT (OVERTIME),"1,205.21",2015,"","","","GRIEVE,ALEXANDER G"
,OFFICE OF THE SPEAKER,2015Q2,PERSONNEL COMPENSATION,"","HALEY, KATHERINE C",04/01/15,06/30/15,ASST TO SPEAKER FOR POLICY,"27,500.01",2015,"","","","HALEY, KATHERINE C"
,OFFICE OF THE SPEAKER,2015Q2,PERSONNEL COMPENSATION,"","HARROUN, TIMOTHY J",04/01/15,06/30/15,MANAGER REPUBLICAN CLOAKROOM,"33,287.49",2015,"","","","HARROUN, TIMOTHY J"
,OFFICE OF THE SPEAKER,2015Q2,PERSONNEL COMPENSATION,"","HENRIQUEZ,RAUL E",04/01/15,05/01/15,STAFF ASSISTANT,"3,875.00",2015,"","","","HENRIQUEZ,RAUL E"
,OFFICE OF THE SPEAKER,2015Q2,PERSONNEL COMPENSATION,"","HENRIQUEZ,RAUL E",03/01/15,04/30/15,STAFF ASSISTANT (OVERTIME),584.12,2015,"","","","HENRIQUEZ,RAUL E"
,OFFICE OF THE SPEAKER,2015Q2,PERSONNEL COMPENSATION,"","HERRLE, CYNTHIA A",04/01/15,06/30/15,ASST TO THE SPEAKER FOR POLICY,"42,000.00",2015,"","","","HERRLE, CYNTHIA A"
,OFFICE OF THE SPEAKER,2015Q2,PERSONNEL COMPENSATION,"","HUSTON,JOHNATHON B",04/01/15,06/30/15,SHARED EMPLOYEE,"8,050.00",2015,"","","","HUSTON,JOHNATHON B"
,OFFICE OF THE SPEAKER,2015Q2,PERSONNEL COMPENSATION,"","IVANCIC,CHARLOTTE S",04/01/15,06/30/15,ASSIST TO SPEAKER FOR POLICY,"42,000.00",2015,"","","","IVANCIC,CHARLOTTE S"
,OFFICE OF THE SPEAKER,2015Q2,PERSONNEL COMPENSATION,"","KITTLE,ALLIE M",04/01/15,06/30/15,SHARED EMPLOYEE,"6,125.01",2015,"","","","KITTLE,ALLIE M"
,OFFICE OF THE SPEAKER,2015Q2,PERSONNEL COMPENSATION,"","KOLEGO, TREVOR W",04/01/15,06/30/15,DIR OF MEMBER SERVICES,"42,000.00",2015,"","","","KOLEGO, TREVOR W"
,OFFICE OF THE SPEAKER,2015Q2,PERSONNEL COMPENSATION,"","LAMPERT,JUSTIN",04/01/15,06/30/15,RESEARCH ASSISTANT,"11,250.00",2015,"","","","LAMPERT,JUSTIN"
,OFFICE OF THE SPEAKER,2015Q2,PERSONNEL COMPENSATION,"","LEOPOLD,PATRICK R",04/01/15,06/30/15,SHARED EMPLOYEE,"24,999.99",2015,"","","","LEOPOLD,PATRICK R"
,OFFICE OF THE SPEAKER,2015Q2,PERSONNEL COMPENSATION,"","LOHMEYER,SONJA M",04/01/15,06/30/15,DIRECTOR OF PUBLIC LIAISON,"37,500.00",2015,"","","","LOHMEYER,SONJA M"
,OFFICE OF THE SPEAKER,2015Q2,PERSONNEL COMPENSATION,"","LOZUPONE, AMY S",04/01/15,06/30/15,DIRECTOR OF ADMIN OPERATIONS,"43,125.00",2015,"","","","LOZUPONE, AMY S"
,OFFICE OF THE SPEAKER,2015Q2,PERSONNEL COMPENSATION,"","MACDONALD, BRIAN C",04/01/15,06/30/15,SHARED EMPLOYEE,"24,333.33",2015,"","","","MACDONALD, BRIAN C"
,OFFICE OF THE SPEAKER,2015Q2,PERSONNEL COMPENSATION,"","MARROLETTI,CHRISTOPHER V",04/01/15,06/30/15,STAFF ASSISTANT,"8,333.34",2015,"","","","MARROLETTI,CHRISTOPHER V"
,OFFICE OF THE SPEAKER,2015Q2,PERSONNEL COMPENSATION,"","MARROLETTI,CHRISTOPHER V",03/01/15,05/31/15,STAFF ASSISTANT (OVERTIME),784.61,2015,"","","","MARROLETTI,CHRISTOPHER V"
,OFFICE OF THE SPEAKER,2015Q2,PERSONNEL COMPENSATION,"","MILAM, LAURA M",04/01/15,06/30/15,DEPUTY SCHEDULER,"15,000.00",2015,"","","","MILAM, LAURA M"
,OFFICE OF THE SPEAKER,2015Q2,PERSONNEL COMPENSATION,"","MINKLER,ANN W",04/01/15,06/30/15,FLOOR ASSISTANT,"12,500.01",2015,"","","","MINKLER,ANN W"
,OFFICE OF THE SPEAKER,2015Q2,PERSONNEL COMPENSATION,"","MOORE,DYLAN M",04/01/15,06/30/15,STAFF ASSISTANT,"8,750.01",2015,"","","","MOORE,DYLAN M"
,OFFICE OF THE SPEAKER,2015Q2,PERSONNEL COMPENSATION,"","MOORE,DYLAN M",03/01/15,05/31/15,STAFF ASSISTANT (OVERTIME),971.74,2015,"","","","MOORE,DYLAN M"
,OFFICE OF THE SPEAKER,2015Q2,PERSONNEL COMPENSATION,"","PALISI,ANNIE",04/01/15,06/30/15,DEPUTY DIRECTOR OF MEMBER SVCS,"38,750.01",2015,"","","","PALISI,ANNIE"
,OFFICE OF THE SPEAKER,2015Q2,PERSONNEL COMPENSATION,"","PIETKIEWICZ,ANNE K",04/01/15,05/17/15,STAFF ASSISTANT,"4,569.45",2015,"","","","PIETKIEWICZ,ANNE K"
,OFFICE OF THE SPEAKER,2015Q2,PERSONNEL COMPENSATION,"","PIETKIEWICZ,ANNE K",03/01/15,04/30/15,STAFF ASSISTANT (OVERTIME),744.58,2015,"","","","PIETKIEWICZ,ANNE K"
,OFFICE OF THE SPEAKER,2015Q2,PERSONNEL COMPENSATION,"","PIETKIEWICZ,ANNE K",05/01/15,05/17/15,STAFF ASSISTANT (OTHER COMPENSATION),"1,069.44",2015,"","","","PIETKIEWICZ,ANNE K"
,OFFICE OF THE SPEAKER,2015Q2,PERSONNEL COMPENSATION,"","RATCLIFFE,RAMSEY E",04/01/15,06/30/15,SPECIAL EVENTS ASSOCIATE,"12,500.01",2015,"","","","RATCLIFFE,RAMSEY E"
,OFFICE OF THE SPEAKER,2015Q2,PERSONNEL COMPENSATION,"","REED, HEATHER E",04/01/15,06/30/15,DEPUTY PRESS SECRETARY,"16,250.01",2015,"","","","REED, HEATHER E"
,OFFICE OF THE SPEAKER,2015Q2,PERSONNEL COMPENSATION,"","RENZ, BRANDON",04/01/15,06/30/15,SHARED EMPLOYEE,"24,999.99",2015,"","","","RENZ, BRANDON"
,OFFICE OF THE SPEAKER,2015Q2,PERSONNEL COMPENSATION,"","RICCI,MICHAEL",04/01/15,06/30/15,DEPUTY COMMUNICATIONS DIRECTOR,"38,750.01",2015,"","","","RICCI,MICHAEL"
,OFFICE OF THE SPEAKER,2015Q2,PERSONNEL COMPENSATION,"","ROBINSON,GREGORY J",04/01/15,06/30/15,ASSOCIATE COUNSEL,"12,999.99",2015,"","","","ROBINSON,GREGORY J"
,OFFICE OF THE SPEAKER,2015Q2,PERSONNEL COMPENSATION,"","SAGER,MICHAEL J",04/01/15,06/30/15,SYSTEMS ADMINISTRATOR,"21,249.99",2015,"","","","SAGER,MICHAEL J"
,OFFICE OF THE SPEAKER,2015Q2,PERSONNEL COMPENSATION,"","SMITH, CALEB J",04/01/15,06/30/15,DIGITAL COMMUNICATIONS DIRECTO,"24,999.99",2015,"","","","SMITH, CALEB J"
,OFFICE OF THE SPEAKER,2015Q2,PERSONNEL COMPENSATION,"","SMITH, KEVIN",04/01/15,06/30/15,DIRECTOR OF COMMUNICATIONS,"43,125.00",2015,"","","","SMITH, KEVIN"
,OFFICE OF THE SPEAKER,2015Q2,PERSONNEL COMPENSATION,"","SOMMERS, MICHAEL J",04/01/15,06/30/15,CHIEF OF STAFF,"43,125.00",2015,"","","","SOMMERS, MICHAEL J"
,OFFICE OF THE SPEAKER,2015Q2,PERSONNEL COMPENSATION,"","STEEL, MICHAEL",04/01/15,06/01/15,PRESS SECRETARY,"27,111.10",2015,"","","","STEEL, MICHAEL"
,OFFICE OF THE SPEAKER,2015Q2,PERSONNEL COMPENSATION,"","STEEL, MICHAEL",06/01/15,06/01/15,PRESS SECRETARY (OTHER COMPENSATION),"11,555.56",2015,"","","","STEEL, MICHAEL"
,OFFICE OF THE SPEAKER,2015Q2,PERSONNEL COMPENSATION,"","STEWART, DAVID B",04/01/15,06/30/15,POLICY DIRECTOR (STAT),"43,125.00",2015,"","","","STEWART, DAVID B"
,OFFICE OF THE SPEAKER,2015Q2,PERSONNEL COMPENSATION,"","STEWART, JENNIFER M",04/01/15,06/30/15,ASST TO SPEAKER FOR POLICY,"30,000.00",2015,"","","","STEWART, JENNIFER M"
,OFFICE OF THE SPEAKER,2015Q2,PERSONNEL COMPENSATION,"","STRUNK, LYDIA",04/01/15,06/30/15,DEPUTY FLOOR DIRECTOR,"24,999.99",2015,"","","","STRUNK, LYDIA"
,OFFICE OF THE SPEAKER,2015Q2,PERSONNEL COMPENSATION,"","SWINEHART,SARAH V",04/01/15,06/30/15,DIRECTOR OF MEDIA AFFAIRS,"23,750.01",2015,"","","","SWINEHART,SARAH V"
,OFFICE OF THE SPEAKER,2015Q2,PERSONNEL COMPENSATION,"","TALLENT,REBECCA A",04/01/15,06/30/15,ASST TO SPEAKER FOR POLICY,"42,000.00",2015,"","","","TALLENT,REBECCA A"
,OFFICE OF THE SPEAKER,2015Q2,PERSONNEL COMPENSATION,"","THORSEN, ANNE B",04/01/15,06/30/15,FLOOR DIRECTOR,"43,125.00",2015,"","","","THORSEN, ANNE B"
,OFFICE OF THE SPEAKER,2015Q2,PERSONNEL COMPENSATION,"","WHITE, JERRY L",04/01/15,06/30/15,SHARED EMPLOYEE,"20,000.01",2015,"","","","WHITE, JERRY L"
,OFFICE OF THE SPEAKER,2015Q2,PERSONNEL COMPENSATION,"","WOLKING,MATTHEW D",04/01/15,06/30/15,COMMUNICATIONS ADVISOR,"24,375.00",2015,"","","","WOLKING,MATTHEW D"
,OFFICE OF THE SPEAKER,2015Q2,PERSONNEL COMPENSATION,"","ZENTMEYER,APRIL E",03/30/15,06/30/15,PROTOCOL & SPECIAL PROJECTS AD,"20,794.44",2015,"","","","ZENTMEYER,APRIL E"
,OFFICE OF THE SPEAKER,2015Q2,PERSONNEL COMPENSATION,"","ZULKOSKY,ERIC T",04/01/15,06/30/15,SHARED EMPLOYEE,"24,999.99",2015,"","","","ZULKOSKY,ERIC T"
,OFFICE OF THE SPEAKER,2015Q2,TRAVEL,04-13,"SOMMERS,MICHAEL",03/28/15,03/28/15,TRAVEL SUBSISTENCE,239.60,2015,AP,Accounts payable,E0267280,"SOMMERS,MICHAEL"
,OFFICE OF THE SPEAKER,2015Q2,TRAVEL,05-08,"MARROLETTI, CHRISTOPHER V",04/30/15,04/30/15,TAXI/PARKING/TOLLS,18.03,2015,AP,Accounts payable,E0276532,"MARROLETTI, CHRISTOPHER V"
,OFFICE OF THE SPEAKER,2015Q2,TRAVEL,05-26,"SOMMERS,MICHAEL",10/23/14,03/13/15,TAXI/PARKING/TOLLS,60.25,2015,AP,Accounts payable,E0282661,"SOMMERS,MICHAEL"
,OFFICE OF THE SPEAKER,2015Q2,TRAVEL,06-08,"GREENE,WILLIAM P",01/07/15,06/03/15,TAXI/PARKING/TOLLS,260.00,2015,AP,Accounts payable,E0287035,"GREENE,WILLIAM P"
,OFFICE OF THE SPEAKER,2015Q2,TRAVEL,06-12,"ANDREWS,THOMAS S",05/28/15,06/08/15,TRAVEL SUBSISTENCE,"1,064.32",2015,AP,Accounts payable,E0289587,"ANDREWS,THOMAS S"
,OFFICE OF THE SPEAKER,2015Q2,TRAVEL,06-17,"SWINEHART,SARAH V",05/27/15,06/08/15,TRAVEL SUBSISTENCE,648.42,2015,AP,Accounts payable,E0291210,"SWINEHART,SARAH V"
,OFFICE OF THE SPEAKER,2015Q2,TRAVEL,06-25,"BAILEY,BRADLEY",02/24/15,06/17/15,TAXI/PARKING/TOLLS,149.08,2015,AP,Accounts payable,E0293727,"BAILEY,BRADLEY"
,OFFICE OF THE SPEAKER,2015Q2,"RENT, COMMUNICATION, UTILITIES",04-17,CITI PCARD-SXM SIRIUSXM.COM/ACCT,03/01/15,03/28/15,UTILITIES,259.56,2015,AP,Accounts payable,00789547,CITI PCARD-SXM SIRIUSXM.COM/ACCT
,OFFICE OF THE SPEAKER,2015Q2,"RENT, COMMUNICATION, UTILITIES",05-19,CITI PCARD-SXM SIRIUSXM.COM/ACCT,03/29/15,04/28/15,UTILITIES,137.68,2015,AP,Accounts payable,00795289,CITI PCARD-SXM SIRIUSXM.COM/ACCT
,OFFICE OF THE SPEAKER,2015Q2,"RENT, COMMUNICATION, UTILITIES",06-03,CINCINNATI BELL,05/20/15,06/19/15,TELECOMSRV/EQ/TOLL CHARGE,99.36,2015,AP,Accounts payable,E0285756,CINCINNATI BELL
,OFFICE OF THE SPEAKER,2015Q2,PRINTING AND REPRODUCTION,04-27,"",04/01/15,04/30/15,PHOTOGRAPHIC (TRANSFER),"1,434.70",2015,GL,General ledger,PIX0048574,""
,OFFICE OF THE SPEAKER,2015Q2,PRINTING AND REPRODUCTION,05-19,CITI PCARD-FACEBOOK,03/29/15,04/28/15,ADVERTISEMENTS,475.00,2015,AP,Accounts payable,00795289,CITI PCARD-FACEBOOK
,OFFICE OF THE SPEAKER,2015Q2,PRINTING AND REPRODUCTION,05-19,ACCURATE WORD LLC,05/15/15,05/15/15,PRINTING & REPRODUCTION,29.95,2015,AP,Accounts payable,E0281187,ACCURATE WORD LLC
,OFFICE OF THE SPEAKER,2015Q2,PRINTING AND REPRODUCTION,05-22,"",05/01/15,05/31/15,PHOTOGRAPHIC (TRANSFER),492.90,2015,GL,General ledger,PIX0049211,""
,OFFICE OF THE SPEAKER,2015Q2,PRINTING AND REPRODUCTION,06-12,ACCURATE WORD LLC,06/08/15,06/08/15,PRINTING & REPRODUCTION,29.95,2015,AP,Accounts payable,E0289579,ACCURATE WORD LLC
,OFFICE OF THE SPEAKER,2015Q2,PRINTING AND REPRODUCTION,06-24,"",06/01/15,06/30/15,PHOTOGRAPHIC (TRANSFER),433.40,2015,GL,General ledger,PIX0050069,""
,OFFICE OF THE SPEAKER,2015Q2,PRINTING AND REPRODUCTION,06-29,GO BIG MEDIA INC,06/23/15,06/23/15,PRINTING & REPRODUCTION,"4,000.00",2015,AP,Accounts payable,E0293728,GO BIG MEDIA INC
,OFFICE OF THE SPEAKER,2015Q2,OTHER SERVICES,04-07,"",03/26/15,03/26/15,REPRESENTATIONAL EXPENSES,155.10,2015,GL,General ledger,GFT0047962,""
,OFFICE OF THE SPEAKER,2015Q2,OTHER SERVICES,04-17,CITI PCARD-CAPTL VISITOR CTR - GI,03/01/15,03/28/15,REPRESENTATIONAL EXPENSES,99.75,2015,AP,Accounts payable,00789547,CITI PCARD-CAPTL VISITOR CTR - GI
,OFFICE OF THE SPEAKER,2015Q2,OTHER SERVICES,05-26,CAPITAL GIFTS AND AWARDS INC,04/30/15,04/30/15,REPRESENTATIONAL EXPENSES,"3,030.35",2015,AP,Accounts payable,E0282649,CAPITAL GIFTS AND AWARDS INC
,OFFICE OF THE SPEAKER,2015Q2,SUPPLIES AND MATERIALS,04-02,AMARYLLIS INC,03/24/15,03/24/15,HABITATION EXPENSE,"5,075.00",2015,AP,Accounts payable,E0263966,AMARYLLIS INC
,OFFICE OF THE SPEAKER,2015Q2,SUPPLIES AND MATERIALS,04-02,AMARYLLIS INC,03/25/15,03/25/15,FOOD & BEVERAGE,410.00,2015,AP,Accounts payable,E0263985,AMARYLLIS INC
,OFFICE OF THE SPEAKER,2015Q2,SUPPLIES AND MATERIALS,04-02,COCA-COLA REFRESHMENTS USA INC,03/24/15,03/24/15,FOOD & BEVERAGE,219.12,2015,AP,Accounts payable,E0263998,COCA-COLA REFRESHMENTS USA INC
,OFFICE OF THE SPEAKER,2015Q2,SUPPLIES AND MATERIALS,04-02,DESIGN CUISINE,03/03/15,03/03/15,FOOD & BEVERAGE,254.00,2015,AP,Accounts payable,E0264067,DESIGN CUISINE
,OFFICE OF THE SPEAKER,2015Q2,SUPPLIES AND MATERIALS,04-02,DESIGN CUISINE,03/03/15,03/03/15,FOOD & BEVERAGE,"8,185.17",2015,AP,Accounts payable,E0264075,DESIGN CUISINE
,OFFICE OF THE SPEAKER,2015Q2,SUPPLIES AND MATERIALS,04-06,DAIOHS FIRST CHOICE COFFEE SERVICES,03/09/15,03/26/15,FOOD & BEVERAGE,"2,276.76",2015,AP,Accounts payable,E0264851,DAIOHS FIRST CHOICE COFFEE SERVICES
,OFFICE OF THE SPEAKER,2015Q2,SUPPLIES AND MATERIALS,04-14,DESIGN CUISINE,03/25/15,03/25/15,FOOD & BEVERAGE,"5,722.02",2015,AP,Accounts payable,E0267785,DESIGN CUISINE
,OFFICE OF THE SPEAKER,2015Q2,SUPPLIES AND MATERIALS,04-17,CITI PCARD-ARLINGTON FLORIST,03/01/15,03/28/15,HABITATION EXPENSE,275.00,2015,AP,Accounts payable,00789547,CITI PCARD-ARLINGTON FLORIST
,OFFICE OF THE SPEAKER,2015Q2,SUPPLIES AND MATERIALS,04-17,CITI PCARD-ARTISTIC FRAMING,03/01/15,03/28/15,HABITATION EXPENSE,127.20,2015,AP,Accounts payable,00789547,CITI PCARD-ARTISTIC FRAMING
,OFFICE OF THE SPEAKER,2015Q2,SUPPLIES AND MATERIALS,04-17,CITI PCARD-CAPITOL HOST,03/01/15,03/28/15,FOOD & BEVERAGE,105.00,2015,AP,Accounts payable,00789547,CITI PCARD-CAPITOL HOST
,OFFICE OF THE SPEAKER,2015Q2,SUPPLIES AND MATERIALS,04-17,CITI PCARD-CORNER BAKERY,03/01/15,03/28/15,FOOD & BEVERAGE,751.50,2015,AP,Accounts payable,00789547,CITI PCARD-CORNER BAKERY
,OFFICE OF THE SPEAKER,2015Q2,SUPPLIES AND MATERIALS,04-17,CITI PCARD-D J WALL-ST-JOURNAL,03/01/15,03/28/15,PUBLICATIONS/REFERENCE MAT'L,317.12,2015,AP,Accounts payable,00789547,CITI PCARD-D J WALL-ST-JOURNAL
,OFFICE OF THE SPEAKER,2015Q2,SUPPLIES AND MATERIALS,04-17,CITI PCARD-FRAME OF MINE,03/01/15,03/28/15,HABITATION EXPENSE,217.68,2015,AP,Accounts payable,00789547,CITI PCARD-FRAME OF MINE
,OFFICE OF THE SPEAKER,2015Q2,SUPPLIES AND MATERIALS,04-17,CITI PCARD-MATCHBOX CAPITOL HILL,03/01/15,03/28/15,FOOD & BEVERAGE,780.20,2015,AP,Accounts payable,00789547,CITI PCARD-MATCHBOX CAPITOL HILL
,OFFICE OF THE SPEAKER,2015Q2,SUPPLIES AND MATERIALS,04-17,CITI PCARD-SHOPRITE OFWHITEOAK S,03/01/15,03/28/15,FOOD & BEVERAGE,13.58,2015,AP,Accounts payable,00789547,CITI PCARD-SHOPRITE OFWHITEOAK S
,OFFICE OF THE SPEAKER,2015Q2,SUPPLIES AND MATERIALS,04-17,CITI PCARD-WHOLEFDS PST,03/01/15,03/28/15,FOOD & BEVERAGE,369.37,2015,AP,Accounts payable,00789547,CITI PCARD-WHOLEFDS PST
,OFFICE OF THE SPEAKER,2015Q2,SUPPLIES AND MATERIALS,04-27,DESIGN CUISINE,03/24/15,03/24/15,FOOD & BEVERAGE,"16,389.52",2015,AP,Accounts payable,E0272438,DESIGN CUISINE
,OFFICE OF THE SPEAKER,2015Q2,SUPPLIES AND MATERIALS,05-07,COCA-COLA REFRESHMENTS USA INC,04/29/15,04/29/15,FOOD & BEVERAGE,429.60,2015,AP,Accounts payable,E0276387,COCA-COLA REFRESHMENTS USA INC
,OFFICE OF THE SPEAKER,2015Q2,SUPPLIES AND MATERIALS,05-07,"ANDREWS,THOMAS S",05/01/15,05/01/15,FOOD & BEVERAGE,207.64,2015,AP,Accounts payable,E0276409,"ANDREWS,THOMAS S"
,OFFICE OF THE SPEAKER,2015Q2,SUPPLIES AND MATERIALS,05-08,"WHITE, JERRY L",04/29/15,04/29/15,FOOD & BEVERAGE,152.61,2015,AP,Accounts payable,E0276361,"WHITE, JERRY L"
,OFFICE OF THE SPEAKER,2015Q2,SUPPLIES AND MATERIALS,05-14,DESIGN CUISINE,04/29/15,04/29/15,FOOD & BEVERAGE,"1,440.00",2015,AP,Accounts payable,E0279002,DESIGN CUISINE
,OFFICE OF THE SPEAKER,2015Q2,SUPPLIES AND MATERIALS,05-19,CITI PCARD-CAFE RIO MEXICAN GRILL,03/29/15,04/28/15,FOOD & BEVERAGE,480.69,2015,AP,Accounts payable,00795289,CITI PCARD-CAFE RIO MEXICAN GRILL
,OFFICE OF THE SPEAKER,2015Q2,SUPPLIES AND MATERIALS,05-19,CITI PCARD-CAPITOL HOST,03/29/15,04/28/15,FOOD & BEVERAGE,285.00,2015,AP,Accounts payable,00795289,CITI PCARD-CAPITOL HOST
,OFFICE OF THE SPEAKER,2015Q2,SUPPLIES AND MATERIALS,05-19,CITI PCARD-CORNER BAKERY,03/29/15,04/28/15,FOOD & BEVERAGE,"1,510.00",2015,AP,Accounts payable,00795289,CITI PCARD-CORNER BAKERY
,OFFICE OF THE SPEAKER,2015Q2,SUPPLIES AND MATERIALS,05-19,CITI PCARD-CVS/PHARMACY,03/29/15,04/28/15,FOOD & BEVERAGE,30.72,2015,AP,Accounts payable,00795289,CITI PCARD-CVS/PHARMACY
,OFFICE OF THE SPEAKER,2015Q2,SUPPLIES AND MATERIALS,05-19,CITI PCARD-HILL COUNTRY BARBECUE,03/29/15,04/28/15,FOOD & BEVERAGE,632.00,2015,AP,Accounts payable,00795289,CITI PCARD-HILL COUNTRY BARBECUE
,OFFICE OF THE SPEAKER,2015Q2,SUPPLIES AND MATERIALS,05-19,CITI PCARD-SOMETHING SWEET,03/29/15,04/28/15,FOOD & BEVERAGE,405.36,2015,AP,Accounts payable,00795289,CITI PCARD-SOMETHING SWEET
,OFFICE OF THE SPEAKER,2015Q2,SUPPLIES AND MATERIALS,05-19,CITI PCARD-WHO REPRESENTS.COM,03/29/15,04/28/15,PUBLICATIONS/REFERENCE MAT'L,26.97,2015,AP,Accounts payable,00795289,CITI PCARD-WHO REPRESENTS.COM
,OFFICE OF THE SPEAKER,2015Q2,SUPPLIES AND MATERIALS,05-19,CITI PCARD-WHOLEFDS,03/29/15,04/28/15,FOOD & BEVERAGE,480.36,2015,AP,Accounts payable,00795289,CITI PCARD-WHOLEFDS
,OFFICE OF THE SPEAKER,2015Q2,SUPPLIES AND MATERIALS,05-20,"LOZUPONE, AMY S",05/18/15,05/18/15,FOOD & BEVERAGE,28.95,2015,AP,Accounts payable,E0281182,"LOZUPONE, AMY S"
,OFFICE OF THE SPEAKER,2015Q2,SUPPLIES AND MATERIALS,05-20,"WHITE, JERRY L",05/13/15,05/13/15,FOOD & BEVERAGE,173.97,2015,AP,Accounts payable,E0281192,"WHITE, JERRY L"
,OFFICE OF THE SPEAKER,2015Q2,SUPPLIES AND MATERIALS,06-03,AMARYLLIS INC,05/24/15,05/24/15,HABITATION EXPENSE,"3,193.00",2015,AP,Accounts payable,E0285745,AMARYLLIS INC
,OFFICE OF THE SPEAKER,2015Q2,SUPPLIES AND MATERIALS,06-05,FIRST CHOICE COFFEE SERVICES,04/02/15,05/21/15,FOOD & BEVERAGE,"5,956.43",2015,AP,Accounts payable,E0286387,FIRST CHOICE COFFEE SERVICES
,OFFICE OF THE SPEAKER,2015Q2,SUPPLIES AND MATERIALS,06-18,CITI PCARD-CAFE RIO MEXICAN GRILL,04/29/15,05/28/15,FOOD & BEVERAGE,437.31,2015,AP,Accounts payable,00800857,CITI PCARD-CAFE RIO MEXICAN GRILL
,OFFICE OF THE SPEAKER,2015Q2,SUPPLIES AND MATERIALS,06-18,CITI PCARD-CAPITOL HOST (RIDGEWEL,04/29/15,05/28/15,FOOD & BEVERAGE,105.00,2015,AP,Accounts payable,00800857,CITI PCARD-CAPITOL HOST (RIDGEWEL
,OFFICE OF THE SPEAKER,2015Q2,SUPPLIES AND MATERIALS,06-18,CITI PCARD-CORNER BAKERY,04/29/15,05/28/15,FOOD & BEVERAGE,795.50,2015,AP,Accounts payable,00800857,CITI PCARD-CORNER BAKERY
,OFFICE OF THE SPEAKER,2015Q2,SUPPLIES AND MATERIALS,06-18,CITI PCARD-CVS/PHARMACY,04/29/15,05/28/15,FOOD & BEVERAGE,15.46,2015,AP,Accounts payable,00800857,CITI PCARD-CVS/PHARMACY
,OFFICE OF THE SPEAKER,2015Q2,SUPPLIES AND MATERIALS,06-18,CITI PCARD-IMDB,04/29/15,05/28/15,PUBLICATIONS/REFERENCE MAT'L,19.99,2015,AP,Accounts payable,00800857,CITI PCARD-IMDB
,OFFICE OF THE SPEAKER,2015Q2,SUPPLIES AND MATERIALS,06-18,CITI PCARD-PACER,04/29/15,05/28/15,PUBLICATIONS/REFERENCE MAT'L,228.50,2015,AP,Accounts payable,00800857,CITI PCARD-PACER
,OFFICE OF THE SPEAKER,2015Q2,SUPPLIES AND MATERIALS,06-18,CITI PCARD-POTBELLY,04/29/15,05/28/15,FOOD & BEVERAGE,417.65,2015,AP,Accounts payable,00800857,CITI PCARD-POTBELLY
,OFFICE OF THE SPEAKER,2015Q2,SUPPLIES AND MATERIALS,06-18,CITI PCARD-SAFEWAY STORE,04/29/15,05/28/15,FOOD & BEVERAGE,11.98,2015,AP,Accounts payable,00800857,CITI PCARD-SAFEWAY STORE
,OFFICE OF THE SPEAKER,2015Q2,SUPPLIES AND MATERIALS,06-18,CITI PCARD-SURFSIDE,04/29/15,05/28/15,FOOD & BEVERAGE,517.35,2015,AP,Accounts payable,00800857,CITI PCARD-SURFSIDE
,OFFICE OF THE SPEAKER,2015Q2,SUPPLIES AND MATERIALS,06-18,CITI PCARD-TAYLOR GOURMET,04/29/15,05/28/15,FOOD & BEVERAGE,342.67,2015,AP,Accounts payable,00800857,CITI PCARD-TAYLOR GOURMET
,OFFICE OF THE SPEAKER,2015Q2,SUPPLIES AND MATERIALS,06-18,CITI PCARD-WHO REPRESENTS.COM,04/29/15,05/28/15,PUBLICATIONS/REFERENCE MAT'L,26.97,2015,AP,Accounts payable,00800857,CITI PCARD-WHO REPRESENTS.COM
,OFFICE OF THE SPEAKER,2015Q2,SUPPLIES AND MATERIALS,06-18,"KITTLE, ALLIE M",06/17/15,06/17/15,FOOD & BEVERAGE,152.28,2015,AP,Accounts payable,E0291397,"KITTLE, ALLIE M"
,OFFICE OF THE SPEAKER,2015Q2,SUPPLIES AND MATERIALS,06-25,DESIGN CUISINE,05/24/15,05/24/15,FOOD & BEVERAGE,"16,448.11",2015,AP,Accounts payable,E0293729,DESIGN CUISINE
,OFFICE OF THE SPEAKER,2015Q2,TRAVEL,05-20,"LOZUPONE, AMY S",11/20/14,05/18/15,TAXI/PARKING/TOLLS,76.00,2014,AP,Accounts payable,E0281217,"LOZUPONE, AMY S"
,OFFICE OF THE SPEAKER,2015Q2,TRAVEL,06-25,"BAILEY,BRADLEY",09/09/14,09/09/14,TAXI/PARKING/TOLLS,20.00,2014,AP,Accounts payable,E0293727,"BAILEY,BRADLEY"
,OFFICE OF THE MAJORITY LEADER,2015Q2,PERSONNEL COMPENSATION,"","BERRY,TIMOTHY J",04/01/15,06/30/15,CHIEF OF STAFF,"43,125.00",2015,"","","","BERRY,TIMOTHY J"
,OFFICE OF THE MAJORITY LEADER,2015Q2,PERSONNEL COMPENSATION,"","BIEN,CHRISTOPHER A",04/01/15,06/30/15,STAFF ASSISTANT,"7,500.00",2015,"","","","BIEN,CHRISTOPHER A"
,OFFICE OF THE MAJORITY LEADER,2015Q2,PERSONNEL COMPENSATION,"","BORDEN III, R C",04/01/15,06/30/15,DIRECTOR OF OVERSIGHT,750.00,2015,"","","","BORDEN III, R C"
,OFFICE OF THE MAJORITY LEADER,2015Q2,PERSONNEL COMPENSATION,"","BUCHANAN,NATALIE L",04/01/15,06/30/15,DIR OF MEMBER SERVICES,"26,250.00",2015,"","","","BUCHANAN,NATALIE L"
,OFFICE OF THE MAJORITY LEADER,2015Q2,PERSONNEL COMPENSATION,"","BURR,DANIELLE M",04/01/15,06/30/15,DIRECTOR OF EXTERNAL AFFAIRS,"37,500.00",2015,"","","","BURR,DANIELLE M"
,OFFICE OF THE MAJORITY LEADER,2015Q2,PERSONNEL COMPENSATION,"","CAREY,BRITTANY M",04/01/15,06/30/15,EXTERN AFFAIR ASST/ASST TO COS,"12,750.00",2015,"","","","CAREY,BRITTANY M"
,OFFICE OF THE MAJORITY LEADER,2015Q2,PERSONNEL COMPENSATION,"","DIXON, KELLY A",04/01/15,06/30/15,DIR OF LEGISLATIVE OPERATIONS,"28,000.00",2015,"","","","DIXON, KELLY A"
,OFFICE OF THE MAJORITY LEADER,2015Q2,PERSONNEL COMPENSATION,"","DRESSLER,JEFFREY A",04/01/15,06/30/15,SENIOR POLICY ADVISOR,"19,833.33",2015,"","","","DRESSLER,JEFFREY A"
,OFFICE OF THE MAJORITY LEADER,2015Q2,PERSONNEL COMPENSATION,"","GLANCEY,TESSICA M",04/01/15,06/30/15,DIGITAL COORDINATOR,"12,750.00",2015,"","","","GLANCEY,TESSICA M"
,OFFICE OF THE MAJORITY LEADER,2015Q2,PERSONNEL COMPENSATION,"","GOURDIKIAN,ALEXANDRA G",04/01/15,06/30/15,STAFF ASSISTANT,"7,500.00",2015,"","","","GOURDIKIAN,ALEXANDRA G"
,OFFICE OF THE MAJORITY LEADER,2015Q2,PERSONNEL COMPENSATION,"","HENEHAN, EMILY A",04/01/15,06/30/15,SENIOR POLICY ADVISOR,"22,500.00",2015,"","","","HENEHAN, EMILY A"
,OFFICE OF THE MAJORITY LEADER,2015Q2,PERSONNEL COMPENSATION,"","HOWARD,BENJAMIN R",04/01/15,06/30/15,DIRECTOR OF FLOOR OPERATIONS,"21,000.00",2015,"","","","HOWARD,BENJAMIN R"
,OFFICE OF THE MAJORITY LEADER,2015Q2,PERSONNEL COMPENSATION,"","KAREM,ROBERT S",04/01/15,05/03/15,SENIOR POLICY ADVISOR,"11,825.00",2015,"","","","KAREM,ROBERT S"
,OFFICE OF THE MAJORITY LEADER,2015Q2,PERSONNEL COMPENSATION,"","KARR,ELIZABETH B",04/01/15,06/30/15,DEPUTY CHIEF OF STAFF FOR POLI,"42,750.00",2015,"","","","KARR,ELIZABETH B"
,OFFICE OF THE MAJORITY LEADER,2015Q2,PERSONNEL COMPENSATION,"","KLUTTZ,LAWSON T",04/01/15,06/30/15,SPECIAL ASSISTANT,"9,000.00",2015,"","","","KLUTTZ,LAWSON T"
,OFFICE OF THE MAJORITY LEADER,2015Q2,PERSONNEL COMPENSATION,"","LEGANSKI,JOHN G",04/01/15,06/30/15,SHARED EMPLOYEE,"9,500.00",2015,"","","","LEGANSKI,JOHN G"
,OFFICE OF THE MAJORITY LEADER,2015Q2,PERSONNEL COMPENSATION,"","LONG,MICHAEL P",04/01/15,06/30/15,COMMUNICATIONS DIRECTOR,"26,250.00",2015,"","","","LONG,MICHAEL P"
,OFFICE OF THE MAJORITY LEADER,2015Q2,PERSONNEL COMPENSATION,"","MAHAN,ROGER A",04/01/15,06/30/15,POLICY ADVISOR,"32,250.00",2015,"","","","MAHAN,ROGER A"
,OFFICE OF THE MAJORITY LEADER,2015Q2,PERSONNEL COMPENSATION,"","MCCLELLAND, WESLEY R",04/01/15,06/30/15,SENIOR POLICY ADVISOR,"22,500.00",2015,"","","","MCCLELLAND, WESLEY R"
,OFFICE OF THE MAJORITY LEADER,2015Q2,PERSONNEL COMPENSATION,"","MIN, JAMES B",04/01/15,06/30/15,DEPUTY CHIEF OF STAFF/COUNSEL,"19,500.00",2015,"","","","MIN, JAMES B"
,OFFICE OF THE MAJORITY LEADER,2015Q2,PERSONNEL COMPENSATION,"","SPARKS, MATTHEW E",04/01/15,06/30/15,PRESS SECRETARY,"13,500.00",2015,"","","","SPARKS, MATTHEW E"
,OFFICE OF THE MAJORITY LEADER,2015Q2,PERSONNEL COMPENSATION,"","STIPICEVIC, JOHN A",04/01/15,06/30/15,DEP COS FOR FLOOR AND MEM SERV,"40,500.00",2015,"","","","STIPICEVIC, JOHN A"
,OFFICE OF THE MAJORITY LEADER,2015Q2,PERSONNEL COMPENSATION,"","STIPICEVIC, KRISTIN",04/01/15,06/30/15,EXECUTIVE ASSISTANT,"19,500.00",2015,"","","","STIPICEVIC, KRISTIN"
,OFFICE OF THE MAJORITY LEADER,2015Q2,PERSONNEL COMPENSATION,"","TORRES,ALEC C",04/01/15,06/30/15,COMM AIDE AND SPEECHWRITER,"11,250.00",2015,"","","","TORRES,ALEC C"
,OFFICE OF THE MAJORITY LEADER,2015Q2,"RENT, COMMUNICATION, UTILITIES",04-01,FEDERAL EXPRESS CORPORATION,03/20/15,03/20/15,POSTAGE / COURIER / BOX RENTAL,180.27,2015,AP,Accounts payable,00784492,FEDERAL EXPRESS CORPORATION
,OFFICE OF THE MAJORITY LEADER,2015Q2,"RENT, COMMUNICATION, UTILITIES",04-07,FEDERAL EXPRESS CORPORATION,04/03/15,04/03/15,POSTAGE / COURIER / BOX RENTAL,37.00,2015,AP,Accounts payable,00784770,FEDERAL EXPRESS CORPORATION
,OFFICE OF THE MAJORITY LEADER,2015Q2,"RENT, COMMUNICATION, UTILITIES",04-14,FEDERAL EXPRESS CORPORATION,04/10/15,04/10/15,POSTAGE / COURIER / BOX RENTAL,49.51,2015,AP,Accounts payable,00785156,FEDERAL EXPRESS CORPORATION
,OFFICE OF THE MAJORITY LEADER,2015Q2,"RENT, COMMUNICATION, UTILITIES",04-17,CITI PCARD-USPS,03/01/15,03/28/15,POSTAGE / COURIER / BOX RENTAL,101.40,2015,AP,Accounts payable,00789547,CITI PCARD-USPS
,OFFICE OF THE MAJORITY LEADER,2015Q2,"RENT, COMMUNICATION, UTILITIES",04-20,FEDERAL EXPRESS CORPORATION,04/17/15,04/17/15,POSTAGE / COURIER / BOX RENTAL,25.75,2015,AP,Accounts payable,00789549,FEDERAL EXPRESS CORPORATION
,OFFICE OF THE MAJORITY LEADER,2015Q2,"RENT, COMMUNICATION, UTILITIES",04-30,FEDERAL EXPRESS CORPORATION,04/18/15,04/24/15,POSTAGE / COURIER / BOX RENTAL,14.43,2015,AP,Accounts payable,00790055,FEDERAL EXPRESS CORPORATION
,OFFICE OF THE MAJORITY LEADER,2015Q2,"RENT, COMMUNICATION, UTILITIES",05-06,FEDERAL EXPRESS CORPORATION,04/25/15,05/01/15,POSTAGE / COURIER / BOX RENTAL,12.46,2015,AP,Accounts payable,00790555,FEDERAL EXPRESS CORPORATION
,OFFICE OF THE MAJORITY LEADER,2015Q2,"RENT, COMMUNICATION, UTILITIES",05-08,FEDERAL EXPRESS CORPORATION,05/02/15,05/08/15,POSTAGE / COURIER / BOX RENTAL,10.77,2015,AP,Accounts payable,00790713,FEDERAL EXPRESS CORPORATION
,OFFICE OF THE MAJORITY LEADER,2015Q2,"RENT, COMMUNICATION, UTILITIES",05-19,FEDERAL EXPRESS CORPORATION,05/09/15,05/15/15,POSTAGE / COURIER / BOX RENTAL,13.21,2015,AP,Accounts payable,00792796,FEDERAL EXPRESS CORPORATION
,OFFICE OF THE MAJORITY LEADER,2015Q2,"RENT, COMMUNICATION, UTILITIES",05-19,CITI PCARD-USPS,03/29/15,04/28/15,POSTAGE / COURIER / BOX RENTAL,56.70,2015,AP,Accounts payable,00795289,CITI PCARD-USPS
,OFFICE OF THE MAJORITY LEADER,2015Q2,"RENT, COMMUNICATION, UTILITIES",05-26,FEDERAL EXPRESS CORPORATION,05/16/15,05/22/15,POSTAGE / COURIER / BOX RENTAL,8.79,2015,AP,Accounts payable,00795534,FEDERAL EXPRESS CORPORATION
,OFFICE OF THE MAJORITY LEADER,2015Q2,"RENT, COMMUNICATION, UTILITIES",06-03,FEDERAL EXPRESS CORPORATION,05/23/15,05/29/15,POSTAGE / COURIER / BOX RENTAL,15.34,2015,AP,Accounts payable,00795974,FEDERAL EXPRESS CORPORATION
,OFFICE OF THE MAJORITY LEADER,2015Q2,"RENT, COMMUNICATION, UTILITIES",06-10,FEDERAL EXPRESS CORPORATION,05/30/15,06/05/15,POSTAGE / COURIER / BOX RENTAL,11.61,2015,AP,Accounts payable,00796364,FEDERAL EXPRESS CORPORATION
,OFFICE OF THE MAJORITY LEADER,2015Q2,"RENT, COMMUNICATION, UTILITIES",06-18,FEDERAL EXPRESS CORPORATION,06/06/15,06/12/15,POSTAGE / COURIER / BOX RENTAL,36.85,2015,AP,Accounts payable,00800803,FEDERAL EXPRESS CORPORATION
,OFFICE OF THE MAJORITY LEADER,2015Q2,"RENT, COMMUNICATION, UTILITIES",06-18,CITI PCARD-USPS,04/29/15,05/28/15,POSTAGE / COURIER / BOX RENTAL,54.75,2015,AP,Accounts payable,00800857,CITI PCARD-USPS
,OFFICE OF THE MAJORITY LEADER,2015Q2,"RENT, COMMUNICATION, UTILITIES",06-19,FEDERAL EXPRESS CORPORATION,06/13/15,06/19/15,POSTAGE / COURIER / BOX RENTAL,57.98,2015,AP,Accounts payable,00800890,FEDERAL EXPRESS CORPORATION
,OFFICE OF THE MAJORITY LEADER,2015Q2,"RENT, COMMUNICATION, UTILITIES",06-29,FEDERAL EXPRESS CORPORATION,06/20/15,06/26/15,POSTAGE / COURIER / BOX RENTAL,15.41,2015,AP,Accounts payable,00801276,FEDERAL EXPRESS CORPORATION
,OFFICE OF THE MAJORITY LEADER,2015Q2,PRINTING AND REPRODUCTION,04-17,CITI PCARD-GETTY IMAGES,03/01/15,03/28/15,PRINTING & REPRODUCTION,"1,845.00",2015,AP,Accounts payable,00789547,CITI PCARD-GETTY IMAGES
,OFFICE OF THE MAJORITY LEADER,2015Q2,PRINTING AND REPRODUCTION,05-22,"",05/01/15,05/31/15,PHOTOGRAPHIC (TRANSFER),19.30,2015,GL,General ledger,PIX0049211,""
,OFFICE OF THE MAJORITY LEADER,2015Q2,SUPPLIES AND MATERIALS,04-13,BLOOMBERG LP,04/01/15,12/31/15,PUBLICATIONS/REFERENCE MAT'L,"4,650.00",2015,AP,Accounts payable,E0267381,BLOOMBERG LP
,OFFICE OF THE MAJORITY LEADER,2015Q2,SUPPLIES AND MATERIALS,04-13,DEER PARK WATER,02/27/15,03/26/15,WATER,442.99,2015,AP,Accounts payable,E0267395,DEER PARK WATER
,OFFICE OF THE MAJORITY LEADER,2015Q2,SUPPLIES AND MATERIALS,04-13,"MIN, JAMES B",04/07/15,04/07/15,FOOD & BEVERAGE,414.09,2015,AP,Accounts payable,E0267397,"MIN, JAMES B"
,OFFICE OF THE MAJORITY LEADER,2015Q2,SUPPLIES AND MATERIALS,04-17,CITI PCARD-CORNER BAKERY,03/01/15,03/28/15,FOOD & BEVERAGE,819.50,2015,AP,Accounts payable,00789547,CITI PCARD-CORNER BAKERY
,OFFICE OF THE MAJORITY LEADER,2015Q2,SUPPLIES AND MATERIALS,04-17,CITI PCARD-D J WALL-ST-JOURNAL,03/01/15,03/28/15,PUBLICATIONS/REFERENCE MAT'L,26.43,2015,AP,Accounts payable,00789547,CITI PCARD-D J WALL-ST-JOURNAL
,OFFICE OF THE MAJORITY LEADER,2015Q2,SUPPLIES AND MATERIALS,04-17,CITI PCARD-FIREHOOK,03/01/15,03/28/15,FOOD & BEVERAGE,70.05,2015,AP,Accounts payable,00789547,CITI PCARD-FIREHOOK
,OFFICE OF THE MAJORITY LEADER,2015Q2,SUPPLIES AND MATERIALS,04-17,CITI PCARD-LA TIMES SUBSCRIPTION,03/01/15,03/28/15,PUBLICATIONS/REFERENCE MAT'L,15.96,2015,AP,Accounts payable,00789547,CITI PCARD-LA TIMES SUBSCRIPTION
,OFFICE OF THE MAJORITY LEADER,2015Q2,SUPPLIES AND MATERIALS,04-17,CITI PCARD-NEW YORK TIMES DIGITAL,03/01/15,03/28/15,PUBLICATIONS/REFERENCE MAT'L,37.01,2015,AP,Accounts payable,00789547,CITI PCARD-NEW YORK TIMES DIGITAL
,OFFICE OF THE MAJORITY LEADER,2015Q2,SUPPLIES AND MATERIALS,05-06,DEER PARK,02/28/15,02/28/15,WATER,130.74,2015,AP,Accounts payable,00790561,DEER PARK
,OFFICE OF THE MAJORITY LEADER,2015Q2,SUPPLIES AND MATERIALS,05-11,DEER PARK WATER,03/27/15,04/26/15,WATER,353.98,2015,AP,Accounts payable,E0277325,DEER PARK WATER
,OFFICE OF THE MAJORITY LEADER,2015Q2,SUPPLIES AND MATERIALS,05-13,DEER PARK,03/31/15,03/31/15,WATER,172.75,2015,AP,Accounts payable,00790936,DEER PARK
,OFFICE OF THE MAJORITY LEADER,2015Q2,SUPPLIES AND MATERIALS,05-19,CITI PCARD-CAPITOL HOST,03/29/15,04/28/15,FOOD & BEVERAGE,"1,278.28",2015,AP,Accounts payable,00795289,CITI PCARD-CAPITOL HOST
,OFFICE OF THE MAJORITY LEADER,2015Q2,SUPPLIES AND MATERIALS,05-19,CITI PCARD-CORNER BAKERY,03/29/15,04/28/15,FOOD & BEVERAGE,627.84,2015,AP,Accounts payable,00795289,CITI PCARD-CORNER BAKERY
,OFFICE OF THE MAJORITY LEADER,2015Q2,SUPPLIES AND MATERIALS,05-19,CITI PCARD-D J WALL-ST-JOURNAL,03/29/15,04/28/15,PUBLICATIONS/REFERENCE MAT'L,26.43,2015,AP,Accounts payable,00795289,CITI PCARD-D J WALL-ST-JOURNAL
,OFFICE OF THE MAJORITY LEADER,2015Q2,SUPPLIES AND MATERIALS,05-19,CITI PCARD-FIRST CHOICE - JOE RAG,03/29/15,04/28/15,FOOD & BEVERAGE,693.14,2015,AP,Accounts payable,00795289,CITI PCARD-FIRST CHOICE - JOE RAG
,OFFICE OF THE MAJORITY LEADER,2015Q2,SUPPLIES AND MATERIALS,05-19,CITI PCARD-LA TIMES SUBSCRIPTION,03/29/15,04/28/15,PUBLICATIONS/REFERENCE MAT'L,15.96,2015,AP,Accounts payable,00795289,CITI PCARD-LA TIMES SUBSCRIPTION
,OFFICE OF THE MAJORITY LEADER,2015Q2,SUPPLIES AND MATERIALS,05-19,CITI PCARD-NEW YORK TIMES DIGITAL,03/29/15,04/28/15,PUBLICATIONS/REFERENCE MAT'L,37.01,2015,AP,Accounts payable,00795289,CITI PCARD-NEW YORK TIMES DIGITAL
,OFFICE OF THE MAJORITY LEADER,2015Q2,SUPPLIES AND MATERIALS,06-05,"MIN, JAMES B",05/28/15,05/28/15,FOOD & BEVERAGE,613.72,2015,AP,Accounts payable,E0286131,"MIN, JAMES B"
,OFFICE OF THE MAJORITY LEADER,2015Q2,SUPPLIES AND MATERIALS,06-09,DEER PARK WATER,04/27/15,05/26/15,WATER,497.70,2015,AP,Accounts payable,E0287600,DEER PARK WATER
,OFFICE OF THE MAJORITY LEADER,2015Q2,SUPPLIES AND MATERIALS,06-16,DEER PARK,04/30/15,04/30/15,WATER,167.81,2015,AP,Accounts payable,00796612,DEER PARK
,OFFICE OF THE MAJORITY LEADER,2015Q2,SUPPLIES AND MATERIALS,06-18,CITI PCARD-CAPITOL HOST (RIDGEWEL,04/29/15,05/28/15,FOOD & BEVERAGE,25.00,2015,AP,Accounts payable,00800857,CITI PCARD-CAPITOL HOST (RIDGEWEL
,OFFICE OF THE MAJORITY LEADER,2015Q2,SUPPLIES AND MATERIALS,06-18,CITI PCARD-CORNER BAKERY,04/29/15,05/28/15,FOOD & BEVERAGE,882.00,2015,AP,Accounts payable,00800857,CITI PCARD-CORNER BAKERY
,OFFICE OF THE MAJORITY LEADER,2015Q2,SUPPLIES AND MATERIALS,06-18,CITI PCARD-D J WALL-ST-JOURNAL,04/29/15,05/28/15,PUBLICATIONS/REFERENCE MAT'L,26.43,2015,AP,Accounts payable,00800857,CITI PCARD-D J WALL-ST-JOURNAL
,OFFICE OF THE MAJORITY LEADER,2015Q2,SUPPLIES AND MATERIALS,06-18,CITI PCARD-FIRST CHOICE - JOE RAG,04/29/15,05/28/15,FOOD & BEVERAGE,765.96,2015,AP,Accounts payable,00800857,CITI PCARD-FIRST CHOICE - JOE RAG
,OFFICE OF THE MAJORITY LEADER,2015Q2,SUPPLIES AND MATERIALS,06-18,CITI PCARD-LA TIMES SUBSCRIPTION,04/29/15,05/28/15,PUBLICATIONS/REFERENCE MAT'L,15.96,2015,AP,Accounts payable,00800857,CITI PCARD-LA TIMES SUBSCRIPTION
,OFFICE OF THE MAJORITY LEADER,2015Q2,SUPPLIES AND MATERIALS,06-18,CITI PCARD-NEW YORK TIMES DIGITAL,04/29/15,05/28/15,PUBLICATIONS/REFERENCE MAT'L,37.01,2015,AP,Accounts payable,00800857,CITI PCARD-NEW YORK TIMES DIGITAL
,OFFICE OF THE MAJORITY LEADER,2015Q2,SUPPLIES AND MATERIALS,06-18,CITI PCARD-SAFEWAY STORE,04/29/15,05/28/15,FOOD & BEVERAGE,35.97,2015,AP,Accounts payable,00800857,CITI PCARD-SAFEWAY STORE
,OFFICE OF THE MAJORITY LEADER,2015Q2,SUPPLIES AND MATERIALS,06-19,DEER PARK,05/31/15,05/31/15,WATER,160.81,2015,AP,Accounts payable,00800766,DEER PARK
,OFFICE OF THE MAJORITY LEADER,2015Q2,SUPPLIES AND MATERIALS,04-13,BLOOMBERG LP,01/01/15,03/31/15,PUBLICATIONS/REFERENCE MAT'L,"1,340.40",2014,AP,Accounts payable,E0267386,BLOOMBERG LP
,OFFICE OF THE MAJORITY LEADER,2015Q2,SUPPLIES AND MATERIALS,06-24,LEXIS-NEXIS,05/01/14,05/31/14,PUBLICATIONS/REFERENCE MAT'L,-625.00,2014,AR,Accounts receivable,FIN-00726-BD,LEXIS-NEXIS
,OFFICE OF THE MINORITY LEADER,2015Q2,SUPPLIES AND MATERIALS,04-10,CAPITOL HOST,03/25/15,03/25/15,FOOD & BEVERAGE,103.38,2015,AP,Accounts payable,E0266594,CAPITOL HOST
,OFFICE OF THE MINORITY LEADER,2015Q2,SUPPLIES AND MATERIALS,04-10,CAPITOL HOST,03/25/15,03/25/15,FOOD & BEVERAGE,33.00,2015,AP,Accounts payable,E0266595,CAPITOL HOST
,OFFICE OF THE MINORITY LEADER,2015Q2,SUPPLIES AND MATERIALS,04-10,CAPITOL HOST,03/18/15,03/18/15,FOOD & BEVERAGE,79.93,2015,AP,Accounts payable,E0266596,CAPITOL HOST
,OFFICE OF THE MINORITY LEADER,2015Q2,SUPPLIES AND MATERIALS,04-10,CAPITOL HOST,03/18/15,03/18/15,FOOD & BEVERAGE,49.50,2015,AP,Accounts payable,E0266602,CAPITOL HOST
,OFFICE OF THE MINORITY LEADER,2015Q2,SUPPLIES AND MATERIALS,04-10,CAPITOL HOST,03/20/15,03/20/15,FOOD & BEVERAGE,33.00,2015,AP,Accounts payable,E0266604,CAPITOL HOST
,OFFICE OF THE MINORITY LEADER,2015Q2,SUPPLIES AND MATERIALS,04-10,OCCASIONS CATERERS,03/25/15,03/25/15,FOOD & BEVERAGE,583.60,2015,AP,Accounts payable,E0266606,OCCASIONS CATERERS
,OFFICE OF THE MINORITY LEADER,2015Q2,SUPPLIES AND MATERIALS,04-22,OCCASIONS CATERERS,03/18/15,03/18/15,FOOD & BEVERAGE,"7,054.47",2015,AP,Accounts payable,E0270690,OCCASIONS CATERERS
,OFFICE OF THE MINORITY LEADER,2015Q2,PERSONNEL COMPENSATION,"","ADRIANCE,EDWIN A",04/01/15,06/30/15,PRESS ASSISTANT,"8,750.01",2015,"","","","ADRIANCE,EDWIN A"
,OFFICE OF THE MINORITY LEADER,2015Q2,PERSONNEL COMPENSATION,"","ADRIANCE,EDWIN A",03/01/15,05/31/15,PRESS ASSISTANT (OVERTIME),"3,312.77",2015,"","","","ADRIANCE,EDWIN A"
,OFFICE OF THE MINORITY LEADER,2015Q2,PERSONNEL COMPENSATION,"","AGUILAR,JORGE A",04/01/15,06/30/15,DEPUTY PRESS SECRETARY,"16,250.01",2015,"","","","AGUILAR,JORGE A"
,OFFICE OF THE MINORITY LEADER,2015Q2,PERSONNEL COMPENSATION,"","BERRET,EMILY C",04/01/15,06/30/15,SPECIAL ASST TO THE LEADER,"14,124.99",2015,"","","","BERRET,EMILY C"
,OFFICE OF THE MINORITY LEADER,2015Q2,PERSONNEL COMPENSATION,"","BLOOM, MICHAEL T",04/01/15,06/30/15,DEPUTY POLICY DIRECTOR,"24,999.99",2015,"","","","BLOOM, MICHAEL T"
,OFFICE OF THE MINORITY LEADER,2015Q2,PERSONNEL COMPENSATION,"","CAPRON, MARGARET W",04/01/15,06/30/15,SENIOR ADV POLICY & COMM,"33,174.24",2015,"","","","CAPRON, MARGARET W"
,OFFICE OF THE MINORITY LEADER,2015Q2,PERSONNEL COMPENSATION,"","CAYEA,DEVAN W",04/01/15,06/30/15,DEPUTY ASSIST SCHEDULER,"12,500.01",2015,"","","","CAYEA,DEVAN W"
,OFFICE OF THE MINORITY LEADER,2015Q2,PERSONNEL COMPENSATION,"","CHERRY,STEPHANIE",04/01/15,06/30/15,PRESS ADVISOR,"17,962.26",2015,"","","","CHERRY,STEPHANIE"
,OFFICE OF THE MINORITY LEADER,2015Q2,PERSONNEL COMPENSATION,"","CONNELLY,HENRY V",04/01/15,06/30/15,DIRECTOR OF SPEECHWRITING,"18,750.00",2015,"","","","CONNELLY,HENRY V"
,OFFICE OF THE MINORITY LEADER,2015Q2,PERSONNEL COMPENSATION,"","DAY,TAMIKA K",04/01/15,06/30/15,SR STAFF ASST SYS ADMIN,"12,500.01",2015,"","","","DAY,TAMIKA K"
,OFFICE OF THE MINORITY LEADER,2015Q2,PERSONNEL COMPENSATION,"","DEGRAFF, KENNETH B",04/01/15,06/30/15,SENIOR POLICY ADVISOR,"28,749.99",2015,"","","","DEGRAFF, KENNETH B"
,OFFICE OF THE MINORITY LEADER,2015Q2,PERSONNEL COMPENSATION,"","DEVLIN, PATRICK J",04/01/15,06/30/15,COMMUNICATIONS DIRECTOR,"31,250.01",2015,"","","","DEVLIN, PATRICK J"
,OFFICE OF THE MINORITY LEADER,2015Q2,PERSONNEL COMPENSATION,"","DEWHIRST, DIANE",04/01/15,06/30/15,DEPUTY CHIEF OF STAFF,"43,125.00",2015,"","","","DEWHIRST, DIANE"
,OFFICE OF THE MINORITY LEADER,2015Q2,PERSONNEL COMPENSATION,"","DOHERTY,SINEAD G",04/01/15,06/30/15,ADVANCE DEPUTY,"16,250.01",2015,"","","","DOHERTY,SINEAD G"
,OFFICE OF THE MINORITY LEADER,2015Q2,PERSONNEL COMPENSATION,"","EDMONSON, ROBERT D",04/01/15,06/30/15,CHIEF OF STAFF,"17,499.99",2015,"","","","EDMONSON, ROBERT D"
,OFFICE OF THE MINORITY LEADER,2015Q2,PERSONNEL COMPENSATION,"","ELLISON,MATTHEW B",04/01/15,06/30/15,LEGISLATIVE ASSISTANT,"7,500.00",2015,"","","","ELLISON,MATTHEW B"
,OFFICE OF THE MINORITY LEADER,2015Q2,PERSONNEL COMPENSATION,"","ELSHAMI, NADEAM",04/01/15,06/30/15,CHIEF OF STAFF,"43,125.00",2015,"","","","ELSHAMI, NADEAM"
,OFFICE OF THE MINORITY LEADER,2015Q2,PERSONNEL COMPENSATION,"","FISCHER JR, ROBERT V",04/01/15,06/30/15,ASST FLOOR CHIEF,"43,125.00",2015,"","","","FISCHER JR, ROBERT V"
,OFFICE OF THE MINORITY LEADER,2015Q2,PERSONNEL COMPENSATION,"","GEORGE,EVANGELINE M",04/01/15,06/30/15,DEPUTY COMM DIR/PRESS SEC,"27,500.01",2015,"","","","GEORGE,EVANGELINE M"
,OFFICE OF THE MINORITY LEADER,2015Q2,PERSONNEL COMPENSATION,"","GREENER, APRIL L",04/01/15,06/30/15,RESEARCH DIRECTOR,"26,250.00",2015,"","","","GREENER, APRIL L"
,OFFICE OF THE MINORITY LEADER,2015Q2,PERSONNEL COMPENSATION,"","GRIFFIN,TAYLOR T",04/01/15,06/30/15,PRESS ASSISTANT,"7,500.00",2015,"","","","GRIFFIN,TAYLOR T"
,OFFICE OF THE MINORITY LEADER,2015Q2,PERSONNEL COMPENSATION,"","GRIFFIN,TAYLOR T",03/01/15,05/31/15,PRESS ASSISTANT (OVERTIME),"3,445.27",2015,"","","","GRIFFIN,TAYLOR T"
,OFFICE OF THE MINORITY LEADER,2015Q2,PERSONNEL COMPENSATION,"","HAMMILL, ANDREW T",04/01/15,06/30/15,COMM DIR/SENIOR ADVISOR,"43,125.00",2015,"","","","HAMMILL, ANDREW T"
,OFFICE OF THE MINORITY LEADER,2015Q2,PERSONNEL COMPENSATION,"","HARTZ, JERRY",04/01/15,06/30/15,DIRECTOR OF FLOOR OPERATIONS,"43,125.00",2015,"","","","HARTZ, JERRY"
,OFFICE OF THE MINORITY LEADER,2015Q2,PERSONNEL COMPENSATION,"","HAYNES JR, WILFRED J",04/01/15,06/30/15,IT DIRECTOR,"24,530.49",2015,"","","","HAYNES JR, WILFRED J"
,OFFICE OF THE MINORITY LEADER,2015Q2,PERSONNEL COMPENSATION,"","KAPLAN,EMMA L",04/01/15,04/10/15,ASST TO THE EXECUTIVE OFFICE,916.66,2015,"","","","KAPLAN,EMMA L"
,OFFICE OF THE MINORITY LEADER,2015Q2,PERSONNEL COMPENSATION,"","KAPLAN,EMMA L",04/11/15,06/30/15,MEMBER SERVICES ASSOCIATE,"11,111.12",2015,"","","","KAPLAN,EMMA L"
,OFFICE OF THE MINORITY LEADER,2015Q2,PERSONNEL COMPENSATION,"","KAPLAN,EMMA L",03/01/15,03/31/15,ASST TO THE EXECUTIVE OFFICE (OVERTIME),"1,320.78",2015,"","","","KAPLAN,EMMA L"
,OFFICE OF THE MINORITY LEADER,2015Q2,PERSONNEL COMPENSATION,"","KAPLAN,EMMA L",04/01/15,04/30/15,MEMBER SERVICES ASSOCIATE (OVERTIME),441.70,2015,"","","","KAPLAN,EMMA L"
,OFFICE OF THE MINORITY LEADER,2015Q2,PERSONNEL COMPENSATION,"","KEATING,ROSE M",04/01/15,06/30/15,ASST FLOOR MANAGER,"31,250.01",2015,"","","","KEATING,ROSE M"
,OFFICE OF THE MINORITY LEADER,2015Q2,PERSONNEL COMPENSATION,"","KEITA,KAMILAH Z",04/01/15,06/30/15,DEPUTY INFOMATION TECH. DIRECT,"22,283.01",2015,"","","","KEITA,KAMILAH Z"
,OFFICE OF THE MINORITY LEADER,2015Q2,PERSONNEL COMPENSATION,"","KUNDANIS, GEORGE",04/01/15,06/30/15,DEPUTY CHIEF OF STAFF,"43,125.00",2015,"","","","KUNDANIS, GEORGE"
,OFFICE OF THE MINORITY LEADER,2015Q2,PERSONNEL COMPENSATION,"","LIZARRAGA, JAIME E",04/01/15,06/30/15,SR ADV & DIR OF MEMBER SVC,"39,905.49",2015,"","","","LIZARRAGA, JAIME E"
,OFFICE OF THE MINORITY LEADER,2015Q2,PERSONNEL COMPENSATION,"","LONG,MICHAEL G",04/01/15,06/30/15,SENIOR ADVISOR,"24,999.99",2015,"","","","LONG,MICHAEL G"
,OFFICE OF THE MINORITY LEADER,2015Q2,PERSONNEL COMPENSATION,"","MANGRUM, PEARL J",04/01/15,06/30/15,FINANCIAL ADMINISTRATOR,"19,875.00",2015,"","","","MANGRUM, PEARL J"
,OFFICE OF THE MINORITY LEADER,2015Q2,PERSONNEL COMPENSATION,"","MCCLELLAND,ETHAN L",04/01/15,06/30/15,SPECIAL ASSISTANT,"12,500.01",2015,"","","","MCCLELLAND,ETHAN L"
,OFFICE OF THE MINORITY LEADER,2015Q2,PERSONNEL COMPENSATION,"","MELTZER,RICHARD",04/01/15,06/30/15,POLICY DIRECTOR,"43,125.00",2015,"","","","MELTZER,RICHARD"
,OFFICE OF THE MINORITY LEADER,2015Q2,PERSONNEL COMPENSATION,"","MONGE,KATHERINE S",04/01/15,06/30/15,TAX POLICY ADVISOR,"30,000.00",2015,"","","","MONGE,KATHERINE S"
,OFFICE OF THE MINORITY LEADER,2015Q2,PERSONNEL COMPENSATION,"","NAVARRO,AMY K",04/06/15,06/30/15,ASST TO THE EXECUTIVE OFFICE,"7,791.67",2015,"","","","NAVARRO,AMY K"
,OFFICE OF THE MINORITY LEADER,2015Q2,PERSONNEL COMPENSATION,"","NAVARRO,AMY K",04/06/15,05/31/15,ASST TO THE EXECUTIVE OFFICE (OVERTIME),"2,314.33",2015,"","","","NAVARRO,AMY K"
,OFFICE OF THE MINORITY LEADER,2015Q2,PERSONNEL COMPENSATION,"","O'DONNELL,ROBERT",04/01/15,06/30/15,"CO-DIR, DEM POL & COMM CMTE","28,749.99",2015,"","","","O'DONNELL,ROBERT"
,OFFICE OF THE MINORITY LEADER,2015Q2,PERSONNEL COMPENSATION,"","PALMER,ASHLI S",04/01/15,06/30/15,POLICY DIRECTOR,"32,499.99",2015,"","","","PALMER,ASHLI S"
,OFFICE OF THE MINORITY LEADER,2015Q2,PERSONNEL COMPENSATION,"","PARKER, WYNDEE R",04/01/15,06/30/15,SENIOR POLICY ADVISOR,"43,125.00",2015,"","","","PARKER, WYNDEE R"
,OFFICE OF THE MINORITY LEADER,2015Q2,PERSONNEL COMPENSATION,"","PFEIFFER,AMY M",04/01/15,06/30/15,SENIOR ADVISOR,"24,999.99",2015,"","","","PFEIFFER,AMY M"
,OFFICE OF THE MINORITY LEADER,2015Q2,PERSONNEL COMPENSATION,"","POWELL,LATRICE S",04/01/15,06/30/15,ASSISTANT CLOAKROOM MANAGER,"27,500.01",2015,"","","","POWELL,LATRICE S"
,OFFICE OF THE MINORITY LEADER,2015Q2,PERSONNEL COMPENSATION,"","PRICE, REVA B",04/01/15,06/30/15,OUTREACH DIRECTOR & ADVISOR,"31,924.26",2015,"","","","PRICE, REVA B"
,OFFICE OF THE MINORITY LEADER,2015Q2,PERSONNEL COMPENSATION,"","PRIMUS, WENDELL E",04/01/15,06/30/15,SENIOR POLICY ADVISOR,"43,125.00",2015,"","","","PRIMUS, WENDELL E"
,OFFICE OF THE MINORITY LEADER,2015Q2,PERSONNEL COMPENSATION,"","RICCIO,ANDREA M",04/01/15,06/30/15,PRESS ADVISOR,"17,111.12",2015,"","","","RICCIO,ANDREA M"
,OFFICE OF THE MINORITY LEADER,2015Q2,PERSONNEL COMPENSATION,"","ROBINSON,MALAIKA",04/01/15,06/30/15,DEP DIR OF SPEECHWRITING,"15,000.00",2015,"","","","ROBINSON,MALAIKA"
,OFFICE OF THE MINORITY LEADER,2015Q2,PERSONNEL COMPENSATION,"","ROCHELLE,COURTNEY E",04/01/15,06/30/15,DISTRICT SCHEDULER/EXEC ASSIST,"5,000.01",2015,"","","","ROCHELLE,COURTNEY E"
,OFFICE OF THE MINORITY LEADER,2015Q2,PERSONNEL COMPENSATION,"","SKILES,KATHLEEN J",04/01/15,06/30/15,DIGITAL DIR.& SENIOR ADVISOR,"28,749.99",2015,"","","","SKILES,KATHLEEN J"
,OFFICE OF THE MINORITY LEADER,2015Q2,PERSONNEL COMPENSATION,"","SLATER,SAMANTHA A",04/01/15,06/30/15,"CO-DIR,DEM POLICY & COMM CMTE","28,749.99",2015,"","","","SLATER,SAMANTHA A"
,OFFICE OF THE MINORITY LEADER,2015Q2,PERSONNEL COMPENSATION,"","SMITH,KELSEY L",04/01/15,06/30/15,DIR. OF SCHEDULING & ADVANCE,"22,500.00",2015,"","","","SMITH,KELSEY L"
,OFFICE OF THE MINORITY LEADER,2015Q2,PERSONNEL COMPENSATION,"","SURGEON,BINA G",04/01/15,06/30/15,SPECIAL ASST TO THE LEADER,"24,916.67",2015,"","","","SURGEON,BINA G"
,OFFICE OF THE MINORITY LEADER,2015Q2,PERSONNEL COMPENSATION,"","TECKLENBURG, MICHAEL H",04/01/15,06/30/15,COUNSEL,"32,499.99",2015,"","","","TECKLENBURG, MICHAEL H"
,OFFICE OF THE MINORITY LEADER,2015Q2,PERSONNEL COMPENSATION,"","WATKINS, YELBERTON R",04/01/15,06/30/15,CHIEF OF STAFF,"41,250.00",2015,"","","","WATKINS, YELBERTON R"
,OFFICE OF THE MINORITY LEADER,2015Q2,PERSONNEL COMPENSATION,"","WEST,JULIUS L",04/01/15,06/30/15,"ADVISER,MEMBER SERVICES","15,500.01",2015,"","","","WEST,JULIUS L"
,OFFICE OF THE MINORITY LEADER,2015Q2,PERSONNEL COMPENSATION,"","WOLTERS, KATE",04/01/15,06/30/15,PERSONAL ASSISTANT,"34,646.49",2015,"","","","WOLTERS, KATE"
,OFFICE OF THE MINORITY LEADER,2015Q2,TRAVEL,04-01,"KAPLAN, EMMA L",03/25/15,03/25/15,TAXI/PARKING/TOLLS,16.54,2015,AP,Accounts payable,E0263399,"KAPLAN, EMMA L"
,OFFICE OF THE MINORITY LEADER,2015Q2,TRAVEL,04-10,CITIBANK GOV CARD SERVICE,03/20/15,03/21/15,TRAVEL SUBSISTENCE,486.65,2015,AP,Accounts payable,E0266609,CITIBANK GOV CARD SERVICE
,OFFICE OF THE MINORITY LEADER,2015Q2,TRAVEL,04-10,CITIBANK GOV CARD SERVICE,03/05/15,03/21/15,TRAVEL SUBSISTENCE,"1,834.44",2015,AP,Accounts payable,E0266611,CITIBANK GOV CARD SERVICE
,OFFICE OF THE MINORITY LEADER,2015Q2,TRAVEL,04-10,CITIBANK GOV CARD SERVICE,03/06/15,03/21/15,TRAVEL SUBSISTENCE,"4,380.36",2015,AP,Accounts payable,E0266619,CITIBANK GOV CARD SERVICE
,OFFICE OF THE MINORITY LEADER,2015Q2,TRAVEL,04-29,"MCCLELLAND, ETHAN L",04/16/15,04/23/15,TAXI/PARKING/TOLLS,30.25,2015,AP,Accounts payable,E0273108,"MCCLELLAND, ETHAN L"
,OFFICE OF THE MINORITY LEADER,2015Q2,TRAVEL,04-29,"AGUILAR, JORGE A",03/19/15,04/21/15,TRAVEL SUBSISTENCE,"1,298.93",2015,AP,Accounts payable,E0273109,"AGUILAR, JORGE A"
,OFFICE OF THE MINORITY LEADER,2015Q2,TRAVEL,05-12,"SMITH, KELSEY L",04/15/15,04/29/15,TAXI/PARKING/TOLLS,53.30,2015,AP,Accounts payable,E0277863,"SMITH, KELSEY L"
,OFFICE OF THE MINORITY LEADER,2015Q2,TRAVEL,05-12,"MCCLELLAND, ETHAN L",04/29/15,04/29/15,TAXI/PARKING/TOLLS,12.98,2015,AP,Accounts payable,E0277869,"MCCLELLAND, ETHAN L"
,OFFICE OF THE MINORITY LEADER,2015Q2,TRAVEL,05-12,CITIBANK GOV CARD SERVICE,04/17/15,04/21/15,TRAVEL SUBSISTENCE,"2,608.27",2015,AP,Accounts payable,E0277870,CITIBANK GOV CARD SERVICE
,OFFICE OF THE MINORITY LEADER,2015Q2,TRAVEL,05-12,CITIBANK GOV CARD SERVICE,03/19/15,03/20/15,TRAVEL SUBSISTENCE,"1,403.79",2015,AP,Accounts payable,E0277871,CITIBANK GOV CARD SERVICE
,OFFICE OF THE MINORITY LEADER,2015Q2,TRAVEL,05-12,CITIBANK GOV CARD SERVICE,03/21/15,04/21/15,TRAVEL SUBSISTENCE,16.04,2015,AP,Accounts payable,E0277872,CITIBANK GOV CARD SERVICE
,OFFICE OF THE MINORITY LEADER,2015Q2,TRAVEL,05-12,CITIBANK GOV CARD SERVICE,03/21/15,03/21/15,COMMERCIAL TRANSPORTATION,137.00,2015,AP,Accounts payable,E0277873,CITIBANK GOV CARD SERVICE
,OFFICE OF THE MINORITY LEADER,2015Q2,TRAVEL,05-13,"DOHERTY, SINEAD G",03/19/15,04/17/15,TAXI/PARKING/TOLLS,196.07,2015,AP,Accounts payable,E0278389,"DOHERTY, SINEAD G"
,OFFICE OF THE MINORITY LEADER,2015Q2,TRAVEL,05-27,"KAPLAN, EMMA L",05/13/15,05/13/15,TAXI/PARKING/TOLLS,19.74,2015,AP,Accounts payable,E0283120,"KAPLAN, EMMA L"
,OFFICE OF THE MINORITY LEADER,2015Q2,TRAVEL,05-27,"SMITH, KELSEY L",05/10/15,05/11/15,TRAVEL SUBSISTENCE,385.00,2015,AP,Accounts payable,E0283121,"SMITH, KELSEY L"
,OFFICE OF THE MINORITY LEADER,2015Q2,TRAVEL,05-27,"WOLTERS, KATE",05/05/15,05/09/15,TRAVEL SUBSISTENCE,52.57,2015,AP,Accounts payable,E0283122,"WOLTERS, KATE"
,OFFICE OF THE MINORITY LEADER,2015Q2,TRAVEL,06-02,"HAMMILL, ANDREW T",05/27/15,05/29/15,TRAVEL SUBSISTENCE,"1,802.40",2015,AP,Accounts payable,E0284628,"HAMMILL, ANDREW T"
,OFFICE OF THE MINORITY LEADER,2015Q2,TRAVEL,06-09,"MCCLELLAND, ETHAN L",06/02/15,06/02/15,TAXI/PARKING/TOLLS,13.52,2015,AP,Accounts payable,E0287857,"MCCLELLAND, ETHAN L"
,OFFICE OF THE MINORITY LEADER,2015Q2,TRAVEL,06-09,"BERRET, EMILY C",05/26/15,05/29/15,TRAVEL SUBSISTENCE,186.74,2015,AP,Accounts payable,E0287858,"BERRET, EMILY C"
,OFFICE OF THE MINORITY LEADER,2015Q2,TRAVEL,06-09,CITIBANK GOV CARD SERVICE,05/02/15,05/28/15,COMMERCIAL TRANSPORTATION,"1,872.40",2015,AP,Accounts payable,E0287860,CITIBANK GOV CARD SERVICE
,OFFICE OF THE MINORITY LEADER,2015Q2,TRAVEL,06-09,CITIBANK GOV CARD SERVICE,05/02/15,05/11/15,TRAVEL SUBSISTENCE,"2,521.91",2015,AP,Accounts payable,E0287861,CITIBANK GOV CARD SERVICE
,OFFICE OF THE MINORITY LEADER,2015Q2,TRAVEL,06-09,CITIBANK GOV CARD SERVICE,03/25/15,05/22/15,TRAVEL SUBSISTENCE,756.66,2015,AP,Accounts payable,E0287862,CITIBANK GOV CARD SERVICE
,OFFICE OF THE MINORITY LEADER,2015Q2,TRAVEL,06-09,CITIBANK GOV CARD SERVICE,05/09/15,05/18/15,TRAVEL SUBSISTENCE,"1,897.10",2015,AP,Accounts payable,E0287863,CITIBANK GOV CARD SERVICE
,OFFICE OF THE MINORITY LEADER,2015Q2,TRAVEL,06-11,CITIBANK GOV CARD SERVICE,05/20/15,05/27/15,TRAVEL SUBSISTENCE,737.48,2015,AP,Accounts payable,E0289088,CITIBANK GOV CARD SERVICE
,OFFICE OF THE MINORITY LEADER,2015Q2,TRAVEL,06-16,"DOHERTY, SINEAD G",05/14/15,06/04/15,TAXI/PARKING/TOLLS,190.18,2015,AP,Accounts payable,E0290443,"DOHERTY, SINEAD G"
,OFFICE OF THE MINORITY LEADER,2015Q2,TRAVEL,06-16,"SMITH, KELSEY L",06/06/15,06/06/15,TRAVEL SUBSISTENCE,137.95,2015,AP,Accounts payable,E0290477,"SMITH, KELSEY L"
,OFFICE OF THE MINORITY LEADER,2015Q2,TRAVEL,06-17,"KAPLAN, EMMA L",05/01/15,06/02/15,TAXI/PARKING/TOLLS,45.59,2015,AP,Accounts payable,E0290726,"KAPLAN, EMMA L"
,OFFICE OF THE MINORITY LEADER,2015Q2,TRAVEL,06-17,"ROCHELLE,COURTNEY",05/20/15,05/24/15,PRIVATE AUTO MILEAGE,136.84,2015,AP,Accounts payable,E0290730,"ROCHELLE,COURTNEY"
,OFFICE OF THE MINORITY LEADER,2015Q2,TRAVEL,06-17,"ROCHELLE,COURTNEY",05/15/15,05/23/15,TRAVEL SUBSISTENCE,58.98,2015,AP,Accounts payable,E0290730,"ROCHELLE,COURTNEY"
,OFFICE OF THE MINORITY LEADER,2015Q2,TRAVEL,06-26,"KAPLAN, EMMA L",06/10/15,06/10/15,TAXI/PARKING/TOLLS,13.83,2015,AP,Accounts payable,E0294309,"KAPLAN, EMMA L"
,OFFICE OF THE MINORITY LEADER,2015Q2,TRAVEL,06-26,"MCCLELLAND, ETHAN L",06/10/15,06/10/15,TAXI/PARKING/TOLLS,8.16,2015,AP,Accounts payable,E0294316,"MCCLELLAND, ETHAN L"
,OFFICE OF THE MINORITY LEADER,2015Q2,TRAVEL,06-26,"SMITH, KELSEY L",05/14/15,06/12/15,TAXI/PARKING/TOLLS,40.32,2015,AP,Accounts payable,E0294317,"SMITH, KELSEY L"
,OFFICE OF THE MINORITY LEADER,2015Q2,TRAVEL,06-29,"PRIMUS, WENDELL E",06/23/15,06/23/15,TAXI/PARKING/TOLLS,45.00,2015,AP,Accounts payable,E0294306,"PRIMUS, WENDELL E"
,OFFICE OF THE MINORITY LEADER,2015Q2,TRAVEL,06-29,"SURGEON,BINA G",06/02/15,06/02/15,TAXI/PARKING/TOLLS,13.47,2015,AP,Accounts payable,E0294315,"SURGEON,BINA G"
,OFFICE OF THE MINORITY LEADER,2015Q2,"RENT, COMMUNICATION, UTILITIES",04-09,FEDEX,03/13/15,03/13/15,POSTAGE / COURIER / BOX RENTAL,11.79,2015,AP,Accounts payable,E0266593,FEDEX
,OFFICE OF THE MINORITY LEADER,2015Q2,"RENT, COMMUNICATION, UTILITIES",04-17,CITI PCARD-TIV TIVO SERVICE,03/01/15,03/28/15,RECORDING (OUTSIDE),48.42,2015,AP,Accounts payable,00789547,CITI PCARD-TIV TIVO SERVICE
,OFFICE OF THE MINORITY LEADER,2015Q2,"RENT, COMMUNICATION, UTILITIES",05-19,CITI PCARD-TIV TIVO SERVICE,03/29/15,04/28/15,RECORDING (OUTSIDE),48.42,2015,AP,Accounts payable,00795289,CITI PCARD-TIV TIVO SERVICE
,OFFICE OF THE MINORITY LEADER,2015Q2,"RENT, COMMUNICATION, UTILITIES",06-09,FEDEX,05/20/15,05/20/15,POSTAGE / COURIER / BOX RENTAL,4.49,2015,AP,Accounts payable,E0287856,FEDEX
,OFFICE OF THE MINORITY LEADER,2015Q2,"RENT, COMMUNICATION, UTILITIES",06-18,CITI PCARD-TIV TIVO SERVICE,04/29/15,05/28/15,RECORDING (OUTSIDE),48.42,2015,AP,Accounts payable,00800857,CITI PCARD-TIV TIVO SERVICE
,OFFICE OF THE MINORITY LEADER,2015Q2,PRINTING AND REPRODUCTION,04-10,POTTER AND COMPANY LLC,02/19/15,02/19/15,PRINTING & REPRODUCTION,42.00,2015,AP,Accounts payable,E0266622,POTTER AND COMPANY LLC
,OFFICE OF THE MINORITY LEADER,2015Q2,PRINTING AND REPRODUCTION,04-27,"",04/01/15,04/30/15,PHOTOGRAPHIC (TRANSFER),399.00,2015,GL,General ledger,PIX0048574,""
,OFFICE OF THE MINORITY LEADER,2015Q2,PRINTING AND REPRODUCTION,05-22,"",05/01/15,05/31/15,PHOTOGRAPHIC (TRANSFER),393.40,2015,GL,General ledger,PIX0049211,""
,OFFICE OF THE MINORITY LEADER,2015Q2,PRINTING AND REPRODUCTION,06-24,"",06/01/15,06/30/15,PHOTOGRAPHIC (TRANSFER),336.80,2015,GL,General ledger,PIX0050069,""
,OFFICE OF THE MINORITY LEADER,2015Q2,OTHER SERVICES,05-13,BERNARD RAIMO,04/01/15,04/30/15,CONSULTANT CONTRACT SERVICE,"7,628.00",2015,AP,Accounts payable,E0278385,BERNARD RAIMO
,OFFICE OF THE MINORITY LEADER,2015Q2,OTHER SERVICES,06-02,BERNARD RAIMO,05/01/15,05/31/15,CONSULTANT CONTRACT SERVICE,"7,628.00",2015,AP,Accounts payable,E0284651,BERNARD RAIMO
,OFFICE OF THE MINORITY LEADER,2015Q2,OTHER SERVICES,06-26,BERNARD RAIMO,06/01/15,06/30/15,CONSULTANT CONTRACT SERVICE,"7,628.00",2015,AP,Accounts payable,E0294310,BERNARD RAIMO
,OFFICE OF THE MINORITY LEADER,2015Q2,SUPPLIES AND MATERIALS,04-01,"KAPLAN, EMMA L",03/25/15,03/25/15,FOOD & BEVERAGE,79.92,2015,AP,Accounts payable,E0263399,"KAPLAN, EMMA L"
,OFFICE OF THE MINORITY LEADER,2015Q2,SUPPLIES AND MATERIALS,04-17,CITI PCARD-BLUE IRIS EASTERN MARK,03/01/15,03/28/15,HABITATION EXPENSE,363.78,2015,AP,Accounts payable,00789547,CITI PCARD-BLUE IRIS EASTERN MARK
,OFFICE OF THE MINORITY LEADER,2015Q2,SUPPLIES AND MATERIALS,04-17,CITI PCARD-CARMINE S,03/01/15,03/28/15,FOOD & BEVERAGE,509.40,2015,AP,Accounts payable,00789547,CITI PCARD-CARMINE S
,OFFICE OF THE MINORITY LEADER,2015Q2,SUPPLIES AND MATERIALS,04-17,CITI PCARD-D J WALL-ST-JOURNAL,03/01/15,03/28/15,PUBLICATIONS/REFERENCE MAT'L,317.12,2015,AP,Accounts payable,00789547,CITI PCARD-D J WALL-ST-JOURNAL
,OFFICE OF THE MINORITY LEADER,2015Q2,SUPPLIES AND MATERIALS,04-17,CITI PCARD-DUNKIN,03/01/15,03/28/15,FOOD & BEVERAGE,121.80,2015,AP,Accounts payable,00789547,CITI PCARD-DUNKIN
,OFFICE OF THE MINORITY LEADER,2015Q2,SUPPLIES AND MATERIALS,04-17,CITI PCARD-FIREHOOK,03/01/15,03/28/15,FOOD & BEVERAGE,50.58,2015,AP,Accounts payable,00789547,CITI PCARD-FIREHOOK
,OFFICE OF THE MINORITY LEADER,2015Q2,SUPPLIES AND MATERIALS,04-17,CITI PCARD-GIANT,03/01/15,03/28/15,FOOD & BEVERAGE,49.47,2015,AP,Accounts payable,00789547,CITI PCARD-GIANT
,OFFICE OF THE MINORITY LEADER,2015Q2,SUPPLIES AND MATERIALS,04-17,CITI PCARD-HARRIS TEETER,03/01/15,03/28/15,FOOD & BEVERAGE,264.69,2015,AP,Accounts payable,00789547,CITI PCARD-HARRIS TEETER
,OFFICE OF THE MINORITY LEADER,2015Q2,SUPPLIES AND MATERIALS,04-17,CITI PCARD-KEURIG GREEN MOUNTAIN,03/01/15,03/28/15,FOOD & BEVERAGE,321.79,2015,AP,Accounts payable,00789547,CITI PCARD-KEURIG GREEN MOUNTAIN
,OFFICE OF THE MINORITY LEADER,2015Q2,SUPPLIES AND MATERIALS,04-17,CITI PCARD-PRET A MANGER,03/01/15,03/28/15,FOOD & BEVERAGE,86.79,2015,AP,Accounts payable,00789547,CITI PCARD-PRET A MANGER
,OFFICE OF THE MINORITY LEADER,2015Q2,SUPPLIES AND MATERIALS,04-17,CITI PCARD-TARGET,03/01/15,03/28/15,FOOD & BEVERAGE,650.58,2015,AP,Accounts payable,00789547,CITI PCARD-TARGET
,OFFICE OF THE MINORITY LEADER,2015Q2,SUPPLIES AND MATERIALS,04-17,"CITI PCARD-WE, THE PIZZA",03/01/15,03/28/15,FOOD & BEVERAGE,44.40,2015,AP,Accounts payable,00789547,"CITI PCARD-WE, THE PIZZA"
,OFFICE OF THE MINORITY LEADER,2015Q2,SUPPLIES AND MATERIALS,04-17,CITI PCARD-WHOLEFDS PST,03/01/15,03/28/15,FOOD & BEVERAGE,141.72,2015,AP,Accounts payable,00789547,CITI PCARD-WHOLEFDS PST
,OFFICE OF THE MINORITY LEADER,2015Q2,SUPPLIES AND MATERIALS,04-21,CRYSTAL SPRINGS,04/01/15,04/30/15,FOOD & BEVERAGE,251.75,2015,AP,Accounts payable,E0270417,CRYSTAL SPRINGS
,OFFICE OF THE MINORITY LEADER,2015Q2,SUPPLIES AND MATERIALS,04-22,OCCASIONS CATERERS,03/18/15,03/18/15,FOOD & BEVERAGE,"1,035.53",2015,AP,Accounts payable,E0270689,OCCASIONS CATERERS
,OFFICE OF THE MINORITY LEADER,2015Q2,SUPPLIES AND MATERIALS,04-27,CAPITOL HOST,04/15/15,04/15/15,FOOD & BEVERAGE,103.38,2015,AP,Accounts payable,E0272426,CAPITOL HOST
,OFFICE OF THE MINORITY LEADER,2015Q2,SUPPLIES AND MATERIALS,04-27,"BERRET, EMILY C",04/17/15,04/17/15,FOOD & BEVERAGE,37.56,2015,AP,Accounts payable,E0272428,"BERRET, EMILY C"
,OFFICE OF THE MINORITY LEADER,2015Q2,SUPPLIES AND MATERIALS,05-06,TOULIES EN FLEUR,03/23/15,03/23/15,HABITATION EXPENSE,904.00,2015,AP,Accounts payable,E0272425,TOULIES EN FLEUR
,OFFICE OF THE MINORITY LEADER,2015Q2,SUPPLIES AND MATERIALS,05-06,TINY JEWEL BOX INC,02/11/15,02/11/15,OFFICE SUPPLIES (OUTSIDE),"1,000.00",2015,AP,Accounts payable,E0273107,TINY JEWEL BOX INC
,OFFICE OF THE MINORITY LEADER,2015Q2,SUPPLIES AND MATERIALS,05-12,CISION US INC,04/26/15,04/26/16,PUBLICATIONS/REFERENCE MAT'L,"6,160.00",2015,AP,Accounts payable,E0277862,CISION US INC
,OFFICE OF THE MINORITY LEADER,2015Q2,SUPPLIES AND MATERIALS,05-12,CAPITOL HOST,04/22/15,04/22/15,FOOD & BEVERAGE,30.00,2015,AP,Accounts payable,E0277864,CAPITOL HOST
,OFFICE OF THE MINORITY LEADER,2015Q2,SUPPLIES AND MATERIALS,05-12,CAPITOL HOST,04/22/15,04/22/15,FOOD & BEVERAGE,33.00,2015,AP,Accounts payable,E0277865,CAPITOL HOST
,OFFICE OF THE MINORITY LEADER,2015Q2,SUPPLIES AND MATERIALS,05-12,OCCASIONS CATERERS,03/18/15,03/18/15,FOOD & BEVERAGE,668.10,2015,AP,Accounts payable,E0277867,OCCASIONS CATERERS
,OFFICE OF THE MINORITY LEADER,2015Q2,SUPPLIES AND MATERIALS,05-12,CAPITOL ADVANTAGE LLC,05/01/15,05/01/15,PUBLICATIONS/REFERENCE MAT'L,"1,133.00",2015,AP,Accounts payable,E0277868,CAPITOL ADVANTAGE LLC
,OFFICE OF THE MINORITY LEADER,2015Q2,SUPPLIES AND MATERIALS,05-12,CAPITOL HOST,04/29/15,04/29/15,FOOD & BEVERAGE,33.00,2015,AP,Accounts payable,E0277890,CAPITOL HOST
,OFFICE OF THE MINORITY LEADER,2015Q2,SUPPLIES AND MATERIALS,05-13,"DOHERTY, SINEAD G",04/18/15,04/18/15,PUBLICATIONS/REFERENCE MAT'L,4.86,2015,AP,Accounts payable,E0278389,"DOHERTY, SINEAD G"
,OFFICE OF THE MINORITY LEADER,2015Q2,SUPPLIES AND MATERIALS,05-19,CITI PCARD-DUNKIN,03/29/15,04/28/15,FOOD & BEVERAGE,21.28,2015,AP,Accounts payable,00795289,CITI PCARD-DUNKIN
,OFFICE OF THE MINORITY LEADER,2015Q2,SUPPLIES AND MATERIALS,05-19,CITI PCARD-FIREHOOK,03/29/15,04/28/15,FOOD & BEVERAGE,94.59,2015,AP,Accounts payable,00795289,CITI PCARD-FIREHOOK
,OFFICE OF THE MINORITY LEADER,2015Q2,SUPPLIES AND MATERIALS,05-19,CITI PCARD-PRET A MANGER,03/29/15,04/28/15,FOOD & BEVERAGE,158.75,2015,AP,Accounts payable,00795289,CITI PCARD-PRET A MANGER
,OFFICE OF THE MINORITY LEADER,2015Q2,SUPPLIES AND MATERIALS,05-27,CAPITOL HOST,05/13/15,05/13/15,FOOD & BEVERAGE,33.00,2015,AP,Accounts payable,E0283119,CAPITOL HOST
,OFFICE OF THE MINORITY LEADER,2015Q2,SUPPLIES AND MATERIALS,06-02,SOUTHWEST DISTRIBUTION INC,07/01/15,09/30/15,PUBLICATIONS/REFERENCE MAT'L,"3,684.50",2015,AP,Accounts payable,E0284631,SOUTHWEST DISTRIBUTION INC
,OFFICE OF THE MINORITY LEADER,2015Q2,SUPPLIES AND MATERIALS,06-02,CAPITOL HOST,05/20/15,05/20/15,FOOD & BEVERAGE,33.00,2015,AP,Accounts payable,E0284633,CAPITOL HOST
,OFFICE OF THE MINORITY LEADER,2015Q2,SUPPLIES AND MATERIALS,06-02,TOULIES EN FLEUR,05/12/15,05/18/15,HABITATION EXPENSE,500.00,2015,AP,Accounts payable,E0284637,TOULIES EN FLEUR
,OFFICE OF THE MINORITY LEADER,2015Q2,SUPPLIES AND MATERIALS,06-02,TOULIES EN FLEUR,04/13/15,04/28/15,HABITATION EXPENSE,750.00,2015,AP,Accounts payable,E0284638,TOULIES EN FLEUR
,OFFICE OF THE MINORITY LEADER,2015Q2,SUPPLIES AND MATERIALS,06-03,TINY JEWEL BOX INC,02/11/15,02/11/15,OFFICE SUPPLIES (OUTSIDE),"-1,000.00",2015,AP,Accounts payable,00796009,TINY JEWEL BOX INC
,OFFICE OF THE MINORITY LEADER,2015Q2,SUPPLIES AND MATERIALS,06-17,CAPITOL HOST,06/02/15,06/02/15,FOOD & BEVERAGE,120.00,2015,AP,Accounts payable,E0290723,CAPITOL HOST
,OFFICE OF THE MINORITY LEADER,2015Q2,SUPPLIES AND MATERIALS,06-18,CITI PCARD-CARMINE S,04/29/15,05/28/15,FOOD & BEVERAGE,400.00,2015,AP,Accounts payable,00800857,CITI PCARD-CARMINE S
,OFFICE OF THE MINORITY LEADER,2015Q2,SUPPLIES AND MATERIALS,06-18,CITI PCARD-COSTCO.COM,04/29/15,05/28/15,FOOD & BEVERAGE,257.49,2015,AP,Accounts payable,00800857,CITI PCARD-COSTCO.COM
,OFFICE OF THE MINORITY LEADER,2015Q2,SUPPLIES AND MATERIALS,06-18,CITI PCARD-DUNKIN,04/29/15,05/28/15,FOOD & BEVERAGE,66.96,2015,AP,Accounts payable,00800857,CITI PCARD-DUNKIN
,OFFICE OF THE MINORITY LEADER,2015Q2,SUPPLIES AND MATERIALS,06-18,CITI PCARD-FIREHOOK,04/29/15,05/28/15,FOOD & BEVERAGE,28.58,2015,AP,Accounts payable,00800857,CITI PCARD-FIREHOOK
,OFFICE OF THE MINORITY LEADER,2015Q2,SUPPLIES AND MATERIALS,06-18,CITI PCARD-ROWLAND JAVA CABANA,04/29/15,05/28/15,FOOD & BEVERAGE,97.32,2015,AP,Accounts payable,00800857,CITI PCARD-ROWLAND JAVA CABANA
,OFFICE OF THE MINORITY LEADER,2015Q2,SUPPLIES AND MATERIALS,06-18,CITI PCARD-TARGET,04/29/15,05/28/15,FOOD & BEVERAGE,337.34,2015,AP,Accounts payable,00800857,CITI PCARD-TARGET
,OFFICE OF THE MINORITY LEADER,2015Q2,SUPPLIES AND MATERIALS,06-18,CITI PCARD-WHOLEFDS,04/29/15,05/28/15,FOOD & BEVERAGE,61.97,2015,AP,Accounts payable,00800857,CITI PCARD-WHOLEFDS
,OFFICE OF THE MINORITY LEADER,2015Q2,SUPPLIES AND MATERIALS,06-26,CRYSTAL SPRINGS,06/01/15,06/30/15,FOOD & BEVERAGE,529.28,2015,AP,Accounts payable,E0294313,CRYSTAL SPRINGS
,OFFICE OF THE MINORITY LEADER,2015Q2,SUPPLIES AND MATERIALS,06-29,CAPITOL HOST,06/10/15,06/10/15,FOOD & BEVERAGE,33.00,2015,AP,Accounts payable,E0294312,CAPITOL HOST
,OFFICE OF THE MINORITY LEADER,2015Q2,SUPPLIES AND MATERIALS,06-29,"SURGEON,BINA G",06/02/15,06/18/15,FOOD & BEVERAGE,305.41,2015,AP,Accounts payable,E0294314,"SURGEON,BINA G"
,OFFICE OF THE MINORITY LEADER,2015Q2,SUPPLIES AND MATERIALS,06-29,CAPITOL HOST,06/03/15,06/03/15,FOOD & BEVERAGE,33.00,2015,AP,Accounts payable,E0294331,CAPITOL HOST
,OFFICE OF THE MINORITY LEADER,2015Q2,SUPPLIES AND MATERIALS,04-21,TVEYES INC,01/02/15,01/01/17,PUBLICATIONS/REFERENCE MAT'L,"2,400.00",2014,AP,Accounts payable,E0270380,TVEYES INC
,OFFICE OF THE MAJORITY WHIP,2015Q2,PERSONNEL COMPENSATION,"","ACORNLEY, MARK A",04/01/15,06/30/15,FINANCIAL ADMINISTRATOR,"3,750.00",2015,"","","","ACORNLEY, MARK A"
,OFFICE OF THE MAJORITY WHIP,2015Q2,PERSONNEL COMPENSATION,"","BECKER,MEGAN E",04/01/15,06/30/15,SCHEDULE COORDINATOR,"11,250.00",2015,"","","","BECKER,MEGAN E"
,OFFICE OF THE MAJORITY WHIP,2015Q2,PERSONNEL COMPENSATION,"","BLACK,WAELSTON T",04/01/15,06/30/15,SPECIAL ASSISTANT,"7,500.00",2015,"","","","BLACK,WAELSTON T"
,OFFICE OF THE MAJORITY WHIP,2015Q2,PERSONNEL COMPENSATION,"","BOND,CHRISTOPHER J",05/01/15,06/30/15,COMMUNICATIONS DIRECTOR,"18,833.34",2015,"","","","BOND,CHRISTOPHER J"
,OFFICE OF THE MAJORITY WHIP,2015Q2,PERSONNEL COMPENSATION,"","BRACE,CONNER W",04/01/15,06/30/15,STAFF ASSISTANT,"7,500.00",2015,"","","","BRACE,CONNER W"
,OFFICE OF THE MAJORITY WHIP,2015Q2,PERSONNEL COMPENSATION,"","BRAVO, MATTHEW",04/01/15,06/30/15,DEPUTY DIRECTOR OF FLOOR OPERA,"26,250.01",2015,"","","","BRAVO, MATTHEW"
,OFFICE OF THE MAJORITY WHIP,2015Q2,PERSONNEL COMPENSATION,"","CAVAZOS,ANDREW J",04/01/15,06/30/15,ASST TO THE CHIEF OF STAFF,"11,250.00",2015,"","","","CAVAZOS,ANDREW J"
,OFFICE OF THE MAJORITY WHIP,2015Q2,PERSONNEL COMPENSATION,"","DELUKE,BRENDEN J",04/01/15,06/30/15,SPECIAL ASSISTANT,"8,750.01",2015,"","","","DELUKE,BRENDEN J"
,OFFICE OF THE MAJORITY WHIP,2015Q2,PERSONNEL COMPENSATION,"","HAMILTON,PARKER",04/01/15,06/30/15,COS TO THE CHIEF DEP WHIP,"30,000.00",2015,"","","","HAMILTON,PARKER"
,OFFICE OF THE MAJORITY WHIP,2015Q2,PERSONNEL COMPENSATION,"","HODGSON,CHRISTOPHER M",04/01/15,06/30/15,FLOOR DIRECTOR,"18,750.01",2015,"","","","HODGSON,CHRISTOPHER M"
,OFFICE OF THE MAJORITY WHIP,2015Q2,PERSONNEL COMPENSATION,"","HORTON, BRETT H",04/01/15,06/30/15,DIR OF FL OPERATIONS & COUNSEL,"29,700.00",2015,"","","","HORTON, BRETT H"
,OFFICE OF THE MAJORITY WHIP,2015Q2,PERSONNEL COMPENSATION,"","HUDAK,KELLEY K",04/01/15,06/30/15,BUSINESS COALITIONS COORD,"17,499.99",2015,"","","","HUDAK,KELLEY K"
,OFFICE OF THE MAJORITY WHIP,2015Q2,PERSONNEL COMPENSATION,"","HUGHES,WILLIAM J",04/01/15,06/30/15,POLICY DIRECTOR,"41,000.01",2015,"","","","HUGHES,WILLIAM J"
,OFFICE OF THE MAJORITY WHIP,2015Q2,PERSONNEL COMPENSATION,"","REISER,MARTIN G",04/01/15,06/30/15,LEGISLATIVE COUNSEL,"31,250.01",2015,"","","","REISER,MARTIN G"
,OFFICE OF THE MAJORITY WHIP,2015Q2,PERSONNEL COMPENSATION,"","REISING,JOHN B",04/01/15,06/30/15,DIRECTOR OF OPERATIONS,"20,499.99",2015,"","","","REISING,JOHN B"
,OFFICE OF THE MAJORITY WHIP,2015Q2,PERSONNEL COMPENSATION,"","RUCKERT,LYNNEL B",04/01/15,06/30/15,CHIEF OF STAFF,"42,825.00",2015,"","","","RUCKERT,LYNNEL B"
,OFFICE OF THE MAJORITY WHIP,2015Q2,PERSONNEL COMPENSATION,"","SADLOSKY,DANIEL J",04/01/15,06/30/15,POLICY ASSISTANT,"17,500.00",2015,"","","","SADLOSKY,DANIEL J"
,OFFICE OF THE MAJORITY WHIP,2015Q2,PERSONNEL COMPENSATION,"","SMITH, MOIRA B",04/01/15,04/06/15,COMMUNICATIONS DIRECTOR,"2,080.00",2015,"","","","SMITH, MOIRA B"
,OFFICE OF THE MAJORITY WHIP,2015Q2,PERSONNEL COMPENSATION,"","TATUM,THOMAS J",04/01/15,06/30/15,DEPUTY COMMUNICATIONS DIRECTOR,"24,000.00",2015,"","","","TATUM,THOMAS J"
,OFFICE OF THE MAJORITY WHIP,2015Q2,PERSONNEL COMPENSATION,"","TRUEMAN,LAURA",06/08/15,06/30/15,SR. POL ADV & CONSER COAL CORD,"7,666.67",2015,"","","","TRUEMAN,LAURA"
,OFFICE OF THE MAJORITY WHIP,2015Q2,PERSONNEL COMPENSATION,"","WEBBER,MILDRED J",05/07/15,05/31/15,SPECIAL ASSISTANT,"4,019.20",2015,"","","","WEBBER,MILDRED J"
,OFFICE OF THE MAJORITY WHIP,2015Q2,PERSONNEL COMPENSATION,"","WOODARD,JOHN S",04/01/15,06/30/15,STAFF ASSISTANT,"7,500.00",2015,"","","","WOODARD,JOHN S"
,OFFICE OF THE MAJORITY WHIP,2015Q2,PERSONNEL COMPENSATION,"","ZULKOSKY,ERIC T",04/01/15,06/30/15,DIR OF MEMBER SVS & POLICY ADV,"5,000.01",2015,"","","","ZULKOSKY,ERIC T"
,OFFICE OF THE MAJORITY WHIP,2015Q2,TRAVEL,04-02,"REISER, MARTIN G",01/22/15,03/20/15,TAXI/PARKING/TOLLS,57.72,2015,AP,Accounts payable,E0263418,"REISER, MARTIN G"
,OFFICE OF THE MAJORITY WHIP,2015Q2,TRAVEL,04-03,"HUGHES, WILLIAM J",03/16/15,03/16/15,TAXI/PARKING/TOLLS,20.00,2015,AP,Accounts payable,E0263432,"HUGHES, WILLIAM J"
,OFFICE OF THE MAJORITY WHIP,2015Q2,TRAVEL,04-15,CITIBANK GOV CARD SERVICE,02/10/15,02/10/15,TRAVEL SUBSISTENCE,522.52,2015,AP,Accounts payable,E0268423,CITIBANK GOV CARD SERVICE
,OFFICE OF THE MAJORITY WHIP,2015Q2,TRAVEL,04-15,CITIBANK GOV CARD SERVICE,03/26/15,04/08/15,COMMERCIAL TRANSPORTATION,"1,160.60",2015,AP,Accounts payable,E0268441,CITIBANK GOV CARD SERVICE
,OFFICE OF THE MAJORITY WHIP,2015Q2,TRAVEL,05-08,CITIBANK GOV CARD SERVICE,03/31/15,04/10/15,LODGING,"2,022.84",2015,AP,Accounts payable,E0276837,CITIBANK GOV CARD SERVICE
,OFFICE OF THE MAJORITY WHIP,2015Q2,TRAVEL,05-28,"HORTON, BRETT H",03/02/15,04/07/15,TAXI/PARKING/TOLLS,103.00,2015,AP,Accounts payable,E0283826,"HORTON, BRETT H"
,OFFICE OF THE MAJORITY WHIP,2015Q2,PRINTING AND REPRODUCTION,05-13,SHARP BUSINESS SYSTEMS,01/01/15,04/20/15,PRINTING & REPRODUCTION,246.72,2015,AP,Accounts payable,E0278764,SHARP BUSINESS SYSTEMS
,OFFICE OF THE MAJORITY WHIP,2015Q2,PRINTING AND REPRODUCTION,06-24,"",06/01/15,06/30/15,PHOTOGRAPHIC (TRANSFER),97.34,2015,GL,General ledger,PIX0050069,""
,OFFICE OF THE MAJORITY WHIP,2015Q2,SUPPLIES AND MATERIALS,04-15,FIRST CHOICE COFFEE SERVICES,04/09/15,04/09/15,FOOD & BEVERAGE,12.95,2015,AP,Accounts payable,E0268420,FIRST CHOICE COFFEE SERVICES
,OFFICE OF THE MAJORITY WHIP,2015Q2,SUPPLIES AND MATERIALS,04-15,FIRST CHOICE COFFEE SERVICES,04/09/15,04/09/15,FOOD & BEVERAGE,379.10,2015,AP,Accounts payable,E0268437,FIRST CHOICE COFFEE SERVICES
,OFFICE OF THE MAJORITY WHIP,2015Q2,SUPPLIES AND MATERIALS,04-22,FIRST CHOICE COFFEE SERVICES,04/16/15,04/16/15,FOOD & BEVERAGE,168.75,2015,AP,Accounts payable,E0270916,FIRST CHOICE COFFEE SERVICES
,OFFICE OF THE MAJORITY WHIP,2015Q2,SUPPLIES AND MATERIALS,05-08,FIRST CHOICE COFFEE SERVICES,05/05/15,05/05/15,FOOD & BEVERAGE,831.95,2015,AP,Accounts payable,E0276815,FIRST CHOICE COFFEE SERVICES
,OFFICE OF THE MAJORITY WHIP,2015Q2,SUPPLIES AND MATERIALS,05-13,COMMUNITY COFFEE COMPANY LLC,03/04/15,03/04/15,FOOD & BEVERAGE,126.89,2015,AP,Accounts payable,E0278742,COMMUNITY COFFEE COMPANY LLC
,OFFICE OF THE MAJORITY WHIP,2015Q2,SUPPLIES AND MATERIALS,05-13,COMMUNITY COFFEE COMPANY LLC,04/10/15,04/10/15,OFFICE SUPPLIES (OUTSIDE),97.11,2015,AP,Accounts payable,E0278745,COMMUNITY COFFEE COMPANY LLC
,OFFICE OF THE MAJORITY WHIP,2015Q2,SUPPLIES AND MATERIALS,05-13,COMMUNITY COFFEE COMPANY LLC,01/26/15,01/26/15,FOOD & BEVERAGE,467.65,2015,AP,Accounts payable,E0278753,COMMUNITY COFFEE COMPANY LLC
,OFFICE OF THE MAJORITY WHIP,2015Q2,SUPPLIES AND MATERIALS,05-28,COMMUNITY COFFEE COMPANY LLC,05/14/15,05/14/15,FOOD & BEVERAGE,218.25,2015,AP,Accounts payable,E0283832,COMMUNITY COFFEE COMPANY LLC
,OFFICE OF THE MAJORITY WHIP,2015Q2,SUPPLIES AND MATERIALS,05-28,FIRST CHOICE COFFEE SERVICES,05/21/15,05/21/15,FOOD & BEVERAGE,490.60,2015,AP,Accounts payable,E0283840,FIRST CHOICE COFFEE SERVICES
,OFFICE OF THE MAJORITY WHIP,2015Q2,SUPPLIES AND MATERIALS,06-10,FIRST CHOICE COFFEE SERVICES,06/04/15,06/04/15,FOOD & BEVERAGE,36.00,2015,AP,Accounts payable,E0288350,FIRST CHOICE COFFEE SERVICES
,OFFICE OF THE MAJORITY WHIP,2015Q2,SUPPLIES AND MATERIALS,06-10,POLITICO,06/02/15,12/30/15,PUBLICATIONS/REFERENCE MAT'L,"2,000.00",2015,AP,Accounts payable,E0288356,POLITICO
,OFFICE OF THE MAJORITY WHIP,2015Q2,SUPPLIES AND MATERIALS,06-10,FIRST CHOICE COFFEE SERVICES,06/04/15,06/04/15,FOOD & BEVERAGE,762.55,2015,AP,Accounts payable,E0288371,FIRST CHOICE COFFEE SERVICES
,OFFICE OF THE MAJORITY WHIP,2015Q2,SUPPLIES AND MATERIALS,06-12,DAIOHS FIRST CHOICE COFFEE SERVICES,04/23/15,04/23/15,FOOD & BEVERAGE,516.90,2015,AP,Accounts payable,E0289399,DAIOHS FIRST CHOICE COFFEE SERVICES
,OFFICE OF THE MAJORITY WHIP,2015Q2,SUPPLIES AND MATERIALS,06-12,FIRST CHOICE COFFEE SERVICES,06/09/15,06/09/15,FOOD & BEVERAGE,588.35,2015,AP,Accounts payable,E0289404,FIRST CHOICE COFFEE SERVICES
,OFFICE OF THE MAJORITY WHIP,2015Q2,SUPPLIES AND MATERIALS,06-12,FIRST CHOICE COFFEE SERVICES,03/09/15,03/09/15,FOOD & BEVERAGE,998.19,2015,AP,Accounts payable,E0289413,FIRST CHOICE COFFEE SERVICES
,OFFICE OF THE MAJORITY WHIP,2015Q2,SUPPLIES AND MATERIALS,06-12,FIRST CHOICE COFFEE SERVICES,04/02/15,04/02/15,FOOD & BEVERAGE,196.95,2015,AP,Accounts payable,E0289417,FIRST CHOICE COFFEE SERVICES
,OFFICE OF THE MAJORITY WHIP,2015Q2,SUPPLIES AND MATERIALS,06-19,FIRST CHOICE COFFEE SERVICES,06/16/15,06/16/15,FOOD & BEVERAGE,85.00,2015,AP,Accounts payable,E0291843,FIRST CHOICE COFFEE SERVICES
,OFFICE OF THE MAJORITY WHIP,2015Q2,SUPPLIES AND MATERIALS,06-19,FIRST CHOICE COFFEE SERVICES,06/16/15,06/16/15,FOOD & BEVERAGE,"1,140.20",2015,AP,Accounts payable,E0291866,FIRST CHOICE COFFEE SERVICES
,OFFICE OF THE MAJORITY WHIP,2015Q2,TRAVEL,04-03,"REISER, MARTIN G",10/14/14,11/07/14,TAXI/PARKING/TOLLS,31.16,2014,AP,Accounts payable,E0263426,"REISER, MARTIN G"
,OFFICE OF THE MAJORITY WHIP,2015Q2,SUPPLIES AND MATERIALS,04-29,BLOOMBERG FINANCE LP,01/01/15,12/31/15,PUBLICATIONS/REFERENCE MAT'L,"5,850.00",2014,AP,Accounts payable,E0273410,BLOOMBERG FINANCE LP
,OFFICE OF THE MINORITY WHIP,2015Q2,PERSONNEL COMPENSATION,"","ABOUCHAR, KEITH S",04/01/15,06/30/15,SENIOR POLICY ADVISOR,"35,000.01",2015,"","","","ABOUCHAR, KEITH S"
,OFFICE OF THE MINORITY WHIP,2015Q2,PERSONNEL COMPENSATION,"","AVILES,DANIELLE R",04/01/15,06/30/15,FLOOR ASSISTANT,"15,000.00",2015,"","","","AVILES,DANIELLE R"
,OFFICE OF THE MINORITY WHIP,2015Q2,PERSONNEL COMPENSATION,"","COBIA, LINDSEY G",04/01/15,06/30/15,EXECUTIVE ASST OFFICE MANAGER,"11,250.00",2015,"","","","COBIA, LINDSEY G"
,OFFICE OF THE MINORITY WHIP,2015Q2,PERSONNEL COMPENSATION,"","COLLINS, MICHAEL E",04/01/15,06/30/15,CHIEF DEPUTY WHIP,"10,625.01",2015,"","","","COLLINS, MICHAEL E"
,OFFICE OF THE MINORITY WHIP,2015Q2,PERSONNEL COMPENSATION,"","CORTINA,JOSEPH B",04/01/15,06/30/15,STAFF ASSISTANT,"6,249.99",2015,"","","","CORTINA,JOSEPH B"
,OFFICE OF THE MINORITY WHIP,2015Q2,PERSONNEL COMPENSATION,"","CORTINA,JOSEPH B",03/01/15,05/31/15,STAFF ASSISTANT (OVERTIME),"1,496.38",2015,"","","","CORTINA,JOSEPH B"
,OFFICE OF THE MINORITY WHIP,2015Q2,PERSONNEL COMPENSATION,"","COVEY-BRANDT, ALEXIS",04/01/15,06/30/15,CHIEF OF STAFF,"43,125.00",2015,"","","","COVEY-BRANDT, ALEXIS"
,OFFICE OF THE MINORITY WHIP,2015Q2,PERSONNEL COMPENSATION,"","DWYER, STEPHEN",04/01/15,06/30/15,DIGITAL DIR & POLICY ADV,"14,750.01",2015,"","","","DWYER, STEPHEN"
,OFFICE OF THE MINORITY WHIP,2015Q2,PERSONNEL COMPENSATION,"","FRY,COURTNEY",04/01/15,06/30/15,DEP OUTREACH DIR & MEM SER ADV,"26,250.00",2015,"","","","FRY,COURTNEY"
,OFFICE OF THE MINORITY WHIP,2015Q2,PERSONNEL COMPENSATION,"","GOFF,SHUWANZA R",04/01/15,06/30/15,FLOOR DIRECTOR,"26,250.00",2015,"","","","GOFF,SHUWANZA R"
,OFFICE OF THE MINORITY WHIP,2015Q2,PERSONNEL COMPENSATION,"","GRANT,KATHRYN L",04/01/15,06/30/15,COMM DIR AND SR ADVISOR,"31,250.01",2015,"","","","GRANT,KATHRYN L"
,OFFICE OF THE MINORITY WHIP,2015Q2,PERSONNEL COMPENSATION,"","LEUSCHEN, JAMES P",04/01/15,06/30/15,SENIOR POLICY ADVISOR,"35,000.01",2015,"","","","LEUSCHEN, JAMES P"
,OFFICE OF THE MINORITY WHIP,2015Q2,PERSONNEL COMPENSATION,"","MACDONALD,CHARLENE",04/01/15,06/30/15,SENIOR POLICY ADVISOR,"30,000.00",2015,"","","","MACDONALD,CHARLENE"
,OFFICE OF THE MINORITY WHIP,2015Q2,PERSONNEL COMPENSATION,"","MAHR,THOMAS",04/01/15,06/30/15,POLICY DIRECTOR,"39,999.99",2015,"","","","MAHR,THOMAS"
,OFFICE OF THE MINORITY WHIP,2015Q2,PERSONNEL COMPENSATION,"","MARTINEZ, JAVIER D",04/01/15,06/30/15,DEP DIR OF MBR SERV & OUTR ADV,"18,750.00",2015,"","","","MARTINEZ, JAVIER D"
,OFFICE OF THE MINORITY WHIP,2015Q2,PERSONNEL COMPENSATION,"","MITTLER,MICHELLE",04/01/15,06/30/15,DIR OF SCHEDLNG & SPEC EVENTS,"17,499.99",2015,"","","","MITTLER,MICHELLE"
,OFFICE OF THE MINORITY WHIP,2015Q2,PERSONNEL COMPENSATION,"","REPKO,MARY F",04/01/15,06/30/15,SENIOR POLICY ADVISOR,"35,000.01",2015,"","","","REPKO,MARY F"
,OFFICE OF THE MINORITY WHIP,2015Q2,PERSONNEL COMPENSATION,"","ROMICK, BRIAN",04/01/15,06/30/15,WHIP DIR AND SENIOR ADVISOR,"42,500.01",2015,"","","","ROMICK, BRIAN"
,OFFICE OF THE MINORITY WHIP,2015Q2,PERSONNEL COMPENSATION,"","ROWE,DEBORAH M",04/01/15,06/30/15,STAFF ASSISTANT,"6,249.99",2015,"","","","ROWE,DEBORAH M"
,OFFICE OF THE MINORITY WHIP,2015Q2,PERSONNEL COMPENSATION,"","ROWE,DEBORAH M",03/01/15,05/31/15,STAFF ASSISTANT (OVERTIME),"2,650.21",2015,"","","","ROWE,DEBORAH M"
,OFFICE OF THE MINORITY WHIP,2015Q2,PERSONNEL COMPENSATION,"","SAEZ,MARIEL S",04/01/15,06/30/15,PRESS SECRETARY,"17,250.00",2015,"","","","SAEZ,MARIEL S"
,OFFICE OF THE MINORITY WHIP,2015Q2,PERSONNEL COMPENSATION,"","SALAZAR, RAYMOND J",04/01/15,06/30/15,SPECIAL ASSISTANT,"11,250.00",2015,"","","","SALAZAR, RAYMOND J"
,OFFICE OF THE MINORITY WHIP,2015Q2,PERSONNEL COMPENSATION,"","SHOTT,DANIEL",04/01/15,06/30/15,SENIOR FLOOR ASSISTANT,"18,750.00",2015,"","","","SHOTT,DANIEL"
,OFFICE OF THE MINORITY WHIP,2015Q2,PERSONNEL COMPENSATION,"","SILVERBERG,DANIEL I",04/01/15,06/30/15,SENIOR POLICY ADVISOR,"17,750.01",2015,"","","","SILVERBERG,DANIEL I"
,OFFICE OF THE MINORITY WHIP,2015Q2,PERSONNEL COMPENSATION,"","VALES,TARA J",04/01/15,06/30/15,PRESS AND RESEARCH ASSISTANT,"8,750.01",2015,"","","","VALES,TARA J"
,OFFICE OF THE MINORITY WHIP,2015Q2,PERSONNEL COMPENSATION,"","VEAL,LATOYA S",04/01/15,06/30/15,MARYLAND PRESS SECRETARY,"12,249.99",2015,"","","","VEAL,LATOYA S"
,OFFICE OF THE MINORITY WHIP,2015Q2,PERSONNEL COMPENSATION,"","WEISSMANN, ADAM",04/01/15,06/30/15,SPEECHWRITER,"18,750.00",2015,"","","","WEISSMANN, ADAM"
,OFFICE OF THE MINORITY WHIP,2015Q2,TRAVEL,05-11,"ROWE, DEBORAH M",04/16/15,04/16/15,TAXI/PARKING/TOLLS,10.15,2015,AP,Accounts payable,E0277318,"ROWE, DEBORAH M"
,OFFICE OF THE MINORITY WHIP,2015Q2,TRAVEL,05-11,"AVILES,DANIELLE R",04/30/15,04/30/15,TAXI/PARKING/TOLLS,15.00,2015,AP,Accounts payable,E0277320,"AVILES,DANIELLE R"
,OFFICE OF THE MINORITY WHIP,2015Q2,TRAVEL,05-11,"COBIA, LINDSEY G",04/30/15,04/30/15,TAXI/PARKING/TOLLS,16.00,2015,AP,Accounts payable,E0277324,"COBIA, LINDSEY G"
,OFFICE OF THE MINORITY WHIP,2015Q2,TRAVEL,05-11,"ROWE, DEBORAH M",03/26/15,03/26/15,TAXI/PARKING/TOLLS,10.69,2015,AP,Accounts payable,E0277326,"ROWE, DEBORAH M"
,OFFICE OF THE MINORITY WHIP,2015Q2,TRAVEL,05-11,"COBIA, LINDSEY G",04/23/15,04/23/15,TAXI/PARKING/TOLLS,8.18,2015,AP,Accounts payable,E0277327,"COBIA, LINDSEY G"
,OFFICE OF THE MINORITY WHIP,2015Q2,TRAVEL,05-11,"ROWE, DEBORAH M",03/19/15,03/19/15,TAXI/PARKING/TOLLS,10.29,2015,AP,Accounts payable,E0277330,"ROWE, DEBORAH M"
,OFFICE OF THE MINORITY WHIP,2015Q2,TRAVEL,05-11,"ROWE, DEBORAH M",04/23/15,04/23/15,TAXI/PARKING/TOLLS,9.96,2015,AP,Accounts payable,E0277332,"ROWE, DEBORAH M"
,OFFICE OF THE MINORITY WHIP,2015Q2,TRAVEL,05-11,"ROWE, DEBORAH M",04/30/15,04/30/15,TAXI/PARKING/TOLLS,10.07,2015,AP,Accounts payable,E0277333,"ROWE, DEBORAH M"
,OFFICE OF THE MINORITY WHIP,2015Q2,TRAVEL,05-11,"COBIA, LINDSEY G",05/07/15,05/07/15,TAXI/PARKING/TOLLS,5.75,2015,AP,Accounts payable,E0277340,"COBIA, LINDSEY G"
,OFFICE OF THE MINORITY WHIP,2015Q2,TRAVEL,05-11,"AVILES,DANIELLE R",05/01/15,05/01/15,TAXI/PARKING/TOLLS,13.00,2015,AP,Accounts payable,E0277347,"AVILES,DANIELLE R"
,OFFICE OF THE MINORITY WHIP,2015Q2,TRAVEL,05-11,"CORTINA, JOSEPH B",04/30/15,04/30/15,TAXI/PARKING/TOLLS,27.15,2015,AP,Accounts payable,E0277350,"CORTINA, JOSEPH B"
,OFFICE OF THE MINORITY WHIP,2015Q2,TRAVEL,05-11,"CORTINA, JOSEPH B",05/01/15,05/01/15,TAXI/PARKING/TOLLS,68.00,2015,AP,Accounts payable,E0277351,"CORTINA, JOSEPH B"
,OFFICE OF THE MINORITY WHIP,2015Q2,TRAVEL,06-08,"MITTLER,MICHELLE",06/02/15,06/02/15,TAXI/PARKING/TOLLS,11.12,2015,AP,Accounts payable,E0287081,"MITTLER,MICHELLE"
,OFFICE OF THE MINORITY WHIP,2015Q2,TRAVEL,06-08,"COBIA, LINDSEY G",06/03/15,06/03/15,TAXI/PARKING/TOLLS,5.74,2015,AP,Accounts payable,E0287082,"COBIA, LINDSEY G"
,OFFICE OF THE MINORITY WHIP,2015Q2,TRAVEL,06-08,"COBIA, LINDSEY G",05/14/15,05/14/15,TAXI/PARKING/TOLLS,5.66,2015,AP,Accounts payable,E0287083,"COBIA, LINDSEY G"
,OFFICE OF THE MINORITY WHIP,2015Q2,TRAVEL,06-08,"COBIA, LINDSEY G",06/03/15,06/03/15,TAXI/PARKING/TOLLS,6.55,2015,AP,Accounts payable,E0287085,"COBIA, LINDSEY G"
,OFFICE OF THE MINORITY WHIP,2015Q2,TRAVEL,06-08,"ROWE, DEBORAH M",05/14/15,05/14/15,TAXI/PARKING/TOLLS,10.18,2015,AP,Accounts payable,E0287086,"ROWE, DEBORAH M"
,OFFICE OF THE MINORITY WHIP,2015Q2,TRAVEL,06-08,"CORTINA, JOSEPH B",06/04/15,06/04/15,TAXI/PARKING/TOLLS,22.34,2015,AP,Accounts payable,E0287087,"CORTINA, JOSEPH B"
,OFFICE OF THE MINORITY WHIP,2015Q2,TRAVEL,06-08,"AVILES,DANIELLE R",06/03/15,06/03/15,TAXI/PARKING/TOLLS,15.00,2015,AP,Accounts payable,E0287088,"AVILES,DANIELLE R"
,OFFICE OF THE MINORITY WHIP,2015Q2,TRAVEL,06-08,"AVILES,DANIELLE R",06/03/15,06/03/15,TAXI/PARKING/TOLLS,17.00,2015,AP,Accounts payable,E0287089,"AVILES,DANIELLE R"
,OFFICE OF THE MINORITY WHIP,2015Q2,TRAVEL,06-10,"COBIA, LINDSEY G",06/04/15,06/04/15,TAXI/PARKING/TOLLS,9.02,2015,AP,Accounts payable,E0287091,"COBIA, LINDSEY G"
,OFFICE OF THE MINORITY WHIP,2015Q2,TRAVEL,06-10,"COBIA, LINDSEY G",06/04/15,06/04/15,TAXI/PARKING/TOLLS,6.82,2015,AP,Accounts payable,E0287093,"COBIA, LINDSEY G"
,OFFICE OF THE MINORITY WHIP,2015Q2,TRAVEL,06-30,"AVILES,DANIELLE R",06/11/15,06/11/15,TAXI/PARKING/TOLLS,13.00,2015,AP,Accounts payable,E0294766,"AVILES,DANIELLE R"
,OFFICE OF THE MINORITY WHIP,2015Q2,TRAVEL,06-30,"ROWE, DEBORAH M",06/04/15,06/04/15,TAXI/PARKING/TOLLS,12.35,2015,AP,Accounts payable,E0294767,"ROWE, DEBORAH M"
,OFFICE OF THE MINORITY WHIP,2015Q2,TRAVEL,06-30,SLIVERBERG DANIEL L,03/12/15,03/12/15,TAXI/PARKING/TOLLS,11.19,2015,AP,Accounts payable,E0294768,SLIVERBERG DANIEL L
,OFFICE OF THE MINORITY WHIP,2015Q2,TRAVEL,06-30,"ROWE, DEBORAH M",06/11/15,06/11/15,TAXI/PARKING/TOLLS,10.30,2015,AP,Accounts payable,E0294782,"ROWE, DEBORAH M"
,OFFICE OF THE MINORITY WHIP,2015Q2,TRAVEL,06-30,SLIVERBERG DANIEL L,05/04/15,05/04/15,TAXI/PARKING/TOLLS,13.87,2015,AP,Accounts payable,E0294783,SLIVERBERG DANIEL L
,OFFICE OF THE MINORITY WHIP,2015Q2,TRAVEL,06-30,"COBIA, LINDSEY G",06/26/15,06/26/15,TAXI/PARKING/TOLLS,7.16,2015,AP,Accounts payable,E0294788,"COBIA, LINDSEY G"
,OFFICE OF THE MINORITY WHIP,2015Q2,TRAVEL,06-30,SLIVERBERG DANIEL L,03/27/15,03/27/15,TAXI/PARKING/TOLLS,9.64,2015,AP,Accounts payable,E0294795,SLIVERBERG DANIEL L
,OFFICE OF THE MINORITY WHIP,2015Q2,TRAVEL,06-30,"COBIA, LINDSEY G",06/18/15,06/18/15,TAXI/PARKING/TOLLS,11.36,2015,AP,Accounts payable,E0294796,"COBIA, LINDSEY G"
,OFFICE OF THE MINORITY WHIP,2015Q2,TRAVEL,06-30,"COBIA, LINDSEY G",06/24/15,06/24/15,TAXI/PARKING/TOLLS,9.07,2015,AP,Accounts payable,E0294797,"COBIA, LINDSEY G"
,OFFICE OF THE MINORITY WHIP,2015Q2,TRAVEL,06-30,SLIVERBERG DANIEL L,05/20/15,05/20/15,TAXI/PARKING/TOLLS,11.17,2015,AP,Accounts payable,E0294803,SLIVERBERG DANIEL L
,OFFICE OF THE MINORITY WHIP,2015Q2,TRAVEL,06-30,"ROWE, DEBORAH M",06/25/15,06/25/15,TAXI/PARKING/TOLLS,9.79,2015,AP,Accounts payable,E0294811,"ROWE, DEBORAH M"
,OFFICE OF THE MINORITY WHIP,2015Q2,TRAVEL,06-30,"COBIA, LINDSEY G",06/19/15,06/19/15,TAXI/PARKING/TOLLS,13.15,2015,AP,Accounts payable,E0294812,"COBIA, LINDSEY G"
,OFFICE OF THE MINORITY WHIP,2015Q2,TRAVEL,06-30,SLIVERBERG DANIEL L,06/11/15,06/11/15,TAXI/PARKING/TOLLS,14.99,2015,AP,Accounts payable,E0294823,SLIVERBERG DANIEL L
,OFFICE OF THE MINORITY WHIP,2015Q2,TRAVEL,06-30,"AVILES,DANIELLE R",06/10/15,06/10/15,TAXI/PARKING/TOLLS,14.00,2015,AP,Accounts payable,E0294827,"AVILES,DANIELLE R"
,OFFICE OF THE MINORITY WHIP,2015Q2,TRAVEL,06-30,"ROWE, DEBORAH M",06/18/15,06/18/15,TAXI/PARKING/TOLLS,9.87,2015,AP,Accounts payable,E0294831,"ROWE, DEBORAH M"
,DEMOCRATIC CAUCUS,2015Q2,PERSONNEL COMPENSATION,"","ALVI,HINA R",04/01/15,06/30/15,SHARED EMPLOYEE,"7,500.00",2015,"","","","ALVI,HINA R"
,DEMOCRATIC CAUCUS,2015Q2,PERSONNEL COMPENSATION,"","ATTAPIT,SIRAT",04/01/15,06/30/15,SENIOR POLICY COUNSEL,"16,749.99",2015,"","","","ATTAPIT,SIRAT"
,DEMOCRATIC CAUCUS,2015Q2,PERSONNEL COMPENSATION,"","AVERY,SAMUEL R",04/01/15,06/30/15,PRESS ASSISTANT,"10,125.00",2015,"","","","AVERY,SAMUEL R"
,DEMOCRATIC CAUCUS,2015Q2,PERSONNEL COMPENSATION,"","BACKEMEYER,COURTNEY G",04/01/15,06/30/15,COMMUNICTNS DIR TO VICE CHRMN,"8,000.01",2015,"","","","BACKEMEYER,COURTNEY G"
,DEMOCRATIC CAUCUS,2015Q2,PERSONNEL COMPENSATION,"","CARRILLO,MANUEL J",04/01/15,06/30/15,OPERATIONS AND EVENTS COOR,"14,250.00",2015,"","","","CARRILLO,MANUEL J"
,DEMOCRATIC CAUCUS,2015Q2,PERSONNEL COMPENSATION,"","CASEY, KEVIN",04/01/15,06/30/15,POLICY DIRECTOR / VICE CHAIR,"21,750.00",2015,"","","","CASEY, KEVIN"
,DEMOCRATIC CAUCUS,2015Q2,PERSONNEL COMPENSATION,"","DAVALOS,LETICIA M",04/01/15,06/30/15,ADVISOR FOR MBR. SERVICES,"10,500.00",2015,"","","","DAVALOS,LETICIA M"
,DEMOCRATIC CAUCUS,2015Q2,PERSONNEL COMPENSATION,"","DELANEY, ERIC L",04/01/15,06/30/15,SR. ADVISOR FOR MBR SERV,"13,500.00",2015,"","","","DELANEY, ERIC L"
,DEMOCRATIC CAUCUS,2015Q2,PERSONNEL COMPENSATION,"","HANDVERGER,MATTHEW E",04/01/15,06/30/15,NEW MEDIA PRESS SECRETARY,"10,749.99",2015,"","","","HANDVERGER,MATTHEW E"
,DEMOCRATIC CAUCUS,2015Q2,PERSONNEL COMPENSATION,"","HERRERA,DANIEL",04/01/15,06/15/15,COMMUNICATIONS DIRECTOR,"17,450.01",2015,"","","","HERRERA,DANIEL"
,DEMOCRATIC CAUCUS,2015Q2,PERSONNEL COMPENSATION,"","HERRERA,DANIEL",06/01/15,06/15/15,COMMUNICATIONS DIRECTOR (OTHER COMPENSATION),"3,877.78",2015,"","","","HERRERA,DANIEL"
,DEMOCRATIC CAUCUS,2015Q2,PERSONNEL COMPENSATION,"","HORI,CHERYL L",03/01/15,03/31/15,STAFF ASSISTANT (OVERTIME),378.60,2015,"","","","HORI,CHERYL L"
,DEMOCRATIC CAUCUS,2015Q2,PERSONNEL COMPENSATION,"","HORI,CHERYL L",03/01/15,03/31/15,STAFF ASSISTANT (OTHER COMPENSATION),427.78,2015,"","","","HORI,CHERYL L"
,DEMOCRATIC CAUCUS,2015Q2,PERSONNEL COMPENSATION,"","KEATING, KATHERINE E",04/01/15,06/30/15,SHARED EMPLOYEE,"18,999.99",2015,"","","","KEATING, KATHERINE E"
,DEMOCRATIC CAUCUS,2015Q2,PERSONNEL COMPENSATION,"","MARGOWSKY,MIRANDA K",04/01/15,06/30/15,PRESS SECRETARY,"12,500.01",2015,"","","","MARGOWSKY,MIRANDA K"
,DEMOCRATIC CAUCUS,2015Q2,PERSONNEL COMPENSATION,"","MARTINEZ,GRISELLA M",04/01/15,06/30/15,POLICY DIRECTOR,"20,250.00",2015,"","","","MARTINEZ,GRISELLA M"
,DEMOCRATIC CAUCUS,2015Q2,PERSONNEL COMPENSATION,"","MCCLUSKIE,SEAN E",04/01/15,06/30/15,CHIEF OF STAFF,"42,825.00",2015,"","","","MCCLUSKIE,SEAN E"
,DEMOCRATIC CAUCUS,2015Q2,PERSONNEL COMPENSATION,"","NORIEGA,EMILY J",05/18/15,06/30/15,STAFF ASSISTANT,"3,344.44",2015,"","","","NORIEGA,EMILY J"
,DEMOCRATIC CAUCUS,2015Q2,PERSONNEL COMPENSATION,"","NORIEGA,EMILY J",05/18/15,05/31/15,STAFF ASSISTANT (OVERTIME),146.39,2015,"","","","NORIEGA,EMILY J"
,DEMOCRATIC CAUCUS,2015Q2,PERSONNEL COMPENSATION,"","PEREZ-SANCHEZ,NOEL",04/01/15,06/30/15,ADVISOR FOR MBR. SERVICES,"11,250.00",2015,"","","","PEREZ-SANCHEZ,NOEL"
,DEMOCRATIC CAUCUS,2015Q2,PERSONNEL COMPENSATION,"","RODRIGUEZ-CIAMPOLI,FABIOLA",04/01/15,06/30/15,EXECUTIVE DIRECTOR,"36,249.99",2015,"","","","RODRIGUEZ-CIAMPOLI,FABIOLA"
,DEMOCRATIC CAUCUS,2015Q2,PERSONNEL COMPENSATION,"","SACHSE,ANDREW M",04/01/15,06/30/15,STAFF ASSISTANT,"8,750.01",2015,"","","","SACHSE,ANDREW M"
,DEMOCRATIC CAUCUS,2015Q2,PERSONNEL COMPENSATION,"","SHARMA,MOH R",04/01/15,06/30/15,POLICY ADVISOR,"12,262.50",2015,"","","","SHARMA,MOH R"
,DEMOCRATIC CAUCUS,2015Q2,PERSONNEL COMPENSATION,"","SHEFFEY,TRE'SHONDA S",05/27/15,06/30/15,STAFF ASSISTANT,"2,644.44",2015,"","","","SHEFFEY,TRE'SHONDA S"
,DEMOCRATIC CAUCUS,2015Q2,PERSONNEL COMPENSATION,"","SHLOMO,YACOV T",04/01/15,05/08/15,STAFF ASSISTANT,"2,955.55",2015,"","","","SHLOMO,YACOV T"
,DEMOCRATIC CAUCUS,2015Q2,PERSONNEL COMPENSATION,"","SHLOMO,YACOV T",03/01/15,04/30/15,STAFF ASSISTANT (OVERTIME),696.63,2015,"","","","SHLOMO,YACOV T"
,DEMOCRATIC CAUCUS,2015Q2,PERSONNEL COMPENSATION,"","SHLOMO,YACOV T",05/01/15,05/08/15,STAFF ASSISTANT (OTHER COMPENSATION),622.22,2015,"","","","SHLOMO,YACOV T"
,DEMOCRATIC CAUCUS,2015Q2,PERSONNEL COMPENSATION,"","WOODRUM,JEREMY S",04/01/15,06/30/15,"LEGISLATIVE DIR., VICE CHAIR","10,749.99",2015,"","","","WOODRUM,JEREMY S"
,DEMOCRATIC CAUCUS,2015Q2,"RENT, COMMUNICATION, UTILITIES",04-10,SHERATON SOCIETY HILL HOTEL,01/27/15,01/30/15,EQUIP RENTAL (EFF 1/3/03),"57,452.30",2015,AP,Accounts payable,00784958,SHERATON SOCIETY HILL HOTEL
,DEMOCRATIC CAUCUS,2015Q2,"RENT, COMMUNICATION, UTILITIES",04-17,CITI PCARD-CAPITOL HOST,03/01/15,03/28/15,TEMPORARY SPACE RENTAL,250.00,2015,AP,Accounts payable,00789547,CITI PCARD-CAPITOL HOST
,DEMOCRATIC CAUCUS,2015Q2,"RENT, COMMUNICATION, UTILITIES",05-08,SHERATON SOCIETY HILL HOTEL,01/27/15,01/30/15,EQUIP RENTAL (EFF 1/3/03),"-57,452.30",2015,AP,Accounts payable,00790744,SHERATON SOCIETY HILL HOTEL
,DEMOCRATIC CAUCUS,2015Q2,"RENT, COMMUNICATION, UTILITIES",05-19,CITI PCARD-CAPITOL HOST,03/29/15,04/28/15,TEMPORARY SPACE RENTAL,250.00,2015,AP,Accounts payable,00795289,CITI PCARD-CAPITOL HOST
,DEMOCRATIC CAUCUS,2015Q2,"RENT, COMMUNICATION, UTILITIES",05-19,CITI PCARD-USPS,03/29/15,04/28/15,POSTAGE / COURIER / BOX RENTAL,98.00,2015,AP,Accounts payable,00795289,CITI PCARD-USPS
,DEMOCRATIC CAUCUS,2015Q2,"RENT, COMMUNICATION, UTILITIES",06-18,CITI PCARD-CAPITOL HOST (RIDGEWEL,04/29/15,05/28/15,TEMPORARY SPACE RENTAL,250.00,2015,AP,Accounts payable,00800857,CITI PCARD-CAPITOL HOST (RIDGEWEL
,DEMOCRATIC CAUCUS,2015Q2,OTHER SERVICES,05-19,CITI PCARD-CLASSICLEANERS,03/29/15,04/28/15,LAUNDRY SERVICES,41.98,2015,AP,Accounts payable,00795289,CITI PCARD-CLASSICLEANERS
,DEMOCRATIC CAUCUS,2015Q2,OTHER SERVICES,06-18,CITI PCARD-CLASSICLEANERS-LONGWOR,04/29/15,05/28/15,LAUNDRY SERVICES,83.96,2015,AP,Accounts payable,00800857,CITI PCARD-CLASSICLEANERS-LONGWOR
,DEMOCRATIC CAUCUS,2015Q2,SUPPLIES AND MATERIALS,04-10,SHERATON SOCIETY HILL HOTEL,01/28/15,01/30/15,FOOD & BEVERAGE,"1,833.47",2015,AP,Accounts payable,00784957,SHERATON SOCIETY HILL HOTEL
,DEMOCRATIC CAUCUS,2015Q2,SUPPLIES AND MATERIALS,04-17,"CITI PCARD-ADOBE SYSTEMS, INC",03/01/15,03/28/15,SOFTWARE LESS THAN $500,52.86,2015,AP,Accounts payable,00789547,"CITI PCARD-ADOBE SYSTEMS, INC"
,DEMOCRATIC CAUCUS,2015Q2,SUPPLIES AND MATERIALS,04-17,CITI PCARD-BETHESDA BAGELS,03/01/15,03/28/15,FOOD & BEVERAGE,"2,854.04",2015,AP,Accounts payable,00789547,CITI PCARD-BETHESDA BAGELS
,DEMOCRATIC CAUCUS,2015Q2,SUPPLIES AND MATERIALS,04-17,CITI PCARD-HARRIS TEETER,03/01/15,03/28/15,FOOD & BEVERAGE,"1,023.95",2015,AP,Accounts payable,00789547,CITI PCARD-HARRIS TEETER
,DEMOCRATIC CAUCUS,2015Q2,SUPPLIES AND MATERIALS,04-17,CITI PCARD-LA TIMES SUBSCRIPTION,03/01/15,03/28/15,PUBLICATIONS/REFERENCE MAT'L,11.92,2015,AP,Accounts payable,00789547,CITI PCARD-LA TIMES SUBSCRIPTION
,DEMOCRATIC CAUCUS,2015Q2,SUPPLIES AND MATERIALS,04-17,CITI PCARD-MAILCHIMP,03/01/15,03/28/15,PUBLICATIONS/REFERENCE MAT'L,30.00,2015,AP,Accounts payable,00789547,CITI PCARD-MAILCHIMP
,DEMOCRATIC CAUCUS,2015Q2,SUPPLIES AND MATERIALS,05-06,DEER PARK,02/28/15,02/28/15,WATER,29.99,2015,AP,Accounts payable,00790561,DEER PARK
,DEMOCRATIC CAUCUS,2015Q2,SUPPLIES AND MATERIALS,05-13,DEER PARK,03/31/15,03/31/15,WATER,29.99,2015,AP,Accounts payable,00790936,DEER PARK
,DEMOCRATIC CAUCUS,2015Q2,SUPPLIES AND MATERIALS,05-19,CITI PCARD-ADOBE CREATIVE CLOUD,03/29/15,04/28/15,SOFTWARE LESS THAN $500,52.86,2015,AP,Accounts payable,00795289,CITI PCARD-ADOBE CREATIVE CLOUD
,DEMOCRATIC CAUCUS,2015Q2,SUPPLIES AND MATERIALS,05-19,CITI PCARD-BETHESDA BAGELS,03/29/15,04/28/15,FOOD & BEVERAGE,810.29,2015,AP,Accounts payable,00795289,CITI PCARD-BETHESDA BAGELS
,DEMOCRATIC CAUCUS,2015Q2,SUPPLIES AND MATERIALS,05-19,CITI PCARD-HARRIS TEETER,03/29/15,04/28/15,FOOD & BEVERAGE,633.19,2015,AP,Accounts payable,00795289,CITI PCARD-HARRIS TEETER
,DEMOCRATIC CAUCUS,2015Q2,SUPPLIES AND MATERIALS,05-19,CITI PCARD-IN CATERING BY AVALON,03/29/15,04/28/15,FOOD & BEVERAGE,"3,142.79",2015,AP,Accounts payable,00795289,CITI PCARD-IN CATERING BY AVALON
,DEMOCRATIC CAUCUS,2015Q2,SUPPLIES AND MATERIALS,05-19,CITI PCARD-LA TIMES SUBSCRIPTION,03/29/15,04/28/15,PUBLICATIONS/REFERENCE MAT'L,11.96,2015,AP,Accounts payable,00795289,CITI PCARD-LA TIMES SUBSCRIPTION
,DEMOCRATIC CAUCUS,2015Q2,SUPPLIES AND MATERIALS,05-19,CITI PCARD-MAILCHIMP,03/29/15,04/28/15,PUBLICATIONS/REFERENCE MAT'L,30.00,2015,AP,Accounts payable,00795289,CITI PCARD-MAILCHIMP
,DEMOCRATIC CAUCUS,2015Q2,SUPPLIES AND MATERIALS,05-19,CITI PCARD-ONLINECOUNTDOWNS.COM,03/29/15,04/28/15,SOFTWARE LESS THAN $500,39.99,2015,AP,Accounts payable,00795289,CITI PCARD-ONLINECOUNTDOWNS.COM
,DEMOCRATIC CAUCUS,2015Q2,SUPPLIES AND MATERIALS,05-29,CATERING BY AVALON INC,04/14/15,04/14/15,FOOD & BEVERAGE,"6,336.00",2015,AP,Accounts payable,E0277607,CATERING BY AVALON INC
,DEMOCRATIC CAUCUS,2015Q2,SUPPLIES AND MATERIALS,06-16,DEER PARK,04/30/15,04/30/15,WATER,29.99,2015,AP,Accounts payable,00796612,DEER PARK
,DEMOCRATIC CAUCUS,2015Q2,SUPPLIES AND MATERIALS,06-18,CITI PCARD-BETHESDA BAGELS OF DUP,04/29/15,05/28/15,FOOD & BEVERAGE,"2,184.51",2015,AP,Accounts payable,00800857,CITI PCARD-BETHESDA BAGELS OF DUP
,DEMOCRATIC CAUCUS,2015Q2,SUPPLIES AND MATERIALS,06-18,CITI PCARD-EL TAMARINDO RESTAURAN,04/29/15,05/28/15,FOOD & BEVERAGE,265.98,2015,AP,Accounts payable,00800857,CITI PCARD-EL TAMARINDO RESTAURAN
,DEMOCRATIC CAUCUS,2015Q2,SUPPLIES AND MATERIALS,06-18,CITI PCARD-HARRIS TEETER,04/29/15,05/28/15,FOOD & BEVERAGE,925.25,2015,AP,Accounts payable,00800857,CITI PCARD-HARRIS TEETER
,DEMOCRATIC CAUCUS,2015Q2,SUPPLIES AND MATERIALS,06-18,CITI PCARD-IN CATERING BY AVALON,04/29/15,05/28/15,FOOD & BEVERAGE,"2,016.74",2015,AP,Accounts payable,00800857,CITI PCARD-IN CATERING BY AVALON
,DEMOCRATIC CAUCUS,2015Q2,SUPPLIES AND MATERIALS,06-18,CITI PCARD-LA TIMES SUBSCRIPTION,04/29/15,05/28/15,PUBLICATIONS/REFERENCE MAT'L,11.96,2015,AP,Accounts payable,00800857,CITI PCARD-LA TIMES SUBSCRIPTION
,DEMOCRATIC CAUCUS,2015Q2,SUPPLIES AND MATERIALS,06-18,CITI PCARD-MAILCHIMP,04/29/15,05/28/15,PUBLICATIONS/REFERENCE MAT'L,30.00,2015,AP,Accounts payable,00800857,CITI PCARD-MAILCHIMP
,DEMOCRATIC CAUCUS,2015Q2,SUPPLIES AND MATERIALS,06-19,DEER PARK,05/31/15,05/31/15,WATER,93.74,2015,AP,Accounts payable,00800766,DEER PARK
,DEMOCRATIC CAUCUS,2015Q2,SUPPLIES AND MATERIALS,05-19,CITI PCARD-FIREHOOK BAKERY,10/29/14,11/28/14,FOOD & BEVERAGE,82.90,2014,AP,Accounts payable,00795289,CITI PCARD-FIREHOOK BAKERY
,REPUBLICAN CONFERENCE,2015Q2,PERSONNEL COMPENSATION,"","BUCHELI,DANIEL C",06/15/15,06/30/15,SPECIALTY MEDIA PRESS SECRETAR,"2,444.44",2015,"","","","BUCHELI,DANIEL C"
,REPUBLICAN CONFERENCE,2015Q2,PERSONNEL COMPENSATION,"","CROCKER,NICHOLAS L",04/01/15,05/31/15,STAFF ASSISTANT,"5,833.34",2015,"","","","CROCKER,NICHOLAS L"
,REPUBLICAN CONFERENCE,2015Q2,PERSONNEL COMPENSATION,"","CROCKER,NICHOLAS L",06/01/15,06/30/15,MEMBER SERVICES COORDINATOR,"4,416.67",2015,"","","","CROCKER,NICHOLAS L"
,REPUBLICAN CONFERENCE,2015Q2,PERSONNEL COMPENSATION,"","DAINES,ANNE C",04/01/15,05/21/15,FELLOW,"2,125.00",2015,"","","","DAINES,ANNE C"
,REPUBLICAN CONFERENCE,2015Q2,PERSONNEL COMPENSATION,"","DEUTSCH,JEREMY",04/01/15,06/30/15,CHIEF OF STAFF,"30,000.00",2015,"","","","DEUTSCH,JEREMY"
,REPUBLICAN CONFERENCE,2015Q2,PERSONNEL COMPENSATION,"","DUPPLER,MARTHA C",04/01/15,06/30/15,COALITIONS DIRECTOR,"21,249.99",2015,"","","","DUPPLER,MARTHA C"
,REPUBLICAN CONFERENCE,2015Q2,PERSONNEL COMPENSATION,"","FIELD,IAN A",05/18/15,06/30/15,PRESS SECRETARY,"1,791.67",2015,"","","","FIELD,IAN A"
,REPUBLICAN CONFERENCE,2015Q2,PERSONNEL COMPENSATION,"","GAITAN,WADI",04/01/15,05/08/15,PRESS SECRETARY,"6,107.45",2015,"","","","GAITAN,WADI"
,REPUBLICAN CONFERENCE,2015Q2,PERSONNEL COMPENSATION,"","GILSON,LOUISA H",04/01/15,06/30/15,STAFF ASSISTANT,"8,750.01",2015,"","","","GILSON,LOUISA H"
,REPUBLICAN CONFERENCE,2015Q2,PERSONNEL COMPENSATION,"","HALL, MIKAYLA M",05/28/15,06/30/15,SPEECH WRITER,"4,766.66",2015,"","","","HALL, MIKAYLA M"
,REPUBLICAN CONFERENCE,2015Q2,PERSONNEL COMPENSATION,"","HODSON,NATHAN M",04/01/15,06/30/15,DEPUTY CHIEF OF STAFF,"33,249.99",2015,"","","","HODSON,NATHAN M"
,REPUBLICAN CONFERENCE,2015Q2,PERSONNEL COMPENSATION,"","LITMAN,RIVA",04/01/15,06/30/15,COMMUNICATIONS DIRECTOR,"29,000.01",2015,"","","","LITMAN,RIVA"
,REPUBLICAN CONFERENCE,2015Q2,PERSONNEL COMPENSATION,"","MAGALLANES, NICOLAS",04/01/15,06/30/15,SENIOR ADVISOR,"16,340.01",2015,"","","","MAGALLANES, NICOLAS"
,REPUBLICAN CONFERENCE,2015Q2,PERSONNEL COMPENSATION,"","MARK,REBECCA",04/01/15,06/30/15,SR. ADVISOR TECH POLICY/WOMEN,"17,499.99",2015,"","","","MARK,REBECCA"
,REPUBLICAN CONFERENCE,2015Q2,PERSONNEL COMPENSATION,"","MCMULLIN,DAVID E",04/01/15,06/30/15,POLICY DIRECTOR,"32,750.01",2015,"","","","MCMULLIN,DAVID E"
,REPUBLICAN CONFERENCE,2015Q2,PERSONNEL COMPENSATION,"","MURPHY,SHAUGHNESSY P",04/01/15,05/16/15,DIRECTOR OF MEMBER SERVICES,"17,250.00",2015,"","","","MURPHY,SHAUGHNESSY P"
,REPUBLICAN CONFERENCE,2015Q2,PERSONNEL COMPENSATION,"","ROOS,AMBER E",04/01/15,06/30/15,FINANCE ASSISTANT,"2,250.00",2015,"","","","ROOS,AMBER E"
,REPUBLICAN CONFERENCE,2015Q2,PERSONNEL COMPENSATION,"","ROSS, JOHN E",04/01/15,06/30/15,FINANCE DIRECTOR,"1,674.99",2015,"","","","ROSS, JOHN E"
,REPUBLICAN CONFERENCE,2015Q2,PERSONNEL COMPENSATION,"","ROSS,ABIGAIL E",06/01/15,06/30/15,FINANCIAL ASSISTANT,"2,100.00",2015,"","","","ROSS,ABIGAIL E"
,REPUBLICAN CONFERENCE,2015Q2,PERSONNEL COMPENSATION,"","SMENTEK,DAVID",04/01/15,06/30/15,POLICY COORDINATOR,"9,999.99",2015,"","","","SMENTEK,DAVID"
,REPUBLICAN CONFERENCE,2015Q2,PERSONNEL COMPENSATION,"","STEVENS,PAMELA R",04/01/15,06/30/15,DIRECTOR OF MEDIA AFFAIRS,"32,333.33",2015,"","","","STEVENS,PAMELA R"
,REPUBLICAN CONFERENCE,2015Q2,PERSONNEL COMPENSATION,"","SUNDAY,JESSICA M",04/01/15,06/30/15,SCHEDULER,"8,589.99",2015,"","","","SUNDAY,JESSICA M"
,REPUBLICAN CONFERENCE,2015Q2,PERSONNEL COMPENSATION,"","THORNE, DRAY A",04/01/15,06/30/15,SYSTEMS ADMINISTRATOR,"3,000.00",2015,"","","","THORNE, DRAY A"
,REPUBLICAN CONFERENCE,2015Q2,PERSONNEL COMPENSATION,"","WYCKOFF,SORELLE C",04/01/15,05/31/15,COMMUNICATIONS ASSISTANT,"5,833.34",2015,"","","","WYCKOFF,SORELLE C"
,REPUBLICAN CONFERENCE,2015Q2,PERSONNEL COMPENSATION,"","WYCKOFF,SORELLE C",06/01/15,06/30/15,PRESS SECRETARY,"3,416.67",2015,"","","","WYCKOFF,SORELLE C"
,REPUBLICAN CONFERENCE,2015Q2,TRAVEL,05-26,SEAN R PARNELL,04/06/15,04/24/15,CONSULT TRAVEL / RELATED EXP,"4,089.99",2015,AP,Accounts payable,E0282580,SEAN R PARNELL
,REPUBLICAN CONFERENCE,2015Q2,TRAVEL,06-02,SEAN R PARNELL,05/21/15,05/21/15,CONSULT TRAVEL / RELATED EXP,"2,328.30",2015,AP,Accounts payable,E0284740,SEAN R PARNELL
,REPUBLICAN CONFERENCE,2015Q2,TRAVEL,06-11,"LITMAN, RIVA",06/04/15,06/05/15,COMMERCIAL TRANSPORTATION,338.00,2015,AP,Accounts payable,E0288974,"LITMAN, RIVA"
,REPUBLICAN CONFERENCE,2015Q2,TRAVEL,06-11,"LITMAN, RIVA",06/04/15,06/04/15,TRAVEL SUBSISTENCE,28.30,2015,AP,Accounts payable,E0288974,"LITMAN, RIVA"
,REPUBLICAN CONFERENCE,2015Q2,TRAVEL,06-11,"MARK,REBECCA",05/26/15,05/28/15,COMMERCIAL TRANSPORTATION,579.20,2015,AP,Accounts payable,E0288975,"MARK,REBECCA"
,REPUBLICAN CONFERENCE,2015Q2,TRAVEL,06-11,"MARK,REBECCA",06/04/15,06/05/15,COMMERCIAL TRANSPORTATION,272.00,2015,AP,Accounts payable,E0288975,"MARK,REBECCA"
,REPUBLICAN CONFERENCE,2015Q2,TRAVEL,06-11,"MARK,REBECCA",05/26/15,05/28/15,LODGING,201.12,2015,AP,Accounts payable,E0288975,"MARK,REBECCA"
,REPUBLICAN CONFERENCE,2015Q2,TRAVEL,06-11,"MARK,REBECCA",05/26/15,05/28/15,TRAVEL SUBSISTENCE,102.12,2015,AP,Accounts payable,E0288975,"MARK,REBECCA"
,REPUBLICAN CONFERENCE,2015Q2,TRAVEL,06-11,"MARK,REBECCA",06/05/15,06/05/15,TRAVEL SUBSISTENCE,82.43,2015,AP,Accounts payable,E0288975,"MARK,REBECCA"
,REPUBLICAN CONFERENCE,2015Q2,"RENT, COMMUNICATION, UTILITIES",04-13,"HODSON, NATHAN",04/08/15,04/08/15,RECORDING (OUTSIDE),110.00,2015,AP,Accounts payable,E0267351,"HODSON, NATHAN"
,REPUBLICAN CONFERENCE,2015Q2,"RENT, COMMUNICATION, UTILITIES",05-18,COVEREDGE INC,05/08/15,05/08/15,RECORDING (OUTSIDE),"1,125.00",2015,AP,Accounts payable,E0280412,COVEREDGE INC
,REPUBLICAN CONFERENCE,2015Q2,"RENT, COMMUNICATION, UTILITIES",06-16,KATC COMMUNICATIONS,05/31/15,05/31/15,RECORDING (OUTSIDE),300.00,2015,AP,Accounts payable,E0290448,KATC COMMUNICATIONS
,REPUBLICAN CONFERENCE,2015Q2,"RENT, COMMUNICATION, UTILITIES",06-18,CITI PCARD-LENSRENTALS.COM,04/29/15,05/28/15,EQUIP RENTAL (EFF 1/3/03),328.16,2015,AP,Accounts payable,00800857,CITI PCARD-LENSRENTALS.COM
,REPUBLICAN CONFERENCE,2015Q2,PRINTING AND REPRODUCTION,05-19,SHARP ELECTRONICS CORPORATION,01/01/15,04/01/15,PRINTING & REPRODUCTION,444.36,2015,AP,Accounts payable,E0279195,SHARP ELECTRONICS CORPORATION
,REPUBLICAN CONFERENCE,2015Q2,OTHER SERVICES,05-26,SEAN R PARNELL,03/31/15,03/31/15,CONSULTANT CONTRACT SERVICE,"10,000.00",2015,AP,Accounts payable,E0282580,SEAN R PARNELL
,REPUBLICAN CONFERENCE,2015Q2,OTHER SERVICES,06-02,SEAN R PARNELL,04/30/15,04/30/15,CONSULTANT CONTRACT SERVICE,"10,000.00",2015,AP,Accounts payable,E0284740,SEAN R PARNELL
,REPUBLICAN CONFERENCE,2015Q2,SUPPLIES AND MATERIALS,04-06,ARAMARK REFRESHMENT SERVICES,04/01/15,04/30/15,FOOD & BEVERAGE,104.00,2015,AP,Accounts payable,E0264744,ARAMARK REFRESHMENT SERVICES
,REPUBLICAN CONFERENCE,2015Q2,SUPPLIES AND MATERIALS,04-07,CAPITOL HOST,02/04/15,02/04/15,FOOD & BEVERAGE,105.00,2015,AP,Accounts payable,E0265196,CAPITOL HOST
,REPUBLICAN CONFERENCE,2015Q2,SUPPLIES AND MATERIALS,04-09,HAGUE QUALITY WATER OF MD INC,04/06/15,05/05/15,WATER,63.00,2015,AP,Accounts payable,E0266064,HAGUE QUALITY WATER OF MD INC
,REPUBLICAN CONFERENCE,2015Q2,SUPPLIES AND MATERIALS,04-09,CAPITOL HOST,03/24/15,03/24/15,FOOD & BEVERAGE,687.00,2015,AP,Accounts payable,E0266066,CAPITOL HOST
,REPUBLICAN CONFERENCE,2015Q2,SUPPLIES AND MATERIALS,04-15,ARAMARK REFRESHMENT SERVICES,04/13/15,04/13/15,FOOD & BEVERAGE,707.72,2015,AP,Accounts payable,E0269007,ARAMARK REFRESHMENT SERVICES
,REPUBLICAN CONFERENCE,2015Q2,SUPPLIES AND MATERIALS,04-15,ARAMARK REFRESHMENT SERVICES,04/13/15,04/13/15,FOOD & BEVERAGE,203.40,2015,AP,Accounts payable,E0269008,ARAMARK REFRESHMENT SERVICES
,REPUBLICAN CONFERENCE,2015Q2,SUPPLIES AND MATERIALS,04-16,CAPITOL HOST,01/21/15,01/21/15,FOOD & BEVERAGE,687.00,2015,AP,Accounts payable,E0269643,CAPITOL HOST
,REPUBLICAN CONFERENCE,2015Q2,SUPPLIES AND MATERIALS,04-17,CITI PCARD-02673 CHICK FIL A,03/01/15,03/28/15,FOOD & BEVERAGE,381.65,2015,AP,Accounts payable,00789547,CITI PCARD-02673 CHICK FIL A
,REPUBLICAN CONFERENCE,2015Q2,SUPPLIES AND MATERIALS,04-17,"CITI PCARD-ADOBE SYSTEMS, INC",03/01/15,03/28/15,SOFTWARE LESS THAN $500,370.07,2015,AP,Accounts payable,00789547,"CITI PCARD-ADOBE SYSTEMS, INC"
,REPUBLICAN CONFERENCE,2015Q2,SUPPLIES AND MATERIALS,04-17,CITI PCARD-CARMINE S,03/01/15,03/28/15,FOOD & BEVERAGE,350.87,2015,AP,Accounts payable,00789547,CITI PCARD-CARMINE S
,REPUBLICAN CONFERENCE,2015Q2,SUPPLIES AND MATERIALS,04-17,CITI PCARD-CORNER BAKERY,03/01/15,03/28/15,FOOD & BEVERAGE,361.20,2015,AP,Accounts payable,00789547,CITI PCARD-CORNER BAKERY
,REPUBLICAN CONFERENCE,2015Q2,SUPPLIES AND MATERIALS,04-17,"CITI PCARD-IN WRAP2GO, LLC",03/01/15,03/28/15,FOOD & BEVERAGE,619.94,2015,AP,Accounts payable,00789547,"CITI PCARD-IN WRAP2GO, LLC"
,REPUBLICAN CONFERENCE,2015Q2,SUPPLIES AND MATERIALS,04-17,CITI PCARD-NEW YORK TIMES DIGITAL,03/01/15,03/28/15,PUBLICATIONS/REFERENCE MAT'L,15.00,2015,AP,Accounts payable,00789547,CITI PCARD-NEW YORK TIMES DIGITAL
,REPUBLICAN CONFERENCE,2015Q2,SUPPLIES AND MATERIALS,04-17,CITI PCARD-PANERA BREAD,03/01/15,03/28/15,FOOD & BEVERAGE,484.13,2015,AP,Accounts payable,00789547,CITI PCARD-PANERA BREAD
,REPUBLICAN CONFERENCE,2015Q2,SUPPLIES AND MATERIALS,04-17,CITI PCARD-POTBELLY,03/01/15,03/28/15,FOOD & BEVERAGE,499.05,2015,AP,Accounts payable,00789547,CITI PCARD-POTBELLY
,REPUBLICAN CONFERENCE,2015Q2,SUPPLIES AND MATERIALS,04-17,CITI PCARD-QDOBA MEXICAN GRIL,03/01/15,03/28/15,FOOD & BEVERAGE,"3,314.41",2015,AP,Accounts payable,00789547,CITI PCARD-QDOBA MEXICAN GRIL
,REPUBLICAN CONFERENCE,2015Q2,SUPPLIES AND MATERIALS,04-17,CITI PCARD-SQ ZORBA'S CAFE & CAT,03/01/15,03/28/15,FOOD & BEVERAGE,765.25,2015,AP,Accounts payable,00789547,CITI PCARD-SQ ZORBA'S CAFE & CAT
,REPUBLICAN CONFERENCE,2015Q2,SUPPLIES AND MATERIALS,04-17,CITI PCARD-STARBUCKS,03/01/15,03/28/15,FOOD & BEVERAGE,185.35,2015,AP,Accounts payable,00789547,CITI PCARD-STARBUCKS
,REPUBLICAN CONFERENCE,2015Q2,SUPPLIES AND MATERIALS,04-17,CITI PCARD-ZORBA'S CAFE,03/01/15,03/28/15,FOOD & BEVERAGE,305.00,2015,AP,Accounts payable,00789547,CITI PCARD-ZORBA'S CAFE
,REPUBLICAN CONFERENCE,2015Q2,SUPPLIES AND MATERIALS,04-27,CAPITOL HOST,04/14/15,04/14/15,FOOD & BEVERAGE,506.99,2015,AP,Accounts payable,E0272518,CAPITOL HOST
,REPUBLICAN CONFERENCE,2015Q2,SUPPLIES AND MATERIALS,04-27,"HODSON, NATHAN",04/24/15,04/24/15,FOOD & BEVERAGE,981.47,2015,AP,Accounts payable,E0272519,"HODSON, NATHAN"
,REPUBLICAN CONFERENCE,2015Q2,SUPPLIES AND MATERIALS,04-30,ARAMARK REFRESHMENT SERVICES,04/27/15,04/27/15,FOOD & BEVERAGE,183.06,2015,AP,Accounts payable,E0274203,ARAMARK REFRESHMENT SERVICES
,REPUBLICAN CONFERENCE,2015Q2,SUPPLIES AND MATERIALS,04-30,ARAMARK REFRESHMENT SERVICES,05/01/15,05/31/15,FOOD & BEVERAGE,104.00,2015,AP,Accounts payable,E0274204,ARAMARK REFRESHMENT SERVICES
,REPUBLICAN CONFERENCE,2015Q2,SUPPLIES AND MATERIALS,05-04,ARAMARK REFRESHMENT SERVICES,05/01/15,05/01/15,FOOD & BEVERAGE,682.16,2015,AP,Accounts payable,E0274916,ARAMARK REFRESHMENT SERVICES
,REPUBLICAN CONFERENCE,2015Q2,SUPPLIES AND MATERIALS,05-06,DEER PARK,02/28/15,02/28/15,WATER,111.72,2015,AP,Accounts payable,00790561,DEER PARK
,REPUBLICAN CONFERENCE,2015Q2,SUPPLIES AND MATERIALS,05-11,CAPITOL HOST,04/29/15,04/29/15,FOOD & BEVERAGE,687.00,2015,AP,Accounts payable,E0277407,CAPITOL HOST
,REPUBLICAN CONFERENCE,2015Q2,SUPPLIES AND MATERIALS,05-13,DEER PARK,03/31/15,03/31/15,WATER,173.57,2015,AP,Accounts payable,00790936,DEER PARK
,REPUBLICAN CONFERENCE,2015Q2,SUPPLIES AND MATERIALS,05-14,HAGUE QUALITY WATER OF MD INC,05/06/15,06/05/15,WATER,63.00,2015,AP,Accounts payable,E0279192,HAGUE QUALITY WATER OF MD INC
,REPUBLICAN CONFERENCE,2015Q2,SUPPLIES AND MATERIALS,05-19,CITI PCARD-ADOBE CREATIVE CLOUD,03/29/15,04/28/15,SOFTWARE LESS THAN $500,370.07,2015,AP,Accounts payable,00795289,CITI PCARD-ADOBE CREATIVE CLOUD
,REPUBLICAN CONFERENCE,2015Q2,SUPPLIES AND MATERIALS,05-19,CITI PCARD-CHICK-FIL-A,03/29/15,04/28/15,FOOD & BEVERAGE,"1,380.45",2015,AP,Accounts payable,00795289,CITI PCARD-CHICK-FIL-A
,REPUBLICAN CONFERENCE,2015Q2,SUPPLIES AND MATERIALS,05-19,CITI PCARD-COSI,03/29/15,04/28/15,FOOD & BEVERAGE,173.86,2015,AP,Accounts payable,00795289,CITI PCARD-COSI
,REPUBLICAN CONFERENCE,2015Q2,SUPPLIES AND MATERIALS,05-19,CITI PCARD-GOLDBERG S NEW YORK BA,03/29/15,04/28/15,FOOD & BEVERAGE,529.60,2015,AP,Accounts payable,00795289,CITI PCARD-GOLDBERG S NEW YORK BA
,REPUBLICAN CONFERENCE,2015Q2,SUPPLIES AND MATERIALS,05-19,CITI PCARD-NEW YORK TIMES DIGITAL,03/29/15,04/28/15,PUBLICATIONS/REFERENCE MAT'L,15.00,2015,AP,Accounts payable,00795289,CITI PCARD-NEW YORK TIMES DIGITAL
,REPUBLICAN CONFERENCE,2015Q2,SUPPLIES AND MATERIALS,05-19,CITI PCARD-PANERA BREAD,03/29/15,04/28/15,FOOD & BEVERAGE,333.05,2015,AP,Accounts payable,00795289,CITI PCARD-PANERA BREAD
,REPUBLICAN CONFERENCE,2015Q2,SUPPLIES AND MATERIALS,05-19,CITI PCARD-POTBELLY,03/29/15,04/28/15,FOOD & BEVERAGE,270.74,2015,AP,Accounts payable,00795289,CITI PCARD-POTBELLY
,REPUBLICAN CONFERENCE,2015Q2,SUPPLIES AND MATERIALS,05-19,CITI PCARD-QDOBA MEXICAN GRIL,03/29/15,04/28/15,FOOD & BEVERAGE,391.31,2015,AP,Accounts payable,00795289,CITI PCARD-QDOBA MEXICAN GRIL
,REPUBLICAN CONFERENCE,2015Q2,SUPPLIES AND MATERIALS,05-19,CITI PCARD-STARBUCKS,03/29/15,04/28/15,FOOD & BEVERAGE,95.60,2015,AP,Accounts payable,00795289,CITI PCARD-STARBUCKS
,REPUBLICAN CONFERENCE,2015Q2,SUPPLIES AND MATERIALS,05-22,CAPITOL HOST,05/13/15,05/13/15,FOOD & BEVERAGE,687.00,2015,AP,Accounts payable,E0282381,CAPITOL HOST
,REPUBLICAN CONFERENCE,2015Q2,SUPPLIES AND MATERIALS,05-22,CAPITOL HOST,05/13/15,05/13/15,FOOD & BEVERAGE,"1,134.00",2015,AP,Accounts payable,E0282382,CAPITOL HOST
,REPUBLICAN CONFERENCE,2015Q2,SUPPLIES AND MATERIALS,05-26,CAPITOL HOST,05/14/15,05/14/15,FOOD & BEVERAGE,630.00,2015,AP,Accounts payable,E0282579,CAPITOL HOST
,REPUBLICAN CONFERENCE,2015Q2,SUPPLIES AND MATERIALS,05-29,"DEUTSCH,JEREMY",05/28/15,05/28/15,FOOD & BEVERAGE,285.60,2015,AP,Accounts payable,E0283908,"DEUTSCH,JEREMY"
,REPUBLICAN CONFERENCE,2015Q2,SUPPLIES AND MATERIALS,06-01,ARAMARK REFRESHMENT SERVICES,05/29/15,05/29/15,FOOD & BEVERAGE,"1,408.04",2015,AP,Accounts payable,E0284309,ARAMARK REFRESHMENT SERVICES
,REPUBLICAN CONFERENCE,2015Q2,SUPPLIES AND MATERIALS,06-02,"HODSON, NATHAN",05/29/15,05/29/15,FOOD & BEVERAGE,637.99,2015,AP,Accounts payable,E0284741,"HODSON, NATHAN"
,REPUBLICAN CONFERENCE,2015Q2,SUPPLIES AND MATERIALS,06-08,CAPITOL HOST,05/21/15,05/21/15,FOOD & BEVERAGE,687.00,2015,AP,Accounts payable,E0286722,CAPITOL HOST
,REPUBLICAN CONFERENCE,2015Q2,SUPPLIES AND MATERIALS,06-11,ARAMARK REFRESHMENT SERVICES,06/01/15,06/30/15,FOOD & BEVERAGE,108.00,2015,AP,Accounts payable,E0288967,ARAMARK REFRESHMENT SERVICES
,REPUBLICAN CONFERENCE,2015Q2,SUPPLIES AND MATERIALS,06-11,HAGUE QUALITY WATER OF MD INC,06/06/15,07/05/15,WATER,63.00,2015,AP,Accounts payable,E0288970,HAGUE QUALITY WATER OF MD INC
,REPUBLICAN CONFERENCE,2015Q2,SUPPLIES AND MATERIALS,06-15,CAPITOL HOST,06/02/15,06/02/15,FOOD & BEVERAGE,687.00,2015,AP,Accounts payable,E0290030,CAPITOL HOST
,REPUBLICAN CONFERENCE,2015Q2,SUPPLIES AND MATERIALS,06-16,DEER PARK,04/30/15,04/30/15,WATER,131.67,2015,AP,Accounts payable,00796612,DEER PARK
,REPUBLICAN CONFERENCE,2015Q2,SUPPLIES AND MATERIALS,06-17,"HODSON, NATHAN",05/29/15,05/29/15,FOOD & BEVERAGE,227.31,2015,AP,Accounts payable,E0288963,"HODSON, NATHAN"
,REPUBLICAN CONFERENCE,2015Q2,SUPPLIES AND MATERIALS,06-18,CITI PCARD-ADOBE CREATIVE CLOUD,04/29/15,05/28/15,SOFTWARE LESS THAN $500,370.07,2015,AP,Accounts payable,00800857,CITI PCARD-ADOBE CREATIVE CLOUD
,REPUBLICAN CONFERENCE,2015Q2,SUPPLIES AND MATERIALS,06-18,CITI PCARD-CHICK-FIL-A,04/29/15,05/28/15,FOOD & BEVERAGE,"2,142.00",2015,AP,Accounts payable,00800857,CITI PCARD-CHICK-FIL-A
,REPUBLICAN CONFERENCE,2015Q2,SUPPLIES AND MATERIALS,06-18,CITI PCARD-DOMINO'S,04/29/15,05/28/15,FOOD & BEVERAGE,177.98,2015,AP,Accounts payable,00800857,CITI PCARD-DOMINO'S
,REPUBLICAN CONFERENCE,2015Q2,SUPPLIES AND MATERIALS,06-18,CITI PCARD-GOLDBERG S NEW YORK BA,04/29/15,05/28/15,FOOD & BEVERAGE,469.60,2015,AP,Accounts payable,00800857,CITI PCARD-GOLDBERG S NEW YORK BA
,REPUBLICAN CONFERENCE,2015Q2,SUPPLIES AND MATERIALS,06-18,CITI PCARD-JIMMY JOHNS,04/29/15,05/28/15,FOOD & BEVERAGE,163.25,2015,AP,Accounts payable,00800857,CITI PCARD-JIMMY JOHNS
,REPUBLICAN CONFERENCE,2015Q2,SUPPLIES AND MATERIALS,06-18,CITI PCARD-MCDONALD'S,04/29/15,05/28/15,FOOD & BEVERAGE,30.27,2015,AP,Accounts payable,00800857,CITI PCARD-MCDONALD'S
,REPUBLICAN CONFERENCE,2015Q2,SUPPLIES AND MATERIALS,06-18,CITI PCARD-NEW YORK TIMES DIGITAL,04/29/15,05/28/15,PUBLICATIONS/REFERENCE MAT'L,15.00,2015,AP,Accounts payable,00800857,CITI PCARD-NEW YORK TIMES DIGITAL
,REPUBLICAN CONFERENCE,2015Q2,SUPPLIES AND MATERIALS,06-18,CITI PCARD-POTBELLY,04/29/15,05/28/15,FOOD & BEVERAGE,255.20,2015,AP,Accounts payable,00800857,CITI PCARD-POTBELLY
,REPUBLICAN CONFERENCE,2015Q2,SUPPLIES AND MATERIALS,06-18,CITI PCARD-QDOBA MEXICAN GRIL,04/29/15,05/28/15,FOOD & BEVERAGE,"2,974.23",2015,AP,Accounts payable,00800857,CITI PCARD-QDOBA MEXICAN GRIL
,REPUBLICAN CONFERENCE,2015Q2,SUPPLIES AND MATERIALS,06-18,CITI PCARD-SHOPPERS FOOD / PHAR,04/29/15,05/28/15,FOOD & BEVERAGE,40.90,2015,AP,Accounts payable,00800857,CITI PCARD-SHOPPERS FOOD / PHAR
,REPUBLICAN CONFERENCE,2015Q2,SUPPLIES AND MATERIALS,06-18,CITI PCARD-SQ ZORBA'S CAFE & CAT,04/29/15,05/28/15,FOOD & BEVERAGE,"1,242.00",2015,AP,Accounts payable,00800857,CITI PCARD-SQ ZORBA'S CAFE & CAT
,REPUBLICAN CONFERENCE,2015Q2,SUPPLIES AND MATERIALS,06-19,DEER PARK,05/31/15,05/31/15,WATER,404.55,2015,AP,Accounts payable,00800766,DEER PARK
,REPUBLICAN CONFERENCE,2015Q2,SUPPLIES AND MATERIALS,06-23,CAPITOL HOST,06/10/15,06/10/15,FOOD & BEVERAGE,687.00,2015,AP,Accounts payable,E0292997,CAPITOL HOST
,REPUBLICAN CONFERENCE,2015Q2,SUPPLIES AND MATERIALS,06-23,ARAMARK REFRESHMENT SERVICES,07/01/15,07/31/15,FOOD & BEVERAGE,108.00,2015,AP,Accounts payable,E0292998,ARAMARK REFRESHMENT SERVICES
,REPUBLICAN CONFERENCE,2015Q2,SUPPLIES AND MATERIALS,06-29,ARAMARK REFRESHMENT SERVICES,06/26/15,06/26/15,FOOD & BEVERAGE,921.77,2015,AP,Accounts payable,E0294464,ARAMARK REFRESHMENT SERVICES
,REPUBLICAN CONFERENCE,2015Q2,PERSONNEL COMPENSATION,"","DEUTSCH,JEREMY",01/01/15,01/01/15,CHIEF OF STAFF (OTHER COMPENSATION),0.00,2014,"","","","DEUTSCH,JEREMY"
,REPUBLICAN CONFERENCE,2015Q2,SUPPLIES AND MATERIALS,04-15,CAPITOL HOST,05/07/14,05/07/14,FOOD & BEVERAGE,660.00,2014,AP,Accounts payable,E0269215,CAPITOL HOST
,REPUBLICAN CONFERENCE,2015Q2,SUPPLIES AND MATERIALS,04-15,CAPITOL HOST,11/14/14,11/14/14,FOOD & BEVERAGE,918.00,2014,AP,Accounts payable,E0269216,CAPITOL HOST
,REPUBLICAN CONFERENCE,2015Q2,SUPPLIES AND MATERIALS,04-22,CAPITOL HOST,03/12/14,03/12/14,FOOD & BEVERAGE,660.00,2014,AP,Accounts payable,E0269210,CAPITOL HOST
,REPUBLICAN CONFERENCE,2015Q2,EQUIPMENT,04-30,CDW GOVERNMENT INC. C/O ISM IN,01/16/15,01/16/15,"COMPUTER HARDW PURCH LESS THAN $25,000","11,883.86",2014,AP,Accounts payable,00785319,CDW GOVERNMENT INC. C/O ISM IN
,REPUBLICAN CONFERENCE,2015Q2,SUPPLIES AND MATERIALS,04-22,CAPITOL HOST,11/19/13,11/19/13,FOOD & BEVERAGE,690.00,2013,AP,Accounts payable,E0269207,CAPITOL HOST
,REPUBLICAN CONFERENCE,2015Q2,SUPPLIES AND MATERIALS,04-22,CAPITOL HOST,12/03/13,12/03/13,FOOD & BEVERAGE,690.00,2013,AP,Accounts payable,E0269208,CAPITOL HOST
,REPUBLICAN CONFERENCE,2015Q2,SUPPLIES AND MATERIALS,04-22,CAPITOL HOST,12/11/13,12/11/13,FOOD & BEVERAGE,690.00,2013,AP,Accounts payable,E0269209,CAPITOL HOST
,REPUBLICAN CONFERENCE,2015Q2,SUPPLIES AND MATERIALS,05-14,CAPITOL HOST,10/01/13,10/01/13,FOOD & BEVERAGE,618.00,2013,AP,Accounts payable,E0276093,CAPITOL HOST
,REPUBLICAN CONFERENCE,2015Q2,SUPPLIES AND MATERIALS,05-14,CAPITOL HOST,10/10/13,10/10/13,FOOD & BEVERAGE,579.00,2013,AP,Accounts payable,E0276094,CAPITOL HOST
,REPUBLICAN CONFERENCE,2015Q2,SUPPLIES AND MATERIALS,04-22,CAPITOL HOST,11/14/12,11/14/12,FOOD & BEVERAGE,420.00,2012,AP,Accounts payable,E0270662,CAPITOL HOST
,REPUBLICAN CONFERENCE,2015Q2,SUPPLIES AND MATERIALS,04-22,CAPITOL HOST,11/14/12,11/14/12,FOOD & BEVERAGE,"1,110.59",2012,AP,Accounts payable,E0270663,CAPITOL HOST
,REPUBLICAN CONFERENCE,2015Q2,SUPPLIES AND MATERIALS,04-22,CAPITOL HOST,11/15/12,11/15/12,FOOD & BEVERAGE,420.00,2012,AP,Accounts payable,E0270664,CAPITOL HOST
,REPUBLICAN CONFERENCE,2015Q2,SUPPLIES AND MATERIALS,04-22,CAPITOL HOST,11/28/12,11/28/12,FOOD & BEVERAGE,740.40,2012,AP,Accounts payable,E0270665,CAPITOL HOST
,REPUBLICAN CONFERENCE,2015Q2,SUPPLIES AND MATERIALS,04-22,CAPITOL HOST,11/28/12,11/28/12,FOOD & BEVERAGE,420.00,2012,AP,Accounts payable,E0270666,CAPITOL HOST
,REPUBLICAN CONFERENCE,2015Q2,SUPPLIES AND MATERIALS,04-23,CAPITOL HOST,11/04/11,11/04/11,FOOD & BEVERAGE,740.00,2012,AP,Accounts payable,E0270658,CAPITOL HOST
,REPUBLICAN CONFERENCE,2015Q2,SUPPLIES AND MATERIALS,04-23,CAPITOL HOST,12/08/11,12/08/11,FOOD & BEVERAGE,740.00,2012,AP,Accounts payable,E0270659,CAPITOL HOST
,REPUBLICAN CONFERENCE,2015Q2,SUPPLIES AND MATERIALS,04-23,CAPITOL HOST,02/28/12,02/28/12,FOOD & BEVERAGE,740.00,2012,AP,Accounts payable,E0270660,CAPITOL HOST
,REPUBLICAN CONFERENCE,2015Q2,SUPPLIES AND MATERIALS,04-23,CAPITOL HOST,09/11/12,09/11/12,FOOD & BEVERAGE,740.40,2012,AP,Accounts payable,E0270661,CAPITOL HOST
,REPUBLICAN CONFERENCE,2015Q2,SUPPLIES AND MATERIALS,05-14,CAPITOL HOST,02/27/13,02/27/13,FOOD & BEVERAGE,315.00,2013,AP,Accounts payable,E0276097,CAPITOL HOST
,REPUBLICAN CONFERENCE,2015Q2,SUPPLIES AND MATERIALS,05-14,CAPITOL HOST,03/14/13,03/14/13,FOOD & BEVERAGE,315.00,2013,AP,Accounts payable,E0276098,CAPITOL HOST
,REPUBLICAN CONFERENCE,2015Q2,SUPPLIES AND MATERIALS,05-14,CAPITOL HOST,03/19/13,03/19/13,FOOD & BEVERAGE,660.00,2013,AP,Accounts payable,E0276099,CAPITOL HOST
,REPUBLICAN CONFERENCE,2015Q2,SUPPLIES AND MATERIALS,05-14,CAPITOL HOST,04/10/13,04/10/13,FOOD & BEVERAGE,740.40,2013,AP,Accounts payable,E0276101,CAPITOL HOST
,REPUBLICAN CONFERENCE,2015Q2,SUPPLIES AND MATERIALS,05-14,CAPITOL HOST,05/15/13,05/15/13,FOOD & BEVERAGE,740.40,2013,AP,Accounts payable,E0276102,CAPITOL HOST
,REPUBLICAN CONFERENCE,2015Q2,SUPPLIES AND MATERIALS,05-14,CAPITOL HOST,07/23/13,07/23/13,FOOD & BEVERAGE,618.00,2013,AP,Accounts payable,E0276103,CAPITOL HOST
,REPUBLICAN CONFERENCE,2015Q2,SUPPLIES AND MATERIALS,05-14,CAPITOL HOST,09/10/13,09/10/13,FOOD & BEVERAGE,618.00,2013,AP,Accounts payable,E0276104,CAPITOL HOST
,REPUBLICAN CONFERENCE,2015Q2,SUPPLIES AND MATERIALS,05-14,CAPITOL HOST,09/18/13,09/18/13,FOOD & BEVERAGE,618.00,2013,AP,Accounts payable,E0276105,CAPITOL HOST
,REPUBLICAN CONFERENCE,2015Q2,SUPPLIES AND MATERIALS,05-14,CAPITOL HOST,09/20/13,09/20/13,FOOD & BEVERAGE,618.00,2013,AP,Accounts payable,E0276106,CAPITOL HOST
,REPUBLICAN CONFERENCE,2015Q2,SUPPLIES AND MATERIALS,05-14,CAPITOL HOST,09/26/13,09/26/13,FOOD & BEVERAGE,690.00,2013,AP,Accounts payable,E0276109,CAPITOL HOST
,CHIEF ADMIN OFCR OF THE HOUSE,2015Q2,PERSONNEL COMPENSATION,"","ABBOTT, JESSICA A",04/01/15,06/30/15,FINANCIAL ANALYST,"32,712.00",FISCAL YEAR 2015,"","","","ABBOTT, JESSICA A"
,CHIEF ADMIN OFCR OF THE HOUSE,2015Q2,PERSONNEL COMPENSATION,"","ABEL, TIMOTHY",04/01/15,06/30/15,SR TECHNICAL SUPPORT REP (A),"24,368.49",FISCAL YEAR 2015,"","","","ABEL, TIMOTHY"
,CHIEF ADMIN OFCR OF THE HOUSE,2015Q2,PERSONNEL COMPENSATION,"","ACUESTA,JULY J",04/01/15,06/30/15,SENIOR SYSTEMS ENGINEER,"27,988.26",FISCAL YEAR 2015,"","","","ACUESTA,JULY J"
,CHIEF ADMIN OFCR OF THE HOUSE,2015Q2,PERSONNEL COMPENSATION,"","ADDISON, TRACY",04/01/15,06/30/15,LOGISTICS & DIST SPEC (A),"11,799.99",FISCAL YEAR 2015,"","","","ADDISON, TRACY"
,CHIEF ADMIN OFCR OF THE HOUSE,2015Q2,PERSONNEL COMPENSATION,"","ADELAKUN, DEEN A",04/01/15,06/30/15,SR TECH SOLUTIONS ENGINEER,"23,004.24",FISCAL YEAR 2015,"","","","ADELAKUN, DEEN A"
,CHIEF ADMIN OFCR OF THE HOUSE,2015Q2,PERSONNEL COMPENSATION,"","ADENIJI,ADERONKE F",04/15/15,06/30/15,TEAM LEAD ASSURANCE &RISK MGMT,"28,100.57",FISCAL YEAR 2015,"","","","ADENIJI,ADERONKE F"
,CHIEF ADMIN OFCR OF THE HOUSE,2015Q2,PERSONNEL COMPENSATION,"","AGEE, MATTHEW P",04/01/15,06/30/15,RESOURCE MANAGER,"31,582.50",FISCAL YEAR 2015,"","","","AGEE, MATTHEW P"
,CHIEF ADMIN OFCR OF THE HOUSE,2015Q2,PERSONNEL COMPENSATION,"","AGEE, TINA M",04/01/15,06/30/15,DIRECTOR PHOTOGRAPHY,"27,988.26",FISCAL YEAR 2015,"","","","AGEE, TINA M"
,CHIEF ADMIN OFCR OF THE HOUSE,2015Q2,PERSONNEL COMPENSATION,"","AGNEW, ROSE M",04/01/15,06/30/15,SR PAYROLL & BENS GENERALIST,"20,732.25",FISCAL YEAR 2015,"","","","AGNEW, ROSE M"
,CHIEF ADMIN OFCR OF THE HOUSE,2015Q2,PERSONNEL COMPENSATION,"","AGNEW, ROSE M",03/01/15,04/30/15,SR PAYROLL & BENS GENERALIST (OVERTIME),279.09,FISCAL YEAR 2015,"","","","AGNEW, ROSE M"
,CHIEF ADMIN OFCR OF THE HOUSE,2015Q2,PERSONNEL COMPENSATION,"","AHUJA, KALPANA A",04/01/15,06/30/15,DIRECTOR WEB SYSTEMS,"33,161.91",FISCAL YEAR 2015,"","","","AHUJA, KALPANA A"
,CHIEF ADMIN OFCR OF THE HOUSE,2015Q2,PERSONNEL COMPENSATION,"","AKINSEGUN, PATRICIA A",04/01/15,06/30/15,TELEPHONE SYSTEMS CONSULTANT,"23,004.24",FISCAL YEAR 2015,"","","","AKINSEGUN, PATRICIA A"
,CHIEF ADMIN OFCR OF THE HOUSE,2015Q2,PERSONNEL COMPENSATION,"","ALBERS,BARBARA V",06/01/15,06/30/15,MANAGER WEB SERVICES,"10,338.75",FISCAL YEAR 2015,"","","","ALBERS,BARBARA V"
,CHIEF ADMIN OFCR OF THE HOUSE,2015Q2,PERSONNEL COMPENSATION,"","ALEXANDER, GORDON",04/01/15,06/30/15,TECH SOLUTIONS ENGINEER,"18,487.74",FISCAL YEAR 2015,"","","","ALEXANDER, GORDON"
,CHIEF ADMIN OFCR OF THE HOUSE,2015Q2,PERSONNEL COMPENSATION,"","ALLISON, KEVIN M",04/01/15,06/30/15,LOGISTICS & DIST SPEC (A),"13,775.01",FISCAL YEAR 2015,"","","","ALLISON, KEVIN M"
,CHIEF ADMIN OFCR OF THE HOUSE,2015Q2,PERSONNEL COMPENSATION,"","ALSTON,MARK A",04/01/15,06/30/15,TECH SOLUTIONS ENGINEER,"18,092.25",FISCAL YEAR 2015,"","","","ALSTON,MARK A"
,CHIEF ADMIN OFCR OF THE HOUSE,2015Q2,PERSONNEL COMPENSATION,"","ALVEY, LISA M",04/01/15,06/30/15,FINANCIAL COUNSELOR,"21,092.49",FISCAL YEAR 2015,"","","","ALVEY, LISA M"
,CHIEF ADMIN OFCR OF THE HOUSE,2015Q2,PERSONNEL COMPENSATION,"","ANDERSEN, FREDERIC E",04/01/15,06/30/15,2ND ASST SUPERINTENDENT,"23,004.24",FISCAL YEAR 2015,"","","","ANDERSEN, FREDERIC E"
,CHIEF ADMIN OFCR OF THE HOUSE,2015Q2,PERSONNEL COMPENSATION,"","ANDERSON, DONTRELL",04/01/15,06/30/15,FINANCIAL COUNSELOR,"16,902.24",FISCAL YEAR 2015,"","","","ANDERSON, DONTRELL"
,CHIEF ADMIN OFCR OF THE HOUSE,2015Q2,PERSONNEL COMPENSATION,"","ANDREWS,THOMAS",04/01/15,06/30/15,VOICE & VIDEO BRANCH MGR (A),"34,620.51",FISCAL YEAR 2015,"","","","ANDREWS,THOMAS"
,CHIEF ADMIN OFCR OF THE HOUSE,2015Q2,PERSONNEL COMPENSATION,"","ANDREWS-MOBLEY, RACHELLE G",04/01/15,06/30/15,PRINCIPAL TECHNICAL TRAINER,"26,780.41",FISCAL YEAR 2015,"","","","ANDREWS-MOBLEY, RACHELLE G"
,CHIEF ADMIN OFCR OF THE HOUSE,2015Q2,PERSONNEL COMPENSATION,"","ARMSTRONG,JANCIERA C",04/01/15,06/30/15,"MANAGER, ACCOUNTING","26,953.74",FISCAL YEAR 2015,"","","","ARMSTRONG,JANCIERA C"
,CHIEF ADMIN OFCR OF THE HOUSE,2015Q2,PERSONNEL COMPENSATION,"","ARTHUR, CAMILLA S",04/01/15,06/30/15,ASSISTANT CAO,"41,778.99",FISCAL YEAR 2015,"","","","ARTHUR, CAMILLA S"
,CHIEF ADMIN OFCR OF THE HOUSE,2015Q2,PERSONNEL COMPENSATION,"","ATCHISON, DARRYL A",04/01/15,06/30/15,DEPUTY CHIEF ENGINEER,"31,582.50",FISCAL YEAR 2015,"","","","ATCHISON, DARRYL A"
,CHIEF ADMIN OFCR OF THE HOUSE,2015Q2,PERSONNEL COMPENSATION,"","AWAN, OMAR",04/01/15,06/30/15,SR BUSINESS PROCESS APPL SPEC,"36,494.49",FISCAL YEAR 2015,"","","","AWAN, OMAR"
,CHIEF ADMIN OFCR OF THE HOUSE,2015Q2,PERSONNEL COMPENSATION,"","BAHAM,TODD",04/01/15,06/30/15,BROADCAST PRODUCTION TECHNICIA,"19,494.75",FISCAL YEAR 2015,"","","","BAHAM,TODD"
,CHIEF ADMIN OFCR OF THE HOUSE,2015Q2,PERSONNEL COMPENSATION,"","BAHAM,TODD",03/01/15,05/31/15,BROADCAST PRODUCTION TECHNICIA (OVERTIME),"1,977.57",FISCAL YEAR 2015,"","","","BAHAM,TODD"
,CHIEF ADMIN OFCR OF THE HOUSE,2015Q2,PERSONNEL COMPENSATION,"","BAILEY, DAVID E",04/01/15,06/30/15,SR TECHNICAL SUPPORT REP (A),"24,368.49",FISCAL YEAR 2015,"","","","BAILEY, DAVID E"
,CHIEF ADMIN OFCR OF THE HOUSE,2015Q2,PERSONNEL COMPENSATION,"","BAKER, DARRELL F",04/01/15,04/05/15,SENIOR NETWORK TECHNICIAN,"1,419.33",FISCAL YEAR 2015,"","","","BAKER, DARRELL F"
,CHIEF ADMIN OFCR OF THE HOUSE,2015Q2,PERSONNEL COMPENSATION,"","BAKER, DARRELL F",04/06/15,06/30/15,SR NETWORK COMM SPEC,"24,965.21",FISCAL YEAR 2015,"","","","BAKER, DARRELL F"
,CHIEF ADMIN OFCR OF THE HOUSE,2015Q2,PERSONNEL COMPENSATION,"","BANFIELD,KELLI C",04/01/15,06/30/15,BROADCAST ENGINEER/PROD SPEC,"21,641.25",FISCAL YEAR 2015,"","","","BANFIELD,KELLI C"
,CHIEF ADMIN OFCR OF THE HOUSE,2015Q2,PERSONNEL COMPENSATION,"","BANKS,BIANCA N",04/01/15,06/30/15,RETAIL INVENTORY SPECIALIST,"17,298.00",FISCAL YEAR 2015,"","","","BANKS,BIANCA N"
,CHIEF ADMIN OFCR OF THE HOUSE,2015Q2,PERSONNEL COMPENSATION,"","BARBEE, GLENN",04/01/15,06/30/15,NETWORK TECHNICIAN,"22,551.24",FISCAL YEAR 2015,"","","","BARBEE, GLENN"
,CHIEF ADMIN OFCR OF THE HOUSE,2015Q2,PERSONNEL COMPENSATION,"","BARBEE,DONELL G",04/01/15,06/30/15,RETAIL INVENTORY SPECIALIST,"10,298.76",FISCAL YEAR 2015,"","","","BARBEE,DONELL G"
,CHIEF ADMIN OFCR OF THE HOUSE,2015Q2,PERSONNEL COMPENSATION,"","BARBEE,DONELL G",03/01/15,03/31/15,RETAIL INVENTORY SPECIALIST (OVERTIME),14.85,FISCAL YEAR 2015,"","","","BARBEE,DONELL G"
,CHIEF ADMIN OFCR OF THE HOUSE,2015Q2,PERSONNEL COMPENSATION,"","BARBOUR, JUNE M",04/01/15,06/30/15,BROADCAST PRODUCTION TECHNICIA,"19,494.75",FISCAL YEAR 2015,"","","","BARBOUR, JUNE M"
,CHIEF ADMIN OFCR OF THE HOUSE,2015Q2,PERSONNEL COMPENSATION,"","BARBOUR, JUNE M",03/01/15,05/31/15,BROADCAST PRODUCTION TECHNICIA (OVERTIME),121.84,FISCAL YEAR 2015,"","","","BARBOUR, JUNE M"
,CHIEF ADMIN OFCR OF THE HOUSE,2015Q2,PERSONNEL COMPENSATION,"","BARCINIAK, DANA L",04/01/15,06/30/15,SENIOR PHOTOGRAPHER,"22,293.24",FISCAL YEAR 2015,"","","","BARCINIAK, DANA L"
,CHIEF ADMIN OFCR OF THE HOUSE,2015Q2,PERSONNEL COMPENSATION,"","BARCINIAK, DANA L",04/01/15,04/30/15,SENIOR PHOTOGRAPHER (OVERTIME),32.15,FISCAL YEAR 2015,"","","","BARCINIAK, DANA L"
,CHIEF ADMIN OFCR OF THE HOUSE,2015Q2,PERSONNEL COMPENSATION,"","BAREFOOT,JEFFREY",04/01/15,06/30/15,PRODUCTION/ENGINEER SPEC (TEMP,"11,481.63",FISCAL YEAR 2015,"","","","BAREFOOT,JEFFREY"
,CHIEF ADMIN OFCR OF THE HOUSE,2015Q2,PERSONNEL COMPENSATION,"","BARNABAE, MONICA M",04/01/15,06/30/15,DIRECTOR-HOUSE CHILD CARE CNTR,"27,469.74",FISCAL YEAR 2015,"","","","BARNABAE, MONICA M"
,CHIEF ADMIN OFCR OF THE HOUSE,2015Q2,PERSONNEL COMPENSATION,"","BARR,PAUL",04/01/15,06/30/15,RECEIVING/WAREHOUSE SPECIALIST,"12,359.01",FISCAL YEAR 2015,"","","","BARR,PAUL"
,CHIEF ADMIN OFCR OF THE HOUSE,2015Q2,PERSONNEL COMPENSATION,"","BARRETT, ROBERT R",04/01/15,06/30/15,"DIRECTOR, ENTERPRISE APPLICATI","36,905.25",FISCAL YEAR 2015,"","","","BARRETT, ROBERT R"
,CHIEF ADMIN OFCR OF THE HOUSE,2015Q2,PERSONNEL COMPENSATION,"","BASILIO, TYRONE A",04/01/15,06/30/15,TECHNICAL SUPPORT REP,"19,894.50",FISCAL YEAR 2015,"","","","BASILIO, TYRONE A"
,CHIEF ADMIN OFCR OF THE HOUSE,2015Q2,PERSONNEL COMPENSATION,"","BATES, DEBORAH A",04/01/15,06/30/15,PRODUCTION/ENGINEER SPEC (TEMP,"13,326.90",FISCAL YEAR 2015,"","","","BATES, DEBORAH A"
,CHIEF ADMIN OFCR OF THE HOUSE,2015Q2,PERSONNEL COMPENSATION,"","BATH,GEORGE J",04/01/15,06/30/15,SENIOR ADVISOR,"42,102.75",FISCAL YEAR 2015,"","","","BATH,GEORGE J"
,CHIEF ADMIN OFCR OF THE HOUSE,2015Q2,PERSONNEL COMPENSATION,"","BEAUBIAN, TRACI R",04/01/15,06/30/15,CHIEF FINANCIAL OFFICER,"42,102.75",FISCAL YEAR 2015,"","","","BEAUBIAN, TRACI R"
,CHIEF ADMIN OFCR OF THE HOUSE,2015Q2,PERSONNEL COMPENSATION,"","BEIDEL, BERNARD E",04/01/15,06/30/15,"DIR, OFFICE OF EMPLOYEE ASSIST","42,102.75",FISCAL YEAR 2015,"","","","BEIDEL, BERNARD E"
,CHIEF ADMIN OFCR OF THE HOUSE,2015Q2,PERSONNEL COMPENSATION,"","BELL,FRANK E",04/01/15,06/30/15,SENIOR TECHNICAL ADVISOR,"33,993.00",FISCAL YEAR 2015,"","","","BELL,FRANK E"
,CHIEF ADMIN OFCR OF THE HOUSE,2015Q2,PERSONNEL COMPENSATION,"","BENN, PHILLIP F",04/01/15,06/30/15,ELECTRONICS TECHNICIAN (A),"23,460.75",FISCAL YEAR 2015,"","","","BENN, PHILLIP F"
,CHIEF ADMIN OFCR OF THE HOUSE,2015Q2,PERSONNEL COMPENSATION,"","BENN, PHILLIP F",03/01/15,05/31/15,ELECTRONICS TECHNICIAN (A) (OVERTIME),"2,199.42",FISCAL YEAR 2015,"","","","BENN, PHILLIP F"
,CHIEF ADMIN OFCR OF THE HOUSE,2015Q2,PERSONNEL COMPENSATION,"","BERGER, DONALD W",04/01/15,06/30/15,TECHNICAL DIRECTOR (A),"23,267.25",FISCAL YEAR 2015,"","","","BERGER, DONALD W"
,CHIEF ADMIN OFCR OF THE HOUSE,2015Q2,PERSONNEL COMPENSATION,"","BERGER, DONALD W",03/01/15,03/31/15,TECHNICAL DIRECTOR (A) (OVERTIME),55.93,FISCAL YEAR 2015,"","","","BERGER, DONALD W"
,CHIEF ADMIN OFCR OF THE HOUSE,2015Q2,PERSONNEL COMPENSATION,"","BERRY,JOSEPH B",04/01/15,06/30/15,SYSTEMS ENGINEER,"22,098.51",FISCAL YEAR 2015,"","","","BERRY,JOSEPH B"
,CHIEF ADMIN OFCR OF THE HOUSE,2015Q2,PERSONNEL COMPENSATION,"","BEST, CHARLENE",04/01/15,06/30/15,MANAGER,"24,180.99",FISCAL YEAR 2015,"","","","BEST, CHARLENE"
,CHIEF ADMIN OFCR OF THE HOUSE,2015Q2,PERSONNEL COMPENSATION,"","BETHEA,LASHON L",04/01/15,06/30/15,TECHNICAL TRAINER,"25,548.00",FISCAL YEAR 2015,"","","","BETHEA,LASHON L"
,CHIEF ADMIN OFCR OF THE HOUSE,2015Q2,PERSONNEL COMPENSATION,"","BILLARD, MICHAEL A",04/01/15,06/30/15,COMMUNICATIONS SPEC,"25,548.00",FISCAL YEAR 2015,"","","","BILLARD, MICHAEL A"
,CHIEF ADMIN OFCR OF THE HOUSE,2015Q2,PERSONNEL COMPENSATION,"","BILLUPS, BRIAN E",04/01/15,06/30/15,NETWORK TECHNICIAN (A),"19,894.50",FISCAL YEAR 2015,"","","","BILLUPS, BRIAN E"
,CHIEF ADMIN OFCR OF THE HOUSE,2015Q2,PERSONNEL COMPENSATION,"","BLAKNEY, HAROLD",04/01/15,06/30/15,SENIOR SYSTEMS ENGINEER,"37,745.01",FISCAL YEAR 2015,"","","","BLAKNEY, HAROLD"
,CHIEF ADMIN OFCR OF THE HOUSE,2015Q2,PERSONNEL COMPENSATION,"","BOGAN, DAVID S",04/01/15,06/30/15,"SUPERVISOR, RETAIL INVENTORY","19,894.50",FISCAL YEAR 2015,"","","","BOGAN, DAVID S"
,CHIEF ADMIN OFCR OF THE HOUSE,2015Q2,PERSONNEL COMPENSATION,"","BOGER, KELLY M",04/01/15,06/30/15,ACCOUNT MANAGEMENT COUNSELOR,"20,294.76",FISCAL YEAR 2015,"","","","BOGER, KELLY M"
,CHIEF ADMIN OFCR OF THE HOUSE,2015Q2,PERSONNEL COMPENSATION,"","BOOKER, CARLOS",04/01/15,06/30/15,SALES SPECIALIST,"10,599.99",FISCAL YEAR 2015,"","","","BOOKER, CARLOS"
,CHIEF ADMIN OFCR OF THE HOUSE,2015Q2,PERSONNEL COMPENSATION,"","BOONE, RUSSELL",04/01/15,06/30/15,TECHNICAL SUPPORT REP,"22,293.24",FISCAL YEAR 2015,"","","","BOONE, RUSSELL"
,CHIEF ADMIN OFCR OF THE HOUSE,2015Q2,PERSONNEL COMPENSATION,"","BOWERS,KAREN L",04/01/15,06/30/15,FINANCIAL COUNSELOR,"19,494.75",FISCAL YEAR 2015,"","","","BOWERS,KAREN L"
,CHIEF ADMIN OFCR OF THE HOUSE,2015Q2,PERSONNEL COMPENSATION,"","BOWLDING, SONIA R",04/01/15,06/30/15,REC/WAREHOUSE SPEC (A),"11,500.50",FISCAL YEAR 2015,"","","","BOWLDING, SONIA R"
,CHIEF ADMIN OFCR OF THE HOUSE,2015Q2,PERSONNEL COMPENSATION,"","BOWLES, JAMES A",04/01/15,06/30/15,JOURNEYMAN FURNITURE SPEC,"20,076.00",FISCAL YEAR 2015,"","","","BOWLES, JAMES A"
,CHIEF ADMIN OFCR OF THE HOUSE,2015Q2,PERSONNEL COMPENSATION,"","BOWLING-STOKES,CHAUNETTE L",04/01/15,06/30/15,MANAGEMENT ANALYST,"24,180.99",FISCAL YEAR 2015,"","","","BOWLING-STOKES,CHAUNETTE L"
,CHIEF ADMIN OFCR OF THE HOUSE,2015Q2,PERSONNEL COMPENSATION,"","BOWMAN,SHELIA",04/01/15,06/30/15,FINANCIAL COUNSELOR,"16,902.24",FISCAL YEAR 2015,"","","","BOWMAN,SHELIA"
,CHIEF ADMIN OFCR OF THE HOUSE,2015Q2,PERSONNEL COMPENSATION,"","BOYD, KRISTIE N",03/01/15,05/20/15,PHOTOGRAPHER/LAB TECH (TEMP),"10,969.06",FISCAL YEAR 2015,"","","","BOYD, KRISTIE N"
,CHIEF ADMIN OFCR OF THE HOUSE,2015Q2,PERSONNEL COMPENSATION,"","BOYD, PETRINA",04/01/15,06/30/15,SALES SPECIALIST,"11,669.76",FISCAL YEAR 2015,"","","","BOYD, PETRINA"
,CHIEF ADMIN OFCR OF THE HOUSE,2015Q2,PERSONNEL COMPENSATION,"","BOYD, PETRINA",03/01/15,03/31/15,SALES SPECIALIST (OVERTIME),16.83,FISCAL YEAR 2015,"","","","BOYD, PETRINA"
,CHIEF ADMIN OFCR OF THE HOUSE,2015Q2,PERSONNEL COMPENSATION,"","BOYLE, KEVIN J",04/01/15,06/30/15,SR BUSINESS PROCESS APPL SPEC,"39,621.51",FISCAL YEAR 2015,"","","","BOYLE, KEVIN J"
,CHIEF ADMIN OFCR OF THE HOUSE,2015Q2,PERSONNEL COMPENSATION,"","BRACKENS, ROBERT",04/01/15,06/30/15,BROADCAST PRODUCTION TECHNICIA,"22,098.51",FISCAL YEAR 2015,"","","","BRACKENS, ROBERT"
,CHIEF ADMIN OFCR OF THE HOUSE,2015Q2,PERSONNEL COMPENSATION,"","BRACKENS, ROBERT",03/01/15,05/31/15,BROADCAST PRODUCTION TECHNICIA (OVERTIME),"1,200.53",FISCAL YEAR 2015,"","","","BRACKENS, ROBERT"
,CHIEF ADMIN OFCR OF THE HOUSE,2015Q2,PERSONNEL COMPENSATION,"","BRADY,JOHN R",04/01/15,06/30/15,JOURNEYMAN TEXTILE SPEC,"12,014.25",FISCAL YEAR 2015,"","","","BRADY,JOHN R"
,CHIEF ADMIN OFCR OF THE HOUSE,2015Q2,PERSONNEL COMPENSATION,"","BRADY,JOHN R",03/01/15,03/31/15,JOURNEYMAN TEXTILE SPEC (OVERTIME),462.08,FISCAL YEAR 2015,"","","","BRADY,JOHN R"
,CHIEF ADMIN OFCR OF THE HOUSE,2015Q2,PERSONNEL COMPENSATION,"","BRAXTON, BRANDON A",04/01/15,06/30/15,LOGISTICS & DIST SPEC (A),"11,200.74",FISCAL YEAR 2015,"","","","BRAXTON, BRANDON A"
,CHIEF ADMIN OFCR OF THE HOUSE,2015Q2,PERSONNEL COMPENSATION,"","BREWSTER III,JAMES E",04/01/15,06/30/15,LOGISTICS & DIST SPEC (A),"9,441.24",FISCAL YEAR 2015,"","","","BREWSTER III,JAMES E"
,CHIEF ADMIN OFCR OF THE HOUSE,2015Q2,PERSONNEL COMPENSATION,"","BREWSTER,CHRISTOPHER A",04/01/15,06/30/15,ADMINISTRATIVE COUNSEL,"42,102.75",FISCAL YEAR 2015,"","","","BREWSTER,CHRISTOPHER A"
,CHIEF ADMIN OFCR OF THE HOUSE,2015Q2,PERSONNEL COMPENSATION,"","BRIDGEFORTH, TOINETTA A",04/01/15,06/30/15,CONTRACTS SPECIALIST,"23,004.24",FISCAL YEAR 2015,"","","","BRIDGEFORTH, TOINETTA A"
,CHIEF ADMIN OFCR OF THE HOUSE,2015Q2,PERSONNEL COMPENSATION,"","BRISCOE, KEVIN",04/01/15,06/30/15,LOGISTICS & DIST SPEC (A),"11,200.74",FISCAL YEAR 2015,"","","","BRISCOE, KEVIN"
,CHIEF ADMIN OFCR OF THE HOUSE,2015Q2,PERSONNEL COMPENSATION,"","BRITT,SHANNON W",04/01/15,06/26/15,SR HUMAN RESOURCES GENERALIST,"17,866.27",FISCAL YEAR 2015,"","","","BRITT,SHANNON W"
,CHIEF ADMIN OFCR OF THE HOUSE,2015Q2,PERSONNEL COMPENSATION,"","BROBBEY-MENSAH, KWAME",04/01/15,06/30/15,SR INFO SYST. SECURITY ANALYST,"29,025.99",FISCAL YEAR 2015,"","","","BROBBEY-MENSAH, KWAME"
,CHIEF ADMIN OFCR OF THE HOUSE,2015Q2,PERSONNEL COMPENSATION,"","BROWN SR, DEMETRICE T",04/01/15,06/30/15,SUPERVISOR,"27,469.74",FISCAL YEAR 2015,"","","","BROWN SR, DEMETRICE T"
,CHIEF ADMIN OFCR OF THE HOUSE,2015Q2,PERSONNEL COMPENSATION,"","BROWN, ANNETTE G",04/01/15,06/30/15,SR SOFTWARE ENGINEER,"26,914.74",FISCAL YEAR 2015,"","","","BROWN, ANNETTE G"
,CHIEF ADMIN OFCR OF THE HOUSE,2015Q2,PERSONNEL COMPENSATION,"","BROWN, KEITH S",04/01/15,06/30/15,REC/WAREHOUSE SPEC (A),"14,418.75",FISCAL YEAR 2015,"","","","BROWN, KEITH S"
,CHIEF ADMIN OFCR OF THE HOUSE,2015Q2,PERSONNEL COMPENSATION,"","BROWN, PAMELA L",04/01/15,06/30/15,CUSTOMER SOLUTIONS REP,"18,752.92",FISCAL YEAR 2015,"","","","BROWN, PAMELA L"
,CHIEF ADMIN OFCR OF THE HOUSE,2015Q2,PERSONNEL COMPENSATION,"","BROWN,DAVID D",04/01/15,06/30/15,FINANCIAL COUNSELOR,"16,637.08",FISCAL YEAR 2015,"","","","BROWN,DAVID D"
,CHIEF ADMIN OFCR OF THE HOUSE,2015Q2,PERSONNEL COMPENSATION,"","BROWN,JASON",04/01/15,06/30/15,BROADCAST PRODUCTION TECHNICIA,"19,494.75",FISCAL YEAR 2015,"","","","BROWN,JASON"
,CHIEF ADMIN OFCR OF THE HOUSE,2015Q2,PERSONNEL COMPENSATION,"","BROWN,JASON",05/01/15,05/31/15,BROADCAST PRODUCTION TECHNICIA (OVERTIME),524.85,FISCAL YEAR 2015,"","","","BROWN,JASON"
,CHIEF ADMIN OFCR OF THE HOUSE,2015Q2,PERSONNEL COMPENSATION,"","BROWN,KIMBERLY K",04/01/15,06/30/15,RESOURCE ANALYST,"17,298.00",FISCAL YEAR 2015,"","","","BROWN,KIMBERLY K"
,CHIEF ADMIN OFCR OF THE HOUSE,2015Q2,PERSONNEL COMPENSATION,"","BROWN,LAWRENCE",04/01/15,06/30/15,BROADCAST ENGINEER/PROD SPEC,"22,249.42",FISCAL YEAR 2015,"","","","BROWN,LAWRENCE"
,CHIEF ADMIN OFCR OF THE HOUSE,2015Q2,PERSONNEL COMPENSATION,"","BROWN,LAWRENCE",03/01/15,05/31/15,BROADCAST ENGINEER/PROD SPEC. (OVERTIME),"1,094.29",FISCAL YEAR 2015,"","","","BROWN,LAWRENCE"
,CHIEF ADMIN OFCR OF THE HOUSE,2015Q2,PERSONNEL COMPENSATION,"","BRUMMELL,JENELLE L",04/01/15,06/30/15,PARALEGAL,"18,298.50",FISCAL YEAR 2015,"","","","BRUMMELL,JENELLE L"
,CHIEF ADMIN OFCR OF THE HOUSE,2015Q2,PERSONNEL COMPENSATION,"","BUCKLER, RICKY L",04/01/15,06/30/15,PURCHASING AGENT,"19,361.67",FISCAL YEAR 2015,"","","","BUCKLER, RICKY L"
,CHIEF ADMIN OFCR OF THE HOUSE,2015Q2,PERSONNEL COMPENSATION,"","BUCKLER, TROY D",04/01/15,06/30/15,PURCHASING AGENT,"16,491.99",FISCAL YEAR 2015,"","","","BUCKLER, TROY D"
,CHIEF ADMIN OFCR OF THE HOUSE,2015Q2,PERSONNEL COMPENSATION,"","BUFORD, MARCIA L",04/01/15,06/30/15,COMPUTER FAC OP SUPERVISOR,"26,914.74",FISCAL YEAR 2015,"","","","BUFORD, MARCIA L"
,CHIEF ADMIN OFCR OF THE HOUSE,2015Q2,PERSONNEL COMPENSATION,"","BURCH, KENNETH J",04/01/15,06/30/15,BUSINESS PROC APPLIC SPEC,"30,063.24",FISCAL YEAR 2015,"","","","BURCH, KENNETH J"
,CHIEF ADMIN OFCR OF THE HOUSE,2015Q2,PERSONNEL COMPENSATION,"","BUTLER, CLARENCE G",04/01/15,06/30/15,JOURNEYMAN FURNITURE SPEC,"15,802.50",FISCAL YEAR 2015,"","","","BUTLER, CLARENCE G"
,CHIEF ADMIN OFCR OF THE HOUSE,2015Q2,PERSONNEL COMPENSATION,"","BUTLER, JAMES F",04/01/15,04/30/15,PAYROLL & BENEFITS MANAGER,"8,668.00",FISCAL YEAR 2015,"","","","BUTLER, JAMES F"
,CHIEF ADMIN OFCR OF THE HOUSE,2015Q2,PERSONNEL COMPENSATION,"","BUTLER, JAMES F",05/01/15,06/30/15,"MANAGER, PAYROLL & BENEFITS","19,005.34",FISCAL YEAR 2015,"","","","BUTLER, JAMES F"
,CHIEF ADMIN OFCR OF THE HOUSE,2015Q2,PERSONNEL COMPENSATION,"","CAIN, MOLLY J",04/01/15,06/30/15,5TH ASST SUPERINTENDENT,"15,802.50",FISCAL YEAR 2015,"","","","CAIN, MOLLY J"
,CHIEF ADMIN OFCR OF THE HOUSE,2015Q2,PERSONNEL COMPENSATION,"","CALLAWAY, ROBERT M",04/01/15,06/30/15,SR BROADCAST ENG./PROD SPEC,"24,636.00",FISCAL YEAR 2015,"","","","CALLAWAY, ROBERT M"
,CHIEF ADMIN OFCR OF THE HOUSE,2015Q2,PERSONNEL COMPENSATION,"","CANNON, DREW",04/01/15,06/30/15,4TH ASST SUPERINTENDENT,"18,092.25",FISCAL YEAR 2015,"","","","CANNON, DREW"
,CHIEF ADMIN OFCR OF THE HOUSE,2015Q2,PERSONNEL COMPENSATION,"","CARCAMO, ALICIA L",04/01/15,06/30/15,ACCOUNTING TECHNICIAN,"19,283.25",FISCAL YEAR 2015,"","","","CARCAMO, ALICIA L"
,CHIEF ADMIN OFCR OF THE HOUSE,2015Q2,PERSONNEL COMPENSATION,"","CARNNIA,CASEY",04/01/15,06/30/15,INTERNET SYSTEMS SPECIALIST,"19,894.50",FISCAL YEAR 2015,"","","","CARNNIA,CASEY"
,CHIEF ADMIN OFCR OF THE HOUSE,2015Q2,PERSONNEL COMPENSATION,"","CARR, JOSH D",04/01/15,06/30/15,SENIOR SYSTEMS ENGINEER,"25,548.00",FISCAL YEAR 2015,"","","","CARR, JOSH D"
,CHIEF ADMIN OFCR OF THE HOUSE,2015Q2,PERSONNEL COMPENSATION,"","CARRICO, RONALD",04/01/15,06/30/15,SR BUSINESS PROCESS APPL SPEC,"37,120.50",FISCAL YEAR 2015,"","","","CARRICO, RONALD"
,CHIEF ADMIN OFCR OF THE HOUSE,2015Q2,PERSONNEL COMPENSATION,"","CARSON,LAWRENCE T",04/01/15,06/30/15,SALES SPECIALIST,"10,298.76",FISCAL YEAR 2015,"","","","CARSON,LAWRENCE T"
,CHIEF ADMIN OFCR OF THE HOUSE,2015Q2,PERSONNEL COMPENSATION,"","CARTER JR, JOHN L",04/01/15,06/30/15,"MANAGER, FINISHING","25,275.24",FISCAL YEAR 2015,"","","","CARTER JR, JOHN L"
,CHIEF ADMIN OFCR OF THE HOUSE,2015Q2,PERSONNEL COMPENSATION,"","CARTER,DELISA D",04/01/15,06/30/15,SR. SOFTWARE SPECIALIST,"35,867.25",FISCAL YEAR 2015,"","","","CARTER,DELISA D"
,CHIEF ADMIN OFCR OF THE HOUSE,2015Q2,PERSONNEL COMPENSATION,"","CASSIDY, ED",04/01/15,06/30/15,CHIEF ADMINISTRATIVE OFFICER,"43,125.00",FISCAL YEAR 2015,"","","","CASSIDY, ED"
,CHIEF ADMIN OFCR OF THE HOUSE,2015Q2,PERSONNEL COMPENSATION,"","CAULK, ANDREW T",04/01/15,05/31/15,SUPERVISOR,"16,424.00",FISCAL YEAR 2015,"","","","CAULK, ANDREW T"
,CHIEF ADMIN OFCR OF THE HOUSE,2015Q2,PERSONNEL COMPENSATION,"","CAULK, ANDREW T",06/01/15,06/30/15,MANAGER,"8,212.00",FISCAL YEAR 2015,"","","","CAULK, ANDREW T"
,CHIEF ADMIN OFCR OF THE HOUSE,2015Q2,PERSONNEL COMPENSATION,"","CHABOT, ELLIOT C",04/01/15,06/30/15,SR SYSTEMS ANALYST,"32,654.25",FISCAL YEAR 2015,"","","","CHABOT, ELLIOT C"
,CHIEF ADMIN OFCR OF THE HOUSE,2015Q2,PERSONNEL COMPENSATION,"","CHAMBERS, KEVIN N",04/01/15,06/30/15,SR CUSTOMER SOLUTIONS REP,"20,694.00",FISCAL YEAR 2015,"","","","CHAMBERS, KEVIN N"
,CHIEF ADMIN OFCR OF THE HOUSE,2015Q2,PERSONNEL COMPENSATION,"","CHAMBERS, KEVIN N",03/01/15,05/31/15,SR CUSTOMER SOLUTIONS REP. (OVERTIME),"1,313.25",FISCAL YEAR 2015,"","","","CHAMBERS, KEVIN N"
,CHIEF ADMIN OFCR OF THE HOUSE,2015Q2,PERSONNEL COMPENSATION,"","CHANG, SU-HWA",04/01/15,06/30/15,SENIOR SYSTEMS ENGINEER,"31,614.75",FISCAL YEAR 2015,"","","","CHANG, SU-HWA"
,CHIEF ADMIN OFCR OF THE HOUSE,2015Q2,PERSONNEL COMPENSATION,"","CHARGUALAF,JESSE",04/01/15,06/30/15,BROADCAST ENGINEER/PROD SPEC,"20,276.76",FISCAL YEAR 2015,"","","","CHARGUALAF,JESSE"
,CHIEF ADMIN OFCR OF THE HOUSE,2015Q2,PERSONNEL COMPENSATION,"","CHARGUALAF,JESSE",05/01/15,05/31/15,BROADCAST ENGINEER/PROD SPEC. (OVERTIME),214.46,FISCAL YEAR 2015,"","","","CHARGUALAF,JESSE"
,CHIEF ADMIN OFCR OF THE HOUSE,2015Q2,PERSONNEL COMPENSATION,"","CHEN, SUSAN",04/01/15,06/30/15,FINANCIAL COUNSELOR,"16,902.24",FISCAL YEAR 2015,"","","","CHEN, SUSAN"
,CHIEF ADMIN OFCR OF THE HOUSE,2015Q2,PERSONNEL COMPENSATION,"","CICALE, MICHAEL P",04/01/15,06/30/15,SR CUSTOMER SOLUTIONS REP,"19,283.25",FISCAL YEAR 2015,"","","","CICALE, MICHAEL P"
,CHIEF ADMIN OFCR OF THE HOUSE,2015Q2,PERSONNEL COMPENSATION,"","CLAGGETT, TIMOTHY A",03/01/15,06/30/15,JOURNEYMAN TEXTILE SPEC,"18,854.74",FISCAL YEAR 2015,"","","","CLAGGETT, TIMOTHY A"
,CHIEF ADMIN OFCR OF THE HOUSE,2015Q2,PERSONNEL COMPENSATION,"","CLARK, MARION",04/01/15,06/30/15,SR TELECOMMUNICATIONS ADMIN,"18,092.25",FISCAL YEAR 2015,"","","","CLARK, MARION"
,CHIEF ADMIN OFCR OF THE HOUSE,2015Q2,PERSONNEL COMPENSATION,"","CLARKE, JOHN P",04/01/15,06/30/15,SUPERVISOR,"22,098.51",FISCAL YEAR 2015,"","","","CLARKE, JOHN P"
,CHIEF ADMIN OFCR OF THE HOUSE,2015Q2,PERSONNEL COMPENSATION,"","COAKLEY,KRISTEN J",04/01/15,06/30/15,SR TELECOMMUNICATIONS ADMIN,"17,298.00",FISCAL YEAR 2015,"","","","COAKLEY,KRISTEN J"
,CHIEF ADMIN OFCR OF THE HOUSE,2015Q2,PERSONNEL COMPENSATION,"","COBB, FAYE C",04/01/15,06/30/15,"DIR, BUDGET, POLICY & PLANNING","40,594.26",FISCAL YEAR 2015,"","","","COBB, FAYE C"
,CHIEF ADMIN OFCR OF THE HOUSE,2015Q2,PERSONNEL COMPENSATION,"","COLBERT, RAY C",04/01/15,06/30/15,SR BROADCAST ENG/PROD SPECLST,"24,180.99",FISCAL YEAR 2015,"","","","COLBERT, RAY C"
,CHIEF ADMIN OFCR OF THE HOUSE,2015Q2,PERSONNEL COMPENSATION,"","COLBERT, RAY C",03/01/15,05/31/15,SR BROADCAST ENG/PROD SPECLST (OVERTIME),674.27,FISCAL YEAR 2015,"","","","COLBERT, RAY C"
,CHIEF ADMIN OFCR OF THE HOUSE,2015Q2,PERSONNEL COMPENSATION,"","COLLINS, JOHN B",04/01/15,06/30/15,BROADCAST PRODUCTION TECHNICIA,"23,916.00",FISCAL YEAR 2015,"","","","COLLINS, JOHN B"
,CHIEF ADMIN OFCR OF THE HOUSE,2015Q2,PERSONNEL COMPENSATION,"","COLLINS, JOHN B",03/01/15,05/31/15,BROADCAST PRODUCTION TECHNICIA (OVERTIME),"2,299.59",FISCAL YEAR 2015,"","","","COLLINS, JOHN B"
,CHIEF ADMIN OFCR OF THE HOUSE,2015Q2,PERSONNEL COMPENSATION,"","COLLINS,JOEL",04/01/15,06/30/15,SR INTERNET SYSTEMS SPECIALIST,"31,016.25",FISCAL YEAR 2015,"","","","COLLINS,JOEL"
,CHIEF ADMIN OFCR OF THE HOUSE,2015Q2,PERSONNEL COMPENSATION,"","CONNOLLY,ERIC",04/01/15,06/30/15,PHOTOGRAPHER,"15,117.24",FISCAL YEAR 2015,"","","","CONNOLLY,ERIC"
,CHIEF ADMIN OFCR OF THE HOUSE,2015Q2,PERSONNEL COMPENSATION,"","COOK, ERIC H",04/01/15,06/30/15,NETWORK TECHNICIAN,"20,694.00",FISCAL YEAR 2015,"","","","COOK, ERIC H"
,CHIEF ADMIN OFCR OF THE HOUSE,2015Q2,PERSONNEL COMPENSATION,"","COOPER, RICHARD S",04/01/15,06/30/15,STAFF ACCOUNTANT (A),"25,548.00",FISCAL YEAR 2015,"","","","COOPER, RICHARD S"
,CHIEF ADMIN OFCR OF THE HOUSE,2015Q2,PERSONNEL COMPENSATION,"","CORNEJO, LUIS E",04/01/15,06/30/15,SENIOR SYSTEMS ENGINEER,"26,461.26",FISCAL YEAR 2015,"","","","CORNEJO, LUIS E"
,CHIEF ADMIN OFCR OF THE HOUSE,2015Q2,PERSONNEL COMPENSATION,"","COX, BRIDGET A",04/01/15,06/30/15,SENIOR SYSTEMS ANALYST,"30,581.25",FISCAL YEAR 2015,"","","","COX, BRIDGET A"
,CHIEF ADMIN OFCR OF THE HOUSE,2015Q2,PERSONNEL COMPENSATION,"","COYNE III, THOMAS E",04/01/15,05/31/15,ASSISTANT CAO,"28,068.50",FISCAL YEAR 2015,"","","","COYNE III, THOMAS E"
,CHIEF ADMIN OFCR OF THE HOUSE,2015Q2,PERSONNEL COMPENSATION,"","COYNE III, THOMAS E",06/01/15,06/30/15,CHIEF LOGISTICS OFFICER,"14,034.25",FISCAL YEAR 2015,"","","","COYNE III, THOMAS E"
,CHIEF ADMIN OFCR OF THE HOUSE,2015Q2,PERSONNEL COMPENSATION,"","CRUDUP III, WILLIAM D",04/01/15,06/30/15,LOGISTICS & DIST SPEC (A),"12,872.76",FISCAL YEAR 2015,"","","","CRUDUP III, WILLIAM D"
,CHIEF ADMIN OFCR OF THE HOUSE,2015Q2,PERSONNEL COMPENSATION,"","CUFF,LOREN D",04/01/15,06/30/15,INTERNET SYSTEMS SPECIALIST,"20,294.76",FISCAL YEAR 2015,"","","","CUFF,LOREN D"
,CHIEF ADMIN OFCR OF THE HOUSE,2015Q2,PERSONNEL COMPENSATION,"","CUFFEY, LAWRENCE",04/01/15,06/30/15,SR RECVNG AND WAREHOUSING SPEC,"18,207.24",FISCAL YEAR 2015,"","","","CUFFEY, LAWRENCE"
,CHIEF ADMIN OFCR OF THE HOUSE,2015Q2,PERSONNEL COMPENSATION,"","CUPRILL, CARLOS",04/01/15,06/30/15,SR TECHNICAL SUPPORT REP,"23,004.24",FISCAL YEAR 2015,"","","","CUPRILL, CARLOS"
,CHIEF ADMIN OFCR OF THE HOUSE,2015Q2,PERSONNEL COMPENSATION,"","CUTLER JR, BENJAMIN S",04/01/15,06/30/15,PAYROLL & BENEFITS ASSISTANT,"15,802.50",FISCAL YEAR 2015,"","","","CUTLER JR, BENJAMIN S"
,CHIEF ADMIN OFCR OF THE HOUSE,2015Q2,PERSONNEL COMPENSATION,"","CUTLER JR, BENJAMIN S",03/01/15,03/31/15,PAYROLL & BENEFITS ASSISTANT (OVERTIME),812.91,FISCAL YEAR 2015,"","","","CUTLER JR, BENJAMIN S"
,CHIEF ADMIN OFCR OF THE HOUSE,2015Q2,PERSONNEL COMPENSATION,"","DAHL,RYAN S",04/01/15,06/30/15,MEDIA LOGISTICS COORDINATOR,"15,460.26",FISCAL YEAR 2015,"","","","DAHL,RYAN S"
,CHIEF ADMIN OFCR OF THE HOUSE,2015Q2,PERSONNEL COMPENSATION,"","DAHLSTROM, DARREN",04/01/15,06/30/15,JOURNEYMAN FURNITURE SPEC,"20,076.00",FISCAL YEAR 2015,"","","","DAHLSTROM, DARREN"
,CHIEF ADMIN OFCR OF THE HOUSE,2015Q2,PERSONNEL COMPENSATION,"","DAHLSTROM, DARREN",03/01/15,04/30/15,JOURNEYMAN FURNITURE SPEC. (OVERTIME),"2,625.29",FISCAL YEAR 2015,"","","","DAHLSTROM, DARREN"
,CHIEF ADMIN OFCR OF THE HOUSE,2015Q2,PERSONNEL COMPENSATION,"","DAVENPORT,KAREN V",04/01/15,06/30/15,FINANCIAL ANALYST,"22,551.24",FISCAL YEAR 2015,"","","","DAVENPORT,KAREN V"
,CHIEF ADMIN OFCR OF THE HOUSE,2015Q2,PERSONNEL COMPENSATION,"","DAVIS, JOHN J",04/01/15,06/30/15,BROADCAST PRODUCTION TECHNICIA,"23,004.24",FISCAL YEAR 2015,"","","","DAVIS, JOHN J"
,CHIEF ADMIN OFCR OF THE HOUSE,2015Q2,PERSONNEL COMPENSATION,"","DAVIS, JOHN J",03/01/15,05/31/15,BROADCAST PRODUCTION TECHNICIA (OVERTIME),132.72,FISCAL YEAR 2015,"","","","DAVIS, JOHN J"
,CHIEF ADMIN OFCR OF THE HOUSE,2015Q2,PERSONNEL COMPENSATION,"","DAVIS, STACHIA G",04/01/15,06/30/15,DIR MOD FURN & TRANSITION,"27,988.26",FISCAL YEAR 2015,"","","","DAVIS, STACHIA G"
,CHIEF ADMIN OFCR OF THE HOUSE,2015Q2,PERSONNEL COMPENSATION,"","DAVIS,SCOTT K",04/01/15,06/30/15,PAYROLL & BENEFITS GENERALIST,"17,298.00",FISCAL YEAR 2015,"","","","DAVIS,SCOTT K"
,CHIEF ADMIN OFCR OF THE HOUSE,2015Q2,PERSONNEL COMPENSATION,"","DAWKINS, JOANN",04/01/15,06/30/15,SR TELECOMM ADMIN,"16,836.99",FISCAL YEAR 2015,"","","","DAWKINS, JOANN"
,CHIEF ADMIN OFCR OF THE HOUSE,2015Q2,PERSONNEL COMPENSATION,"","DEAN, JOSEPH M",04/01/15,06/30/15,JOURNEYMAN TEXTILE SPEC,"20,694.00",FISCAL YEAR 2015,"","","","DEAN, JOSEPH M"
,CHIEF ADMIN OFCR OF THE HOUSE,2015Q2,PERSONNEL COMPENSATION,"","DEAVER,JAMES",04/01/15,06/30/15,SENIOR SYSTEMS ENGINEER,"32,712.00",FISCAL YEAR 2015,"","","","DEAVER,JAMES"
,CHIEF ADMIN OFCR OF THE HOUSE,2015Q2,PERSONNEL COMPENSATION,"","DELISLE,KALDON A",04/01/15,06/30/15,JOURNEYMAN FURNITURE SPEC,"14,432.49",FISCAL YEAR 2015,"","","","DELISLE,KALDON A"
,CHIEF ADMIN OFCR OF THE HOUSE,2015Q2,PERSONNEL COMPENSATION,"","DELUCA, ALAN",04/01/15,06/30/15,COMPUTER FACILITIES OP MGR (A),"36,494.49",FISCAL YEAR 2015,"","","","DELUCA, ALAN"
,CHIEF ADMIN OFCR OF THE HOUSE,2015Q2,PERSONNEL COMPENSATION,"","DENT,RICHARD H",04/01/15,06/30/15,JOURNEYMAN TEXTILE SPEC,"13,043.49",FISCAL YEAR 2015,"","","","DENT,RICHARD H"
,CHIEF ADMIN OFCR OF THE HOUSE,2015Q2,PERSONNEL COMPENSATION,"","DERRICK, SCOTT",04/01/15,06/30/15,GRAPHICS & DESKTOP PUBL SPEC,"23,460.75",FISCAL YEAR 2015,"","","","DERRICK, SCOTT"
,CHIEF ADMIN OFCR OF THE HOUSE,2015Q2,PERSONNEL COMPENSATION,"","DICKIE, JAMES",04/01/15,06/30/15,ENGINEERING OPS MANAGER,"31,393.75",FISCAL YEAR 2015,"","","","DICKIE, JAMES"
,CHIEF ADMIN OFCR OF THE HOUSE,2015Q2,PERSONNEL COMPENSATION,"","DIEFFENDERFER, GARY L",04/01/15,06/30/15,SR. APPLICATION DBA SPECIALIST,"32,712.00",FISCAL YEAR 2015,"","","","DIEFFENDERFER, GARY L"
,CHIEF ADMIN OFCR OF THE HOUSE,2015Q2,PERSONNEL COMPENSATION,"","DOBBINS, MARK",04/01/15,06/30/15,"MANAGER, PURCHASING","23,916.00",FISCAL YEAR 2015,"","","","DOBBINS, MARK"
,CHIEF ADMIN OFCR OF THE HOUSE,2015Q2,PERSONNEL COMPENSATION,"","DOLPH,EMILY M",04/01/15,06/30/15,ADA AIDE,"14,772.75",FISCAL YEAR 2015,"","","","DOLPH,EMILY M"
,CHIEF ADMIN OFCR OF THE HOUSE,2015Q2,PERSONNEL COMPENSATION,"","DOLPH,EMILY M",03/01/15,05/31/15,ADA AIDE (OVERTIME),"1,619.30",FISCAL YEAR 2015,"","","","DOLPH,EMILY M"
,CHIEF ADMIN OFCR OF THE HOUSE,2015Q2,PERSONNEL COMPENSATION,"","DOODY,ERICA",01/01/15,06/30/15,ADMINISTRATIVE SPECIALIST,"9,530.30",FISCAL YEAR 2015,"","","","DOODY,ERICA"
,CHIEF ADMIN OFCR OF THE HOUSE,2015Q2,PERSONNEL COMPENSATION,"","DOOLEY,GENEVA",04/01/15,06/30/15,SENIOR SOFTWARE SPECIALIST,"32,712.00",FISCAL YEAR 2015,"","","","DOOLEY,GENEVA"
,CHIEF ADMIN OFCR OF THE HOUSE,2015Q2,PERSONNEL COMPENSATION,"","DOZIER, BRIAN A",04/01/15,06/30/15,INVENTORY ADMINISTRATOR,"15,574.34",FISCAL YEAR 2015,"","","","DOZIER, BRIAN A"
,CHIEF ADMIN OFCR OF THE HOUSE,2015Q2,PERSONNEL COMPENSATION,"","DUENAS, JOSEPH E",04/01/15,06/30/15,TECHNICAL SUPPORT REP,"19,095.51",FISCAL YEAR 2015,"","","","DUENAS, JOSEPH E"
,CHIEF ADMIN OFCR OF THE HOUSE,2015Q2,PERSONNEL COMPENSATION,"","DUNKLIN, KELDA Y",04/01/15,06/30/15,SR TECHNICAL SUPPORT REP,"26,914.74",FISCAL YEAR 2015,"","","","DUNKLIN, KELDA Y"
,CHIEF ADMIN OFCR OF THE HOUSE,2015Q2,PERSONNEL COMPENSATION,"","DURAN, ROLANDO",04/01/15,06/30/15,ELECTRONICS TECHNICIAN (A),"23,004.24",FISCAL YEAR 2015,"","","","DURAN, ROLANDO"
,CHIEF ADMIN OFCR OF THE HOUSE,2015Q2,PERSONNEL COMPENSATION,"","EAGLIN,HOPE J",04/01/15,06/30/15,SENIOR SECURITY ANALYST,"27,469.74",FISCAL YEAR 2015,"","","","EAGLIN,HOPE J"
,CHIEF ADMIN OFCR OF THE HOUSE,2015Q2,PERSONNEL COMPENSATION,"","EGERSON, TROY H",04/01/15,06/30/15,JOURNEYMAN TEXTILE SPEC,"18,885.51",FISCAL YEAR 2015,"","","","EGERSON, TROY H"
,CHIEF ADMIN OFCR OF THE HOUSE,2015Q2,PERSONNEL COMPENSATION,"","ELIAS, ANDREW C",04/01/15,06/30/15,DEPUTY DIRECTOR,"30,063.24",FISCAL YEAR 2015,"","","","ELIAS, ANDREW C"
,CHIEF ADMIN OFCR OF THE HOUSE,2015Q2,PERSONNEL COMPENSATION,"","ELLIN, JAMES B",04/01/15,06/30/15,SR NETWORK SYSTEMS ENGINEER,"30,453.99",FISCAL YEAR 2015,"","","","ELLIN, JAMES B"
,CHIEF ADMIN OFCR OF THE HOUSE,2015Q2,PERSONNEL COMPENSATION,"","ELLIOTT, RONALD",04/01/15,06/30/15,SR INFO SYST. SECURITY ANALYST,"26,004.00",FISCAL YEAR 2015,"","","","ELLIOTT, RONALD"
,CHIEF ADMIN OFCR OF THE HOUSE,2015Q2,PERSONNEL COMPENSATION,"","ELLIS,FRANKLIN M",04/01/15,06/30/15,SR SYSTEMS SUPPORT ENGINEER,"23,114.75",FISCAL YEAR 2015,"","","","ELLIS,FRANKLIN M"
,CHIEF ADMIN OFCR OF THE HOUSE,2015Q2,PERSONNEL COMPENSATION,"","ELLIS-GREGG, SHARON",04/01/15,06/30/15,PAYROLL & BENEFITS ASSISTANT,"14,418.75",FISCAL YEAR 2015,"","","","ELLIS-GREGG, SHARON"
,CHIEF ADMIN OFCR OF THE HOUSE,2015Q2,PERSONNEL COMPENSATION,"","ELLIS-GREGG, SHARON",03/01/15,03/31/15,PAYROLL & BENEFITS ASSISTANT (OVERTIME),291.14,FISCAL YEAR 2015,"","","","ELLIS-GREGG, SHARON"
,CHIEF ADMIN OFCR OF THE HOUSE,2015Q2,PERSONNEL COMPENSATION,"","ELLIS-JONES, DEBORAH",04/01/15,06/30/15,ADMIN-FINANCE & PAYROLL,"24,180.99",FISCAL YEAR 2015,"","","","ELLIS-JONES, DEBORAH"
,CHIEF ADMIN OFCR OF THE HOUSE,2015Q2,PERSONNEL COMPENSATION,"","EMAMALI, NICOLE S",04/01/15,06/30/15,SR TECHNICAL SUPPORT REP,"27,988.26",FISCAL YEAR 2015,"","","","EMAMALI, NICOLE S"
,CHIEF ADMIN OFCR OF THE HOUSE,2015Q2,PERSONNEL COMPENSATION,"","ENGLISH IV, JAMES H",04/01/15,06/30/15,JOURNEYMAN FURNITURE SPEC,"13,742.76",FISCAL YEAR 2015,"","","","ENGLISH IV, JAMES H"
,CHIEF ADMIN OFCR OF THE HOUSE,2015Q2,PERSONNEL COMPENSATION,"","ENGLISH, JOSEPH H",04/01/15,06/30/15,MOBILE COMM SPECIALIST (DATA),"26,004.00",FISCAL YEAR 2015,"","","","ENGLISH, JOSEPH H"
,CHIEF ADMIN OFCR OF THE HOUSE,2015Q2,PERSONNEL COMPENSATION,"","ERVING, JAMES H",04/01/15,06/30/15,COMMUNICATIONS SPECIALIST,"26,914.74",FISCAL YEAR 2015,"","","","ERVING, JAMES H"
,CHIEF ADMIN OFCR OF THE HOUSE,2015Q2,PERSONNEL COMPENSATION,"","ETCHISON,CHERYL A",04/01/15,06/30/15,"MANAGER, PAYROLL & BENEFITS","29,324.49",FISCAL YEAR 2015,"","","","ETCHISON,CHERYL A"
,CHIEF ADMIN OFCR OF THE HOUSE,2015Q2,PERSONNEL COMPENSATION,"","EVANS JR, WILLIAM R",04/01/15,06/30/15,ELECTRONICS TECHNICIAN (A),"23,460.75",FISCAL YEAR 2015,"","","","EVANS JR, WILLIAM R"
,CHIEF ADMIN OFCR OF THE HOUSE,2015Q2,PERSONNEL COMPENSATION,"","EVANS JR, WILLIAM R",03/01/15,05/31/15,ELECTRONICS TECHNICIAN (A) (OVERTIME),"2,797.22",FISCAL YEAR 2015,"","","","EVANS JR, WILLIAM R"
,CHIEF ADMIN OFCR OF THE HOUSE,2015Q2,PERSONNEL COMPENSATION,"","EVANS,THOMAS F",04/01/15,06/30/15,INFO SYSTEMS SECURITY ANALYST,"23,723.49",FISCAL YEAR 2015,"","","","EVANS,THOMAS F"
,CHIEF ADMIN OFCR OF THE HOUSE,2015Q2,PERSONNEL COMPENSATION,"","EWERS, GRETCHEN",04/01/15,06/30/15,MANAGER,"26,914.74",FISCAL YEAR 2015,"","","","EWERS, GRETCHEN"
,CHIEF ADMIN OFCR OF THE HOUSE,2015Q2,PERSONNEL COMPENSATION,"","EWING JR, JOHN C",04/01/15,06/30/15,RECEIVING/WAREHOUSE SPECIALIST,"11,200.74",FISCAL YEAR 2015,"","","","EWING JR, JOHN C"
,CHIEF ADMIN OFCR OF THE HOUSE,2015Q2,PERSONNEL COMPENSATION,"","FARLEY, JOANN I",04/01/15,06/30/15,FINANCIAL COUNSELOR,"18,487.74",FISCAL YEAR 2015,"","","","FARLEY, JOANN I"
,CHIEF ADMIN OFCR OF THE HOUSE,2015Q2,PERSONNEL COMPENSATION,"","FINUCANE,CHRISTOPHER B",04/01/15,06/30/15,DIRECTOR ENTERPRISE OPERATIONS,"40,594.26",FISCAL YEAR 2015,"","","","FINUCANE,CHRISTOPHER B"
,CHIEF ADMIN OFCR OF THE HOUSE,2015Q2,PERSONNEL COMPENSATION,"","FISHER, JEROME",04/01/15,06/30/15,SR TECH SOLUTIONS ENGINEER,"25,089.99",FISCAL YEAR 2015,"","","","FISHER, JEROME"
,CHIEF ADMIN OFCR OF THE HOUSE,2015Q2,PERSONNEL COMPENSATION,"","FONTNEAU, BRUCE",04/01/15,06/30/15,SYSTEMS ENGINEER,"24,180.99",FISCAL YEAR 2015,"","","","FONTNEAU, BRUCE"
,CHIEF ADMIN OFCR OF THE HOUSE,2015Q2,PERSONNEL COMPENSATION,"","FORD, DARIN J",04/01/15,06/30/15,SR TECHNICAL SUPPORT REP (A),"23,004.24",FISCAL YEAR 2015,"","","","FORD, DARIN J"
,CHIEF ADMIN OFCR OF THE HOUSE,2015Q2,PERSONNEL COMPENSATION,"","FORGIONE, JOHN A",04/01/15,06/30/15,SR CUSTOMER SOLUTIONS REP,"19,283.25",FISCAL YEAR 2015,"","","","FORGIONE, JOHN A"
,CHIEF ADMIN OFCR OF THE HOUSE,2015Q2,PERSONNEL COMPENSATION,"","FOSTER, CHARLES J",04/01/15,06/30/15,PAYROLL & BENEFITS ASSISTANT,"14,098.33",FISCAL YEAR 2015,"","","","FOSTER, CHARLES J"
,CHIEF ADMIN OFCR OF THE HOUSE,2015Q2,PERSONNEL COMPENSATION,"","FOSTER, CHARLES J",03/01/15,04/30/15,PAYROLL & BENEFITS ASSISTANT (OVERTIME),135.32,FISCAL YEAR 2015,"","","","FOSTER, CHARLES J"
,CHIEF ADMIN OFCR OF THE HOUSE,2015Q2,PERSONNEL COMPENSATION,"","FOUNTAIN,ANIKA",04/01/15,06/30/15,TECH SOLUTIONS TECHNICIAN,"18,092.25",FISCAL YEAR 2015,"","","","FOUNTAIN,ANIKA"
,CHIEF ADMIN OFCR OF THE HOUSE,2015Q2,PERSONNEL COMPENSATION,"","FRAVEL,DON J",04/01/15,06/30/15,TECH SOLUTIONS TECHNICIAN,"17,693.01",FISCAL YEAR 2015,"","","","FRAVEL,DON J"
,CHIEF ADMIN OFCR OF THE HOUSE,2015Q2,PERSONNEL COMPENSATION,"","FRECH, JASON L",04/01/15,06/30/15,SR SYSTEMS ENGINEER,"26,953.74",FISCAL YEAR 2015,"","","","FRECH, JASON L"
,CHIEF ADMIN OFCR OF THE HOUSE,2015Q2,PERSONNEL COMPENSATION,"","FREEMAN, ANTOINETTE P",04/01/15,06/30/15,ADMINISTRATIVE SPECIALIST,"15,104.76",FISCAL YEAR 2015,"","","","FREEMAN, ANTOINETTE P"
,CHIEF ADMIN OFCR OF THE HOUSE,2015Q2,PERSONNEL COMPENSATION,"","FREENEY, MALCOLM",04/01/15,06/30/15,PROJECT MANAGER,"26,461.26",FISCAL YEAR 2015,"","","","FREENEY, MALCOLM"
,CHIEF ADMIN OFCR OF THE HOUSE,2015Q2,PERSONNEL COMPENSATION,"","FRENCH, CHARLES",04/01/15,06/30/15,SENIOR NETWORK TECHNICIAN,"26,004.00",FISCAL YEAR 2015,"","","","FRENCH, CHARLES"
,CHIEF ADMIN OFCR OF THE HOUSE,2015Q2,PERSONNEL COMPENSATION,"","FRITZ,ERIC D",04/01/15,06/30/15,SENIOR SYSTEMS ENGINEER,"27,988.26",FISCAL YEAR 2015,"","","","FRITZ,ERIC D"
,CHIEF ADMIN OFCR OF THE HOUSE,2015Q2,PERSONNEL COMPENSATION,"","GAINES, JULIA W",04/01/15,06/30/15,SPECIAL ASSISTANT (A),"26,185.50",FISCAL YEAR 2015,"","","","GAINES, JULIA W"
,CHIEF ADMIN OFCR OF THE HOUSE,2015Q2,PERSONNEL COMPENSATION,"","GALLAGHER, RENEE",04/01/15,06/30/15,SR INFO SYST. SECURITY ANALYST,"26,004.00",FISCAL YEAR 2015,"","","","GALLAGHER, RENEE"
,CHIEF ADMIN OFCR OF THE HOUSE,2015Q2,PERSONNEL COMPENSATION,"","GALLAGHER,RYAN S",04/01/15,06/30/15,PAYROLL & BENEFITS GENERALIST,"14,432.49",FISCAL YEAR 2015,"","","","GALLAGHER,RYAN S"
,CHIEF ADMIN OFCR OF THE HOUSE,2015Q2,PERSONNEL COMPENSATION,"","GALLAGHER,RYAN S",03/01/15,03/31/15,PAYROLL & BENEFITS GENERALIST (OVERTIME),353.87,FISCAL YEAR 2015,"","","","GALLAGHER,RYAN S"
,CHIEF ADMIN OFCR OF THE HOUSE,2015Q2,PERSONNEL COMPENSATION,"","GARAY, GERMAN",04/01/15,06/30/15,BROADCAST PRODUCTION TECHNICIA,"23,156.41",FISCAL YEAR 2015,"","","","GARAY, GERMAN"
,CHIEF ADMIN OFCR OF THE HOUSE,2015Q2,PERSONNEL COMPENSATION,"","GARAY, GERMAN",03/01/15,05/31/15,BROADCAST PRODUCTION TECHNICIA (OVERTIME),"3,539.07",FISCAL YEAR 2015,"","","","GARAY, GERMAN"
,CHIEF ADMIN OFCR OF THE HOUSE,2015Q2,PERSONNEL COMPENSATION,"","GARCIA, JOHN",04/01/15,06/30/15,JOURNEYMAN FURNITURE SPEC,"13,742.76",FISCAL YEAR 2015,"","","","GARCIA, JOHN"
,CHIEF ADMIN OFCR OF THE HOUSE,2015Q2,PERSONNEL COMPENSATION,"","GASKINS, JAMES R",04/01/15,06/30/15,BRANCH MANAGER,"32,712.00",FISCAL YEAR 2015,"","","","GASKINS, JAMES R"
,CHIEF ADMIN OFCR OF THE HOUSE,2015Q2,PERSONNEL COMPENSATION,"","GATES, TRENA F",04/01/15,05/31/15,FINANCIAL COUNSELOR,"14,061.66",FISCAL YEAR 2015,"","","","GATES, TRENA F"
,CHIEF ADMIN OFCR OF THE HOUSE,2015Q2,PERSONNEL COMPENSATION,"","GATES, TRENA F",06/01/15,06/30/15,FINANCIAL ANALYST,"7,030.83",FISCAL YEAR 2015,"","","","GATES, TRENA F"
,CHIEF ADMIN OFCR OF THE HOUSE,2015Q2,PERSONNEL COMPENSATION,"","GATES, TRENA F",11/01/14,11/30/14,FINANCIAL COUNSELOR (OVERTIME),321.28,FISCAL YEAR 2015,"","","","GATES, TRENA F"
,CHIEF ADMIN OFCR OF THE HOUSE,2015Q2,PERSONNEL COMPENSATION,"","GATES,COREY M",04/01/15,06/30/15,JOURNEYMAN TEXTILE SPEC,"13,387.26",FISCAL YEAR 2015,"","","","GATES,COREY M"
,CHIEF ADMIN OFCR OF THE HOUSE,2015Q2,PERSONNEL COMPENSATION,"","GATES,THOMAS D",04/01/15,06/30/15,SENIOR SYSTEMS ENGINEER,"24,484.33",FISCAL YEAR 2015,"","","","GATES,THOMAS D"
,CHIEF ADMIN OFCR OF THE HOUSE,2015Q2,PERSONNEL COMPENSATION,"","GEPERT,DARLA M",04/01/15,06/30/15,ADMINISTRATIVE SPECIALIST (A),"13,043.49",FISCAL YEAR 2015,"","","","GEPERT,DARLA M"
,CHIEF ADMIN OFCR OF THE HOUSE,2015Q2,PERSONNEL COMPENSATION,"","GEPERT,DARLA M",04/01/15,04/30/15,ADMINISTRATIVE SPECIALIST (A) (OVERTIME),25.08,FISCAL YEAR 2015,"","","","GEPERT,DARLA M"
,CHIEF ADMIN OFCR OF THE HOUSE,2015Q2,PERSONNEL COMPENSATION,"","GERARDEN,PAUL J",04/01/15,06/30/15,CUSTOMER SOLUTIONS REP,"14,075.76",FISCAL YEAR 2015,"","","","GERARDEN,PAUL J"
,CHIEF ADMIN OFCR OF THE HOUSE,2015Q2,PERSONNEL COMPENSATION,"","GILLIS,DANIEL",04/01/15,06/30/15,ADA AIDE,"7,135.50",FISCAL YEAR 2015,"","","","GILLIS,DANIEL"
,CHIEF ADMIN OFCR OF THE HOUSE,2015Q2,PERSONNEL COMPENSATION,"","GILLIS,DANIEL",03/01/15,05/31/15,ADA AIDE (OVERTIME),"11,616.03",FISCAL YEAR 2015,"","","","GILLIS,DANIEL"
,CHIEF ADMIN OFCR OF THE HOUSE,2015Q2,PERSONNEL COMPENSATION,"","GIZARA, MICHAEL P",04/01/15,06/30/15,TEAM LEAD OPERATNS/ADV CONTENT,"33,276.99",FISCAL YEAR 2015,"","","","GIZARA, MICHAEL P"
,CHIEF ADMIN OFCR OF THE HOUSE,2015Q2,PERSONNEL COMPENSATION,"","GOGGINS II, JAMES D",04/01/15,06/30/15,NETWORK COMM SPECIALIST (A),"23,460.75",FISCAL YEAR 2015,"","","","GOGGINS II, JAMES D"
,CHIEF ADMIN OFCR OF THE HOUSE,2015Q2,PERSONNEL COMPENSATION,"","GOLDSBOROUGH-LEE, ANGEL M",04/01/15,06/30/15,"DIR, TECH MGT & INTERNAL CTRLS","35,241.75",FISCAL YEAR 2015,"","","","GOLDSBOROUGH-LEE, ANGEL M"
,CHIEF ADMIN OFCR OF THE HOUSE,2015Q2,PERSONNEL COMPENSATION,"","GONZALEZ, ROSARIO D",04/01/15,06/30/15,SR CUSTOMER SOLUTIONS REP,"20,294.76",FISCAL YEAR 2015,"","","","GONZALEZ, ROSARIO D"
,CHIEF ADMIN OFCR OF THE HOUSE,2015Q2,PERSONNEL COMPENSATION,"","GOODIN,EMILY L",04/01/15,06/30/15,SENIOR COMMUNICATIONS SPEC,"18,697.26",FISCAL YEAR 2015,"","","","GOODIN,EMILY L"
,CHIEF ADMIN OFCR OF THE HOUSE,2015Q2,PERSONNEL COMPENSATION,"","GOODMAN,JESSICA L",04/01/15,06/30/15,PAYROLL & BENEFITS GENERALIST,"14,086.74",FISCAL YEAR 2015,"","","","GOODMAN,JESSICA L"
,CHIEF ADMIN OFCR OF THE HOUSE,2015Q2,PERSONNEL COMPENSATION,"","GOULD, MICHAEL",04/01/15,06/30/15,"MANAGER, REMEDY MANAGEMENT","31,016.25",FISCAL YEAR 2015,"","","","GOULD, MICHAEL"
,CHIEF ADMIN OFCR OF THE HOUSE,2015Q2,PERSONNEL COMPENSATION,"","GRAEUB, ANDREW C",04/01/15,06/30/15,"MANAGER, NETWORK SYST ENGINEER","35,241.75",FISCAL YEAR 2015,"","","","GRAEUB, ANDREW C"
,CHIEF ADMIN OFCR OF THE HOUSE,2015Q2,PERSONNEL COMPENSATION,"","GRANT,LISA",05/25/15,06/30/15,CHIEF PROCUREMENT OFFICER,"16,841.10",FISCAL YEAR 2015,"","","","GRANT,LISA"
,CHIEF ADMIN OFCR OF THE HOUSE,2015Q2,PERSONNEL COMPENSATION,"","GRECO,JACQUELINE M",04/01/15,04/30/15,FINANCIAL ASSISTANT,"3,589.75",FISCAL YEAR 2015,"","","","GRECO,JACQUELINE M"
,CHIEF ADMIN OFCR OF THE HOUSE,2015Q2,PERSONNEL COMPENSATION,"","GRECO,JACQUELINE M",05/01/15,06/30/15,CUSTOMER SOLUTIONS REP,"8,469.00",FISCAL YEAR 2015,"","","","GRECO,JACQUELINE M"
,CHIEF ADMIN OFCR OF THE HOUSE,2015Q2,PERSONNEL COMPENSATION,"","GREEN, CAROLINE",04/01/15,06/30/15,TECHNICAL SUPPORT REP (A),"18,487.74",FISCAL YEAR 2015,"","","","GREEN, CAROLINE"
,CHIEF ADMIN OFCR OF THE HOUSE,2015Q2,PERSONNEL COMPENSATION,"","GREEN, MITCHELL",04/01/15,06/30/15,CONTRACT ADMINISTRATOR,"32,900.33",FISCAL YEAR 2015,"","","","GREEN, MITCHELL"
,CHIEF ADMIN OFCR OF THE HOUSE,2015Q2,PERSONNEL COMPENSATION,"","GREENE, CHANTEL T",04/01/15,06/30/15,MGR BUS SYS AND INTEGRATION,"36,494.49",FISCAL YEAR 2015,"","","","GREENE, CHANTEL T"
,CHIEF ADMIN OFCR OF THE HOUSE,2015Q2,PERSONNEL COMPENSATION,"","GRIGGS,KYLE R",04/01/15,06/30/15,CONTRACTS SPECIALIST,"20,732.25",FISCAL YEAR 2015,"","","","GRIGGS,KYLE R"
,CHIEF ADMIN OFCR OF THE HOUSE,2015Q2,PERSONNEL COMPENSATION,"","GRISWOLD,RAYMOND",04/01/15,06/30/15,"DIRECTOR, ACQ & CONTRACT MGMT","34,620.51",FISCAL YEAR 2015,"","","","GRISWOLD,RAYMOND"
,CHIEF ADMIN OFCR OF THE HOUSE,2015Q2,PERSONNEL COMPENSATION,"","GRONSKI,ROBERT S",04/01/15,06/30/15,SR BUSINESS PROCESS APPL SPEC,"30,453.99",FISCAL YEAR 2015,"","","","GRONSKI,ROBERT S"
,CHIEF ADMIN OFCR OF THE HOUSE,2015Q2,PERSONNEL COMPENSATION,"","GUARNERO,DAVID P",04/01/15,06/30/15,PAYROLL & BENEFITS GENERALIST,"16,504.50",FISCAL YEAR 2015,"","","","GUARNERO,DAVID P"
,CHIEF ADMIN OFCR OF THE HOUSE,2015Q2,PERSONNEL COMPENSATION,"","GUDURU,PRATAP K",04/01/15,06/30/15,SENIOR SYSTEMS ENGINEER,"32,145.99",FISCAL YEAR 2015,"","","","GUDURU,PRATAP K"
,CHIEF ADMIN OFCR OF THE HOUSE,2015Q2,PERSONNEL COMPENSATION,"","GUGLIOTTA,NORMAN",04/01/15,06/30/15,FINANCIAL COUNSELOR (A),"16,902.24",FISCAL YEAR 2015,"","","","GUGLIOTTA,NORMAN"
,CHIEF ADMIN OFCR OF THE HOUSE,2015Q2,PERSONNEL COMPENSATION,"","HALL,MORGAN",04/01/15,06/30/15,FACILITIES MANAGEMENT SPECIALI,"17,298.00",FISCAL YEAR 2015,"","","","HALL,MORGAN"
,CHIEF ADMIN OFCR OF THE HOUSE,2015Q2,PERSONNEL COMPENSATION,"","HAMBRIC, STEEN H",04/01/15,06/30/15,ASSISTANT CAO,"42,102.75",FISCAL YEAR 2015,"","","","HAMBRIC, STEEN H"
,CHIEF ADMIN OFCR OF THE HOUSE,2015Q2,PERSONNEL COMPENSATION,"","HAMEL,RYAN T",04/01/15,06/30/15,THIRD ASSISTANT,"16,902.24",FISCAL YEAR 2015,"","","","HAMEL,RYAN T"
,CHIEF ADMIN OFCR OF THE HOUSE,2015Q2,PERSONNEL COMPENSATION,"","HAMNER, PHILIP D",04/01/15,06/30/15,"DIRECTOR, ACCOUNTING","37,120.50",FISCAL YEAR 2015,"","","","HAMNER, PHILIP D"
,CHIEF ADMIN OFCR OF THE HOUSE,2015Q2,PERSONNEL COMPENSATION,"","HANEY, WINSTON",04/01/15,06/30/15,ACCOUNT MANAGEMENT COUNSELOR,"14,418.75",FISCAL YEAR 2015,"","","","HANEY, WINSTON"
,CHIEF ADMIN OFCR OF THE HOUSE,2015Q2,PERSONNEL COMPENSATION,"","HANEY, WINSTON",03/01/15,04/30/15,ACCOUNT MANAGEMENT COUNSELOR (OVERTIME),443.64,FISCAL YEAR 2015,"","","","HANEY, WINSTON"
,CHIEF ADMIN OFCR OF THE HOUSE,2015Q2,PERSONNEL COMPENSATION,"","HANONU, TINA M",04/01/15,06/30/15,ASSISTANT CAO,"42,102.75",FISCAL YEAR 2015,"","","","HANONU, TINA M"
,CHIEF ADMIN OFCR OF THE HOUSE,2015Q2,PERSONNEL COMPENSATION,"","HAQ,RABIA",04/01/15,06/30/15,BUSINESS PROC APPLIC SPEC,"24,180.99",FISCAL YEAR 2015,"","","","HAQ,RABIA"
,CHIEF ADMIN OFCR OF THE HOUSE,2015Q2,PERSONNEL COMPENSATION,"","HARGROVE, BRIAN",04/01/15,06/30/15,LOGISTICS & DIST SPEC (A),"10,599.99",FISCAL YEAR 2015,"","","","HARGROVE, BRIAN"
,CHIEF ADMIN OFCR OF THE HOUSE,2015Q2,PERSONNEL COMPENSATION,"","HARGROVE, BRIAN",04/01/15,04/30/15,LOGISTICS & DIST SPEC (A) (OVERTIME),163.08,FISCAL YEAR 2015,"","","","HARGROVE, BRIAN"
,CHIEF ADMIN OFCR OF THE HOUSE,2015Q2,PERSONNEL COMPENSATION,"","HARRELL,VICKIE",04/01/15,06/30/15,NETWORK TECHNICIAN,"23,004.24",FISCAL YEAR 2015,"","","","HARRELL,VICKIE"
,CHIEF ADMIN OFCR OF THE HOUSE,2015Q2,PERSONNEL COMPENSATION,"","HARRINGTON, KEITH",04/01/15,06/30/15,FINANCIAL COUNSELOR,"23,094.51",FISCAL YEAR 2015,"","","","HARRINGTON, KEITH"
,CHIEF ADMIN OFCR OF THE HOUSE,2015Q2,PERSONNEL COMPENSATION,"","HARRIS, DONALD",04/01/15,04/05/15,SR NETWORK COMM SPECIALIST,"1,612.56",FISCAL YEAR 2015,"","","","HARRIS, DONALD"
,CHIEF ADMIN OFCR OF THE HOUSE,2015Q2,PERSONNEL COMPENSATION,"","HARRIS, DONALD",04/06/15,06/30/15,NETWORK COMM SUPERVISOR,"29,293.13",FISCAL YEAR 2015,"","","","HARRIS, DONALD"
,CHIEF ADMIN OFCR OF THE HOUSE,2015Q2,PERSONNEL COMPENSATION,"","HARRIS, KEVIN",04/01/15,06/30/15,JOURNEYMAN FURNITURE SPEC,"20,076.00",FISCAL YEAR 2015,"","","","HARRIS, KEVIN"
,CHIEF ADMIN OFCR OF THE HOUSE,2015Q2,PERSONNEL COMPENSATION,"","HARRIS, STEPHANIE A",04/01/15,05/12/15,SR BUSINESS PROC APPL SPEC II,"19,647.95",FISCAL YEAR 2015,"","","","HARRIS, STEPHANIE A"
,CHIEF ADMIN OFCR OF THE HOUSE,2015Q2,PERSONNEL COMPENSATION,"","HARRIS, STEPHANIE A",05/01/15,05/12/15,SR BUSINESS PROC APPL SPEC II (OTHER COMPENSATION),"8,420.55",FISCAL YEAR 2015,"","","","HARRIS, STEPHANIE A"
,CHIEF ADMIN OFCR OF THE HOUSE,2015Q2,PERSONNEL COMPENSATION,"","HARVEY, JAMIE",04/01/15,06/30/15,SR TELECOMMUNICATIONS ADMIN (A,"16,836.99",FISCAL YEAR 2015,"","","","HARVEY, JAMIE"
,CHIEF ADMIN OFCR OF THE HOUSE,2015Q2,PERSONNEL COMPENSATION,"","HARVEY,KINSEY B",04/01/15,06/30/15,MEDIA LOGISTICS COORDINATOR,"16,902.24",FISCAL YEAR 2015,"","","","HARVEY,KINSEY B"
,CHIEF ADMIN OFCR OF THE HOUSE,2015Q2,PERSONNEL COMPENSATION,"","HAYES,KATHLEEN M",04/01/15,06/30/15,CUSTOMER SOLUTIONS REP,"15,117.24",FISCAL YEAR 2015,"","","","HAYES,KATHLEEN M"
,CHIEF ADMIN OFCR OF THE HOUSE,2015Q2,PERSONNEL COMPENSATION,"","HAYES,MICHELLE P",04/01/15,06/30/15,SENIOR SYSTEMS ENGINEER,"32,712.00",FISCAL YEAR 2015,"","","","HAYES,MICHELLE P"
,CHIEF ADMIN OFCR OF THE HOUSE,2015Q2,PERSONNEL COMPENSATION,"","HEEB III, JOHN J",04/01/15,06/30/15,SR BUSINESS PROCESS APPL SPEC,"34,407.51",FISCAL YEAR 2015,"","","","HEEB III, JOHN J"
,CHIEF ADMIN OFCR OF THE HOUSE,2015Q2,PERSONNEL COMPENSATION,"","HERBERT, GREGORY L",04/01/15,06/30/15,REC/WAREHOUSE SPEC (A),"12,271.26",FISCAL YEAR 2015,"","","","HERBERT, GREGORY L"
,CHIEF ADMIN OFCR OF THE HOUSE,2015Q2,PERSONNEL COMPENSATION,"","HERBERT,DONNA",04/01/15,06/30/15,FINANCIAL ANALYST,"19,167.27",FISCAL YEAR 2015,"","","","HERBERT,DONNA"
,CHIEF ADMIN OFCR OF THE HOUSE,2015Q2,PERSONNEL COMPENSATION,"","HIBBS, CYNTHIA",04/01/15,06/30/15,NETWORK COORDINATOR (A),"20,076.00",FISCAL YEAR 2015,"","","","HIBBS, CYNTHIA"
,CHIEF ADMIN OFCR OF THE HOUSE,2015Q2,PERSONNEL COMPENSATION,"","HIRSCH, PATRICK A",04/01/15,06/30/15,DIR-HOUSE RECORDING STUDIO,"38,529.51",FISCAL YEAR 2015,"","","","HIRSCH, PATRICK A"
,CHIEF ADMIN OFCR OF THE HOUSE,2015Q2,PERSONNEL COMPENSATION,"","HITE,JASON A",04/01/15,05/01/15,CHIEF HUMAN RESOURCES OFFICER,"14,502.06",FISCAL YEAR 2015,"","","","HITE,JASON A"
,CHIEF ADMIN OFCR OF THE HOUSE,2015Q2,PERSONNEL COMPENSATION,"","HITE,JASON A",05/01/15,05/01/15,CHIEF HUMAN RESOURCES OFFICER (OTHER COMPENSATION),"13,566.44",FISCAL YEAR 2015,"","","","HITE,JASON A"
,CHIEF ADMIN OFCR OF THE HOUSE,2015Q2,PERSONNEL COMPENSATION,"","HOBBS, DENINE",04/01/15,06/30/15,SPECIAL ASSISTANT,"25,548.00",FISCAL YEAR 2015,"","","","HOBBS, DENINE"
,CHIEF ADMIN OFCR OF THE HOUSE,2015Q2,PERSONNEL COMPENSATION,"","HODGES, JOHN E",04/01/15,04/01/15,"MANAGER, SALES & CUSTOMER SVC",280.84,FISCAL YEAR 2015,"","","","HODGES, JOHN E"
,CHIEF ADMIN OFCR OF THE HOUSE,2015Q2,PERSONNEL COMPENSATION,"","HODGES, JOHN E",04/02/15,06/30/15,DIR. OFFICE SUPPLY & GIFT SHOP,"27,164.52",FISCAL YEAR 2015,"","","","HODGES, JOHN E"
,CHIEF ADMIN OFCR OF THE HOUSE,2015Q2,PERSONNEL COMPENSATION,"","HOKHOLD, MARK D",04/01/15,06/30/15,SYSTEMS ENGINEER,"25,548.00",FISCAL YEAR 2015,"","","","HOKHOLD, MARK D"
,CHIEF ADMIN OFCR OF THE HOUSE,2015Q2,PERSONNEL COMPENSATION,"","HOLAU,GEORGE",04/01/15,06/30/15,FINANCIAL COUNSELOR,"21,092.49",FISCAL YEAR 2015,"","","","HOLAU,GEORGE"
,CHIEF ADMIN OFCR OF THE HOUSE,2015Q2,PERSONNEL COMPENSATION,"","HOLLAND, GREGORY",04/01/15,06/30/15,LOGISTICS & DIST SPEC (A),"11,799.99",FISCAL YEAR 2015,"","","","HOLLAND, GREGORY"
,CHIEF ADMIN OFCR OF THE HOUSE,2015Q2,PERSONNEL COMPENSATION,"","HOLLEY, STEVEN M",02/01/15,06/30/15,LOGISTICS & DIST SPEC (A),"10,951.84",FISCAL YEAR 2015,"","","","HOLLEY, STEVEN M"
,CHIEF ADMIN OFCR OF THE HOUSE,2015Q2,PERSONNEL COMPENSATION,"","HOLT,CLINTON F",04/01/15,06/30/15,BROADCAST ENGINEER/PROD SPEC,"20,276.76",FISCAL YEAR 2015,"","","","HOLT,CLINTON F"
,CHIEF ADMIN OFCR OF THE HOUSE,2015Q2,PERSONNEL COMPENSATION,"","HORNBURG, RICHARD A",04/01/15,06/30/15,BUSINESS PROC APPLIC SPEC,"29,025.99",FISCAL YEAR 2015,"","","","HORNBURG, RICHARD A"
,CHIEF ADMIN OFCR OF THE HOUSE,2015Q2,PERSONNEL COMPENSATION,"","HOWARD, ANTHONY T",04/01/15,06/30/15,JOURNEYMAN TEXTILE SPEC,"16,836.99",FISCAL YEAR 2015,"","","","HOWARD, ANTHONY T"
,CHIEF ADMIN OFCR OF THE HOUSE,2015Q2,PERSONNEL COMPENSATION,"","HOWARD, ANTHONY T",03/01/15,03/31/15,JOURNEYMAN TEXTILE SPEC (OVERTIME),720.42,FISCAL YEAR 2015,"","","","HOWARD, ANTHONY T"
,CHIEF ADMIN OFCR OF THE HOUSE,2015Q2,PERSONNEL COMPENSATION,"","HUGHES, MICHAEL A",04/01/15,06/30/15,FINANCIAL COUNSELOR,"16,148.25",FISCAL YEAR 2015,"","","","HUGHES, MICHAEL A"
,CHIEF ADMIN OFCR OF THE HOUSE,2015Q2,PERSONNEL COMPENSATION,"","HUNT,DANIEL",04/01/15,06/30/15,SR NETWORK COMM SPECIALIST,"31,582.50",FISCAL YEAR 2015,"","","","HUNT,DANIEL"
,CHIEF ADMIN OFCR OF THE HOUSE,2015Q2,PERSONNEL COMPENSATION,"","HUNTER, STEVE",04/01/15,06/30/15,ACCOUNT MANAGEMENT COUNSELOR,"14,075.76",FISCAL YEAR 2015,"","","","HUNTER, STEVE"
,CHIEF ADMIN OFCR OF THE HOUSE,2015Q2,PERSONNEL COMPENSATION,"","HUNTER, STEVE",03/01/15,05/31/15,ACCOUNT MANAGEMENT COUNSELOR (OVERTIME),"5,244.52",FISCAL YEAR 2015,"","","","HUNTER, STEVE"
,CHIEF ADMIN OFCR OF THE HOUSE,2015Q2,PERSONNEL COMPENSATION,"","HURDA, JACQUELINE L",04/01/15,06/30/15,FINANCIAL COUNSELOR (A),"20,294.76",FISCAL YEAR 2015,"","","","HURDA, JACQUELINE L"
,CHIEF ADMIN OFCR OF THE HOUSE,2015Q2,PERSONNEL COMPENSATION,"","ILOG,ANGELA M",04/01/15,06/30/15,CONTRACTS SUPPORT ADMIN,"14,772.75",FISCAL YEAR 2015,"","","","ILOG,ANGELA M"
,CHIEF ADMIN OFCR OF THE HOUSE,2015Q2,PERSONNEL COMPENSATION,"","JACKSON, REGGIE",04/01/15,06/30/15,SR TECHNICAL SUPPORT REP (A),"24,180.99",FISCAL YEAR 2015,"","","","JACKSON, REGGIE"
,CHIEF ADMIN OFCR OF THE HOUSE,2015Q2,PERSONNEL COMPENSATION,"","JACKSON, WANDA J",04/01/15,06/30/15,TELECOMMUNICATIONS BRANCH MNGR,"27,469.74",FISCAL YEAR 2015,"","","","JACKSON, WANDA J"
,CHIEF ADMIN OFCR OF THE HOUSE,2015Q2,PERSONNEL COMPENSATION,"","JACOBSON, BRADLEY J",04/01/15,06/30/15,BRANCH MANAGER,"35,241.75",FISCAL YEAR 2015,"","","","JACOBSON, BRADLEY J"
,CHIEF ADMIN OFCR OF THE HOUSE,2015Q2,PERSONNEL COMPENSATION,"","JANIFER, ROLAND S",04/01/15,06/30/15,"SUPERVISOR,LOGIS & DIST (A)","18,487.74",FISCAL YEAR 2015,"","","","JANIFER, ROLAND S"
,CHIEF ADMIN OFCR OF THE HOUSE,2015Q2,PERSONNEL COMPENSATION,"","JECKO,BRITTANY E",04/01/15,06/30/15,HUMAN RESOURCES GENERALIST,"16,504.50",FISCAL YEAR 2015,"","","","JECKO,BRITTANY E"
,CHIEF ADMIN OFCR OF THE HOUSE,2015Q2,PERSONNEL COMPENSATION,"","JEFFERSON,KENYATTA",04/01/15,06/30/15,TECHNICAL SUPPORT REP (A),"19,095.51",FISCAL YEAR 2015,"","","","JEFFERSON,KENYATTA"
,CHIEF ADMIN OFCR OF THE HOUSE,2015Q2,PERSONNEL COMPENSATION,"","JENKINS, JAMES",04/01/15,06/30/15,WORKFLOW COORDINATOR,"19,283.25",FISCAL YEAR 2015,"","","","JENKINS, JAMES"
,CHIEF ADMIN OFCR OF THE HOUSE,2015Q2,PERSONNEL COMPENSATION,"","JENNINGS, ARACELI",04/01/15,06/30/15,FINANCE ASSISTANT,"16,836.99",FISCAL YEAR 2015,"","","","JENNINGS, ARACELI"
,CHIEF ADMIN OFCR OF THE HOUSE,2015Q2,PERSONNEL COMPENSATION,"","JOHANN, DEREK",04/01/15,06/30/15,SR RECEIVING & WAREHOUSIN SPEC,"16,836.99",FISCAL YEAR 2015,"","","","JOHANN, DEREK"
,CHIEF ADMIN OFCR OF THE HOUSE,2015Q2,PERSONNEL COMPENSATION,"","JOHNSON, ANDRE",04/01/15,06/30/15,APPLICATION DBA SPECIALIST,"23,460.75",FISCAL YEAR 2015,"","","","JOHNSON, ANDRE"
,CHIEF ADMIN OFCR OF THE HOUSE,2015Q2,PERSONNEL COMPENSATION,"","JOHNSON, DWAYNE",04/01/15,06/30/15,RETAIL INVENTORY SPECIALIST,"14,761.50",FISCAL YEAR 2015,"","","","JOHNSON, DWAYNE"
,CHIEF ADMIN OFCR OF THE HOUSE,2015Q2,PERSONNEL COMPENSATION,"","JOHNSON, ERIC C",01/01/15,06/30/15,LOGISTICS & DIST SPEC (A),"11,914.66",FISCAL YEAR 2015,"","","","JOHNSON, ERIC C"
,CHIEF ADMIN OFCR OF THE HOUSE,2015Q2,PERSONNEL COMPENSATION,"","JOHNSON, MARGARET K",04/01/15,06/30/15,SR MODULAR FURNITURE SPEC,"18,092.25",FISCAL YEAR 2015,"","","","JOHNSON, MARGARET K"
,CHIEF ADMIN OFCR OF THE HOUSE,2015Q2,PERSONNEL COMPENSATION,"","JOHNSON, MARGARET K",05/01/15,05/31/15,SR MODULAR FURNITURE SPEC. (OVERTIME),278.34,FISCAL YEAR 2015,"","","","JOHNSON, MARGARET K"
,CHIEF ADMIN OFCR OF THE HOUSE,2015Q2,PERSONNEL COMPENSATION,"","JOHNSON, REGINALD",04/01/15,06/30/15,FINANCIAL COUNSELOR (A),"17,826.09",FISCAL YEAR 2015,"","","","JOHNSON, REGINALD"
,CHIEF ADMIN OFCR OF THE HOUSE,2015Q2,PERSONNEL COMPENSATION,"","JOHNSON, ROBERT C",04/01/15,06/30/15,SENIOR SYSTEMS ENGINEER,"30,581.25",FISCAL YEAR 2015,"","","","JOHNSON, ROBERT C"
,CHIEF ADMIN OFCR OF THE HOUSE,2015Q2,PERSONNEL COMPENSATION,"","JOHNSON,KWASI Z",04/01/15,06/30/15,LOGISTICS & DIST SPEC (A),"9,441.24",FISCAL YEAR 2015,"","","","JOHNSON,KWASI Z"
,CHIEF ADMIN OFCR OF THE HOUSE,2015Q2,PERSONNEL COMPENSATION,"","JONES III,CLARENCE",04/01/15,06/30/15,SENIOR NETWORK TECHNICIAN,"19,894.50",FISCAL YEAR 2015,"","","","JONES III,CLARENCE"
,CHIEF ADMIN OFCR OF THE HOUSE,2015Q2,PERSONNEL COMPENSATION,"","JONES JR, CHARLES J",04/01/15,06/30/15,NETWORK COMM SPECIALIST,"24,636.00",FISCAL YEAR 2015,"","","","JONES JR, CHARLES J"
,CHIEF ADMIN OFCR OF THE HOUSE,2015Q2,PERSONNEL COMPENSATION,"","JONES, DEBORAH D",04/01/15,06/30/15,FINANCIAL COUNSELOR,"21,493.50",FISCAL YEAR 2015,"","","","JONES, DEBORAH D"
,CHIEF ADMIN OFCR OF THE HOUSE,2015Q2,PERSONNEL COMPENSATION,"","JONES, MITCHAEL",04/01/15,06/30/15,TECHNICAL TRAINER,"20,560.92",FISCAL YEAR 2015,"","","","JONES, MITCHAEL"
,CHIEF ADMIN OFCR OF THE HOUSE,2015Q2,PERSONNEL COMPENSATION,"","JONES, STEPHEN E",04/01/15,06/30/15,SENIOR SYSTEMS ENGINEER,"31,016.25",FISCAL YEAR 2015,"","","","JONES, STEPHEN E"
,CHIEF ADMIN OFCR OF THE HOUSE,2015Q2,PERSONNEL COMPENSATION,"","JONES, WESLEY D",04/01/15,06/30/15,LOGISTICS & DIST SPEC (A),"11,500.50",FISCAL YEAR 2015,"","","","JONES, WESLEY D"
,CHIEF ADMIN OFCR OF THE HOUSE,2015Q2,PERSONNEL COMPENSATION,"","JONES,RODNEY B",04/01/15,06/30/15,SR TECHNICAL SUPPORT REP,"22,098.51",FISCAL YEAR 2015,"","","","JONES,RODNEY B"
,CHIEF ADMIN OFCR OF THE HOUSE,2015Q2,PERSONNEL COMPENSATION,"","JONES,YOLANDA S",04/01/15,06/30/15,PAYROLL & BENEFITS GENERALIST,"16,902.24",FISCAL YEAR 2015,"","","","JONES,YOLANDA S"
,CHIEF ADMIN OFCR OF THE HOUSE,2015Q2,PERSONNEL COMPENSATION,"","JORDAN, YONG O",04/01/15,06/30/15,SR TECH SOLUTIONS ENGINEER,"25,089.99",FISCAL YEAR 2015,"","","","JORDAN, YONG O"
,CHIEF ADMIN OFCR OF THE HOUSE,2015Q2,PERSONNEL COMPENSATION,"","JORDAN,CHRISTOPHER",04/01/15,06/30/15,DIRECTOR BUSINESS CONTINUITY,"40,594.26",FISCAL YEAR 2015,"","","","JORDAN,CHRISTOPHER"
,CHIEF ADMIN OFCR OF THE HOUSE,2015Q2,PERSONNEL COMPENSATION,"","JOYCE, ERIC",04/01/15,06/30/15,SUPERVISOR,"29,025.99",FISCAL YEAR 2015,"","","","JOYCE, ERIC"
,CHIEF ADMIN OFCR OF THE HOUSE,2015Q2,PERSONNEL COMPENSATION,"","JUDGE, NANCY",04/01/15,06/30/15,CUSTOMER SOLUTIONS REP,"15,802.50",FISCAL YEAR 2015,"","","","JUDGE, NANCY"
,CHIEF ADMIN OFCR OF THE HOUSE,2015Q2,PERSONNEL COMPENSATION,"","KAHLER, KENT",04/01/15,06/30/15,SYSTEMS ENGINEER,"26,004.00",FISCAL YEAR 2015,"","","","KAHLER, KENT"
,CHIEF ADMIN OFCR OF THE HOUSE,2015Q2,PERSONNEL COMPENSATION,"","KAPLAN,LEAH",04/01/15,06/30/15,MEDIA LOGISTICS ASSISTANT,"13,730.49",FISCAL YEAR 2015,"","","","KAPLAN,LEAH"
,CHIEF ADMIN OFCR OF THE HOUSE,2015Q2,PERSONNEL COMPENSATION,"","KEANE, MICHAEL T",04/01/15,06/30/15,"MANAGER, WORKFLOW MANAGEMENT","23,723.49",FISCAL YEAR 2015,"","","","KEANE, MICHAEL T"
,CHIEF ADMIN OFCR OF THE HOUSE,2015Q2,PERSONNEL COMPENSATION,"","KELLAHER,ANTHONY",04/01/15,06/30/15,MEDIA LOGISTICS COORDINATOR,"19,095.51",FISCAL YEAR 2015,"","","","KELLAHER,ANTHONY"
,CHIEF ADMIN OFCR OF THE HOUSE,2015Q2,PERSONNEL COMPENSATION,"","KELLEY, KEVIN S",04/01/15,06/30/15,CUSTOMER SOLUTIONS REP,"16,491.99",FISCAL YEAR 2015,"","","","KELLEY, KEVIN S"
,CHIEF ADMIN OFCR OF THE HOUSE,2015Q2,PERSONNEL COMPENSATION,"","KELLEY, MARY M",04/01/15,06/30/15,RESOURCE MANAGER,"30,063.24",FISCAL YEAR 2015,"","","","KELLEY, MARY M"
,CHIEF ADMIN OFCR OF THE HOUSE,2015Q2,PERSONNEL COMPENSATION,"","KELLEY, TARA A",04/01/15,06/30/15,COMMUNICATIONS SPEC (A),"21,493.50",FISCAL YEAR 2015,"","","","KELLEY, TARA A"
,CHIEF ADMIN OFCR OF THE HOUSE,2015Q2,PERSONNEL COMPENSATION,"","KEMP, DAVID S",04/01/15,06/30/15,SENIOR SYSTEMS ENGINEER,"33,840.51",FISCAL YEAR 2015,"","","","KEMP, DAVID S"
,CHIEF ADMIN OFCR OF THE HOUSE,2015Q2,PERSONNEL COMPENSATION,"","KENEALY, PATRICK T",04/01/15,06/30/15,FINANCIAL ANALYST,"35,536.74",FISCAL YEAR 2015,"","","","KENEALY, PATRICK T"
,CHIEF ADMIN OFCR OF THE HOUSE,2015Q2,PERSONNEL COMPENSATION,"","KILSON,FRANKLIN P",04/01/15,06/30/15,NETWORK TECHNICIAN,"22,098.51",FISCAL YEAR 2015,"","","","KILSON,FRANKLIN P"
,CHIEF ADMIN OFCR OF THE HOUSE,2015Q2,PERSONNEL COMPENSATION,"","KIMBALL, MARK E",04/01/15,06/30/15,SR TECHNICAL SUPPORT REP (A),"22,551.24",FISCAL YEAR 2015,"","","","KIMBALL, MARK E"
,CHIEF ADMIN OFCR OF THE HOUSE,2015Q2,PERSONNEL COMPENSATION,"","KING, JOHN A",01/01/15,06/30/15,"SUPERVISOR,LOGISTICS & DIST (A","17,822.03",FISCAL YEAR 2015,"","","","KING, JOHN A"
,CHIEF ADMIN OFCR OF THE HOUSE,2015Q2,PERSONNEL COMPENSATION,"","KLEMP, CAROLINE",04/01/15,06/30/15,DIRECTOR MEMBERS' SERVICES,"35,536.74",FISCAL YEAR 2015,"","","","KLEMP, CAROLINE"
,CHIEF ADMIN OFCR OF THE HOUSE,2015Q2,PERSONNEL COMPENSATION,"","KLUSSENDORF, KATHLEEN M",04/01/15,06/30/15,SPECIAL ASSISTANT,"27,828.75",FISCAL YEAR 2015,"","","","KLUSSENDORF, KATHLEEN M"
,CHIEF ADMIN OFCR OF THE HOUSE,2015Q2,PERSONNEL COMPENSATION,"","KNELL, KATHERINE A",04/01/15,06/30/15,HRIS APPLICATIONS MANAGER,"40,594.26",FISCAL YEAR 2015,"","","","KNELL, KATHERINE A"
,CHIEF ADMIN OFCR OF THE HOUSE,2015Q2,PERSONNEL COMPENSATION,"","KNOERL, THOMAS K",04/01/15,06/30/15,NETWORK COMMUNICATIONS SPEC,"26,914.74",FISCAL YEAR 2015,"","","","KNOERL, THOMAS K"
,CHIEF ADMIN OFCR OF THE HOUSE,2015Q2,PERSONNEL COMPENSATION,"","KONOPATSKI,FRANK",03/01/15,03/17/15,SR COMM SECURITY ANALYST,"-3,624.11",FISCAL YEAR 2015,"","","","KONOPATSKI,FRANK"
,CHIEF ADMIN OFCR OF THE HOUSE,2015Q2,PERSONNEL COMPENSATION,"","KONOPATSKI,FRANK",03/01/15,03/17/15,SR COMM SECURITY ANALYST (OTHER COMPENSATION),"8,363.33",FISCAL YEAR 2015,"","","","KONOPATSKI,FRANK"
,CHIEF ADMIN OFCR OF THE HOUSE,2015Q2,PERSONNEL COMPENSATION,"","KORNACKI, OLGA R",04/01/15,06/30/15,DIRECTOR,"33,464.83",FISCAL YEAR 2015,"","","","KORNACKI, OLGA R"
,CHIEF ADMIN OFCR OF THE HOUSE,2015Q2,PERSONNEL COMPENSATION,"","KOZTOSKI, DOUGLAS W",04/01/15,06/30/15,BROADCAST PRODUCTION TECHNICIA,"19,894.50",FISCAL YEAR 2015,"","","","KOZTOSKI, DOUGLAS W"
,CHIEF ADMIN OFCR OF THE HOUSE,2015Q2,PERSONNEL COMPENSATION,"","KOZTOSKI, DOUGLAS W",03/01/15,05/31/15,BROADCAST PRODUCTION TECHNICIA (OVERTIME),421.22,FISCAL YEAR 2015,"","","","KOZTOSKI, DOUGLAS W"
,CHIEF ADMIN OFCR OF THE HOUSE,2015Q2,PERSONNEL COMPENSATION,"","KRAFT,NORMAN R",04/01/15,06/30/15,INTERNET SYSTEMS SPECIALIST,"23,723.49",FISCAL YEAR 2015,"","","","KRAFT,NORMAN R"
,CHIEF ADMIN OFCR OF THE HOUSE,2015Q2,PERSONNEL COMPENSATION,"","KRALY,ELIZABETH A",04/01/15,06/30/15,"MANAGER, CAO HUMAN RESOURCES","27,469.74",FISCAL YEAR 2015,"","","","KRALY,ELIZABETH A"
,CHIEF ADMIN OFCR OF THE HOUSE,2015Q2,PERSONNEL COMPENSATION,"","KRAMER, STEPHEN",04/01/15,06/30/15,NETWORK COMMUNICATIONS SPEC,"26,004.00",FISCAL YEAR 2015,"","","","KRAMER, STEPHEN"
,CHIEF ADMIN OFCR OF THE HOUSE,2015Q2,PERSONNEL COMPENSATION,"","KREMKAU,REBECCA K",04/01/15,06/30/15,FINANCIAL ANALYST,"21,793.67",FISCAL YEAR 2015,"","","","KREMKAU,REBECCA K"
,CHIEF ADMIN OFCR OF THE HOUSE,2015Q2,PERSONNEL COMPENSATION,"","KUPER, KAREN",04/01/15,06/30/15,SPECIAL ASSISTANT/OPER SUPERVI,"25,548.00",FISCAL YEAR 2015,"","","","KUPER, KAREN"
,CHIEF ADMIN OFCR OF THE HOUSE,2015Q2,PERSONNEL COMPENSATION,"","LAGASSE, DANIEL",04/01/15,06/30/15,BCDR OPERATIONS MANAGER,"33,372.24",FISCAL YEAR 2015,"","","","LAGASSE, DANIEL"
,CHIEF ADMIN OFCR OF THE HOUSE,2015Q2,PERSONNEL COMPENSATION,"","LAU,DAVID E",04/01/15,06/30/15,INFORMATION SECURITY MANAGER,"33,993.00",FISCAL YEAR 2015,"","","","LAU,DAVID E"
,CHIEF ADMIN OFCR OF THE HOUSE,2015Q2,PERSONNEL COMPENSATION,"","LEBER, DENNIS",04/01/15,06/30/15,SR NETWORK SYSTEMS ENGINEER,"28,508.01",FISCAL YEAR 2015,"","","","LEBER, DENNIS"
,CHIEF ADMIN OFCR OF THE HOUSE,2015Q2,PERSONNEL COMPENSATION,"","LEE, DARNELL A",04/01/15,06/30/15,ASSISTANT CAO,"38,135.49",FISCAL YEAR 2015,"","","","LEE, DARNELL A"
,CHIEF ADMIN OFCR OF THE HOUSE,2015Q2,PERSONNEL COMPENSATION,"","LEIBACH,WILLIAM",04/01/15,04/30/15,"DIRECTOR, INTERNAL CONTROLS","4,616.07",FISCAL YEAR 2015,"","","","LEIBACH,WILLIAM"
,CHIEF ADMIN OFCR OF THE HOUSE,2015Q2,PERSONNEL COMPENSATION,"","LEIBACH,WILLIAM",04/01/15,04/30/15,"DIRECTOR, INTERNAL CONTROLS (OTHER COMPENSATION)","1,538.69",FISCAL YEAR 2015,"","","","LEIBACH,WILLIAM"
,CHIEF ADMIN OFCR OF THE HOUSE,2015Q2,PERSONNEL COMPENSATION,"","LEIBY,FREDERICK",04/01/15,06/30/15,CONTRACT ADMINISTRATOR,"18,697.26",FISCAL YEAR 2015,"","","","LEIBY,FREDERICK"
,CHIEF ADMIN OFCR OF THE HOUSE,2015Q2,PERSONNEL COMPENSATION,"","LEON-CAMPOS, CARLOS",04/01/15,06/30/15,MANAGER,"25,548.00",FISCAL YEAR 2015,"","","","LEON-CAMPOS, CARLOS"
,CHIEF ADMIN OFCR OF THE HOUSE,2015Q2,PERSONNEL COMPENSATION,"","LEONARD,DENISE D",04/01/15,06/30/15,WORKFLOW COORDINATOR,"16,504.50",FISCAL YEAR 2015,"","","","LEONARD,DENISE D"
,CHIEF ADMIN OFCR OF THE HOUSE,2015Q2,PERSONNEL COMPENSATION,"","LESNEWSKY,ERIK",04/01/15,06/30/15,ADA AIDE,"6,501.57",FISCAL YEAR 2015,"","","","LESNEWSKY,ERIK"
,CHIEF ADMIN OFCR OF THE HOUSE,2015Q2,PERSONNEL COMPENSATION,"","LESNEWSKY,ERIK",03/01/15,05/31/15,ADA AIDE (OVERTIME),"6,007.39",FISCAL YEAR 2015,"","","","LESNEWSKY,ERIK"
,CHIEF ADMIN OFCR OF THE HOUSE,2015Q2,PERSONNEL COMPENSATION,"","LEVENGOOD, DAVID S",04/01/15,06/30/15,TECHNICAL TRAINER,"19,095.51",FISCAL YEAR 2015,"","","","LEVENGOOD, DAVID S"
,CHIEF ADMIN OFCR OF THE HOUSE,2015Q2,PERSONNEL COMPENSATION,"","LEWIS, JOHN T",04/01/15,06/30/15,DIRECTOR FURNISHINGS,"29,025.99",FISCAL YEAR 2015,"","","","LEWIS, JOHN T"
,CHIEF ADMIN OFCR OF THE HOUSE,2015Q2,PERSONNEL COMPENSATION,"","LEWIS, ROBERT M",04/01/15,06/30/15,PHOTOGRAPHIC LAB TECHNICIAN,"18,207.24",FISCAL YEAR 2015,"","","","LEWIS, ROBERT M"
,CHIEF ADMIN OFCR OF THE HOUSE,2015Q2,PERSONNEL COMPENSATION,"","LIM,CHAU T",04/01/15,06/30/15,SENIOR ACCOUNTANT (A),"25,548.00",FISCAL YEAR 2015,"","","","LIM,CHAU T"
,CHIEF ADMIN OFCR OF THE HOUSE,2015Q2,PERSONNEL COMPENSATION,"","LINVILLE, RAY A",04/01/15,06/30/15,SENIOR SYSTEMS ENGINEER,"30,581.25",FISCAL YEAR 2015,"","","","LINVILLE, RAY A"
,CHIEF ADMIN OFCR OF THE HOUSE,2015Q2,PERSONNEL COMPENSATION,"","LITTLE, ANDREAL P",04/01/15,06/30/15,ADMINISTRATIVE SPECIALIST,"16,491.99",FISCAL YEAR 2015,"","","","LITTLE, ANDREAL P"
,CHIEF ADMIN OFCR OF THE HOUSE,2015Q2,PERSONNEL COMPENSATION,"","LITTLE, HAROLD M",04/01/15,06/30/15,SR TECH SOLUTIONS ENGINEER,"25,089.99",FISCAL YEAR 2015,"","","","LITTLE, HAROLD M"
,CHIEF ADMIN OFCR OF THE HOUSE,2015Q2,PERSONNEL COMPENSATION,"","LOGAN, KATHERINE J",04/01/15,06/30/15,DIRECTOR PAYROLL AND BENEFITS,"40,594.26",FISCAL YEAR 2015,"","","","LOGAN, KATHERINE J"
,CHIEF ADMIN OFCR OF THE HOUSE,2015Q2,PERSONNEL COMPENSATION,"","LONG, JOHN P",04/01/15,06/30/15,SR MODULAR FURNITURE SPEC,"26,185.50",FISCAL YEAR 2015,"","","","LONG, JOHN P"
,CHIEF ADMIN OFCR OF THE HOUSE,2015Q2,PERSONNEL COMPENSATION,"","LOVING, ANTHONY",04/01/15,06/30/15,APPLICATION DBA SPECIALIST,"28,508.01",FISCAL YEAR 2015,"","","","LOVING, ANTHONY"
,CHIEF ADMIN OFCR OF THE HOUSE,2015Q2,PERSONNEL COMPENSATION,"","MAAS, JENNIFER A",04/01/15,06/30/15,"MGR, USER EXPERIENCE & DESIGN","27,469.74",FISCAL YEAR 2015,"","","","MAAS, JENNIFER A"
,CHIEF ADMIN OFCR OF THE HOUSE,2015Q2,PERSONNEL COMPENSATION,"","MAGNOTTI IV,LOUIS",04/01/15,06/30/15,AUDIO SPECIALIST,"18,298.50",FISCAL YEAR 2015,"","","","MAGNOTTI IV,LOUIS"
,CHIEF ADMIN OFCR OF THE HOUSE,2015Q2,PERSONNEL COMPENSATION,"","MAGNOTTI IV,LOUIS",03/01/15,05/31/15,AUDIO SPECIALIST (OVERTIME),52.77,FISCAL YEAR 2015,"","","","MAGNOTTI IV,LOUIS"
,CHIEF ADMIN OFCR OF THE HOUSE,2015Q2,PERSONNEL COMPENSATION,"","MAGRUDER, TIMOTHY",04/01/15,06/30/15,JOURNEYMAN FURNITURE SPEC,"16,148.25",FISCAL YEAR 2015,"","","","MAGRUDER, TIMOTHY"
,CHIEF ADMIN OFCR OF THE HOUSE,2015Q2,PERSONNEL COMPENSATION,"","MAGRUDER, TIMOTHY",04/01/15,04/30/15,JOURNEYMAN FURNITURE SPEC. (OVERTIME),372.65,FISCAL YEAR 2015,"","","","MAGRUDER, TIMOTHY"
,CHIEF ADMIN OFCR OF THE HOUSE,2015Q2,PERSONNEL COMPENSATION,"","MAHAR,EDWARD A",04/01/15,06/30/15,"DIR, INFO SYSTEMS SECURITY","39,365.49",FISCAL YEAR 2015,"","","","MAHAR,EDWARD A"
,CHIEF ADMIN OFCR OF THE HOUSE,2015Q2,PERSONNEL COMPENSATION,"","MAIDEN III, LEWIS L",04/01/15,06/30/15,LOGISTICS & DIST SPEC (A),"14,761.50",FISCAL YEAR 2015,"","","","MAIDEN III, LEWIS L"
,CHIEF ADMIN OFCR OF THE HOUSE,2015Q2,PERSONNEL COMPENSATION,"","MALASPINA,KIMBERLY J",04/01/15,06/30/15,JOURNEYMAN TEXTILE SPEC,"17,693.01",FISCAL YEAR 2015,"","","","MALASPINA,KIMBERLY J"
,CHIEF ADMIN OFCR OF THE HOUSE,2015Q2,PERSONNEL COMPENSATION,"","MALLON, MICHAEL P",04/01/15,06/30/15,RESOURCE ANALYST,"23,460.75",FISCAL YEAR 2015,"","","","MALLON, MICHAEL P"
,CHIEF ADMIN OFCR OF THE HOUSE,2015Q2,PERSONNEL COMPENSATION,"","MALLOY, DEON",04/01/15,06/30/15,SR TECHNICAL SUPPORT REP (A),"22,551.24",FISCAL YEAR 2015,"","","","MALLOY, DEON"
,CHIEF ADMIN OFCR OF THE HOUSE,2015Q2,PERSONNEL COMPENSATION,"","MARCUM JR, VINCENT L",04/01/15,06/12/15,JOURNEYMAN TEXTILE SPEC,"15,426.60",FISCAL YEAR 2015,"","","","MARCUM JR, VINCENT L"
,CHIEF ADMIN OFCR OF THE HOUSE,2015Q2,PERSONNEL COMPENSATION,"","MARCUM JR, VINCENT L",06/01/15,06/12/15,JOURNEYMAN TEXTILE SPEC (OTHER COMPENSATION),"6,427.75",FISCAL YEAR 2015,"","","","MARCUM JR, VINCENT L"
,CHIEF ADMIN OFCR OF THE HOUSE,2015Q2,PERSONNEL COMPENSATION,"","MARCUS, RALPH J",04/01/15,06/30/15,TECHNICAL DIRECTOR (A),"25,089.99",FISCAL YEAR 2015,"","","","MARCUS, RALPH J"
,CHIEF ADMIN OFCR OF THE HOUSE,2015Q2,PERSONNEL COMPENSATION,"","MARCUS, RALPH J",03/01/15,05/31/15,TECHNICAL DIRECTOR (A) (OVERTIME),"1,254.48",FISCAL YEAR 2015,"","","","MARCUS, RALPH J"
,CHIEF ADMIN OFCR OF THE HOUSE,2015Q2,PERSONNEL COMPENSATION,"","MARSH, STEVE W",04/01/15,06/30/15,"MANAGER, ACCOUNTING","29,544.99",FISCAL YEAR 2015,"","","","MARSH, STEVE W"
,CHIEF ADMIN OFCR OF THE HOUSE,2015Q2,PERSONNEL COMPENSATION,"","MARTIN, CHRISTOPHER W",04/01/15,06/30/15,JOURNEYMAN FURNITURE SPEC,"20,076.00",FISCAL YEAR 2015,"","","","MARTIN, CHRISTOPHER W"
,CHIEF ADMIN OFCR OF THE HOUSE,2015Q2,PERSONNEL COMPENSATION,"","MARTINEZ, JAIME D",04/01/15,06/30/15,SENIOR SYSTEMS ENGINEER,"29,025.99",FISCAL YEAR 2015,"","","","MARTINEZ, JAIME D"
,CHIEF ADMIN OFCR OF THE HOUSE,2015Q2,PERSONNEL COMPENSATION,"","MARTINS, RICHARD",04/01/15,06/30/15,MANAGER NETWORK CONFIG. MNGMNT,"36,494.49",FISCAL YEAR 2015,"","","","MARTINS, RICHARD"
,CHIEF ADMIN OFCR OF THE HOUSE,2015Q2,PERSONNEL COMPENSATION,"","MASHETER JR, FREDERICK J",04/01/15,06/30/15,PURCHASING AGENT,"15,792.00",FISCAL YEAR 2015,"","","","MASHETER JR, FREDERICK J"
,CHIEF ADMIN OFCR OF THE HOUSE,2015Q2,PERSONNEL COMPENSATION,"","MASON, TRON",04/01/15,06/30/15,SR NETWORK COMM SPEC (A),"28,508.01",FISCAL YEAR 2015,"","","","MASON, TRON"
,CHIEF ADMIN OFCR OF THE HOUSE,2015Q2,PERSONNEL COMPENSATION,"","MASSENGALE, DOUG",04/01/15,06/30/15,CHIEF ENGINEER,"31,582.50",FISCAL YEAR 2015,"","","","MASSENGALE, DOUG"
,CHIEF ADMIN OFCR OF THE HOUSE,2015Q2,PERSONNEL COMPENSATION,"","MATADIAL, GLORIA V",04/01/15,06/30/15,SUPERVISOR,"29,544.99",FISCAL YEAR 2015,"","","","MATADIAL, GLORIA V"
,CHIEF ADMIN OFCR OF THE HOUSE,2015Q2,PERSONNEL COMPENSATION,"","MATHIS,MARC R",04/01/15,06/30/15,NETWORK TECHNICIAN,"20,294.76",FISCAL YEAR 2015,"","","","MATHIS,MARC R"
,CHIEF ADMIN OFCR OF THE HOUSE,2015Q2,PERSONNEL COMPENSATION,"","MATTHEWS,LEVI S",04/01/15,05/31/15,SUPERVISOR,"15,511.50",FISCAL YEAR 2015,"","","","MATTHEWS,LEVI S"
,CHIEF ADMIN OFCR OF THE HOUSE,2015Q2,PERSONNEL COMPENSATION,"","MATTHEWS,LEVI S",06/01/15,06/30/15,MANAGER,"7,907.83",FISCAL YEAR 2015,"","","","MATTHEWS,LEVI S"
,CHIEF ADMIN OFCR OF THE HOUSE,2015Q2,PERSONNEL COMPENSATION,"","MAULDIN,EVAN B",04/01/15,06/30/15,FINANCIAL ANALYST,"20,294.76",FISCAL YEAR 2015,"","","","MAULDIN,EVAN B"
,CHIEF ADMIN OFCR OF THE HOUSE,2015Q2,PERSONNEL COMPENSATION,"","MAZZULLO, MICHAEL A",04/01/15,06/30/15,RECEIVING/WAREHOUSE SPEC,"11,500.50",FISCAL YEAR 2015,"","","","MAZZULLO, MICHAEL A"
,CHIEF ADMIN OFCR OF THE HOUSE,2015Q2,PERSONNEL COMPENSATION,"","MCBRIDE-CHAMBERS, LISBETH",04/01/15,06/30/15,SR EA COUNSELOR,"32,654.25",FISCAL YEAR 2015,"","","","MCBRIDE-CHAMBERS, LISBETH"
,CHIEF ADMIN OFCR OF THE HOUSE,2015Q2,PERSONNEL COMPENSATION,"","MCCAULEY, ERICA C",04/01/15,06/30/15,FINANCIAL COUNSELOR,"16,902.24",FISCAL YEAR 2015,"","","","MCCAULEY, ERICA C"
,CHIEF ADMIN OFCR OF THE HOUSE,2015Q2,PERSONNEL COMPENSATION,"","MCCUE, BRIAN M",04/01/15,06/30/15,FINANCIAL ANALYST,"19,095.51",FISCAL YEAR 2015,"","","","MCCUE, BRIAN M"
,CHIEF ADMIN OFCR OF THE HOUSE,2015Q2,PERSONNEL COMPENSATION,"","MCDONALD, BRADLEY A",04/01/15,06/30/15,"MANAGER, ENTERPRISE APPL SUPP","36,494.49",FISCAL YEAR 2015,"","","","MCDONALD, BRADLEY A"
,CHIEF ADMIN OFCR OF THE HOUSE,2015Q2,PERSONNEL COMPENSATION,"","MCFADDEN, SAINT JUAN",04/01/15,06/30/15,SR PAYROLL & BENS GENERALIST,"21,189.00",FISCAL YEAR 2015,"","","","MCFADDEN, SAINT JUAN"
,CHIEF ADMIN OFCR OF THE HOUSE,2015Q2,PERSONNEL COMPENSATION,"","MCFADDEN,MIRANDA J",04/01/15,04/15/15,FINANCIAL ANALYST,"3,758.54",FISCAL YEAR 2015,"","","","MCFADDEN,MIRANDA J"
,CHIEF ADMIN OFCR OF THE HOUSE,2015Q2,PERSONNEL COMPENSATION,"","MCFADDEN,MIRANDA J",04/16/15,06/30/15,BUDGET ANALYST,"19,769.58",FISCAL YEAR 2015,"","","","MCFADDEN,MIRANDA J"
,CHIEF ADMIN OFCR OF THE HOUSE,2015Q2,PERSONNEL COMPENSATION,"","MCGARRY, THOMAS K",04/01/15,06/30/15,JOURNEYMAN FURNITURE SPEC,"20,076.00",FISCAL YEAR 2015,"","","","MCGARRY, THOMAS K"
,CHIEF ADMIN OFCR OF THE HOUSE,2015Q2,PERSONNEL COMPENSATION,"","MCGARRY, THOMAS K",03/01/15,04/30/15,JOURNEYMAN FURNITURE SPEC. (OVERTIME),"2,316.44",FISCAL YEAR 2015,"","","","MCGARRY, THOMAS K"
,CHIEF ADMIN OFCR OF THE HOUSE,2015Q2,PERSONNEL COMPENSATION,"","MCKITTRICK, DAVID E",04/01/15,06/30/15,SR BUSINESS PROCESS APPL SPEC,"38,369.49",FISCAL YEAR 2015,"","","","MCKITTRICK, DAVID E"
,CHIEF ADMIN OFCR OF THE HOUSE,2015Q2,PERSONNEL COMPENSATION,"","MEISTER, DARLENE T",04/01/15,06/30/15,"DIR, DIVERSITY & ORG CHGE MGT","34,620.51",FISCAL YEAR 2015,"","","","MEISTER, DARLENE T"
,CHIEF ADMIN OFCR OF THE HOUSE,2015Q2,PERSONNEL COMPENSATION,"","MELVIN, MICHAEL C",04/01/15,06/30/15,TECHNICAL SUPPORT REP,"20,560.92",FISCAL YEAR 2015,"","","","MELVIN, MICHAEL C"
,CHIEF ADMIN OFCR OF THE HOUSE,2015Q2,PERSONNEL COMPENSATION,"","MENDOZA,LYDIA",04/01/15,06/30/15,PAYROLL & BENEFITS GENERALIST,"17,298.00",FISCAL YEAR 2015,"","","","MENDOZA,LYDIA"
,CHIEF ADMIN OFCR OF THE HOUSE,2015Q2,PERSONNEL COMPENSATION,"","MENDOZA,LYDIA",03/01/15,04/30/15,PAYROLL & BENEFITS GENERALIST (OVERTIME),547.20,FISCAL YEAR 2015,"","","","MENDOZA,LYDIA"
,CHIEF ADMIN OFCR OF THE HOUSE,2015Q2,PERSONNEL COMPENSATION,"","MEREDITH, DWAINE",04/01/15,06/30/15,LOGISTICS & DIST SPEC (A),"10,599.99",FISCAL YEAR 2015,"","","","MEREDITH, DWAINE"
,CHIEF ADMIN OFCR OF THE HOUSE,2015Q2,PERSONNEL COMPENSATION,"","MEREDITH, DWAINE",04/01/15,04/30/15,LOGISTICS & DIST SPEC (A) (OVERTIME),244.61,FISCAL YEAR 2015,"","","","MEREDITH, DWAINE"
,CHIEF ADMIN OFCR OF THE HOUSE,2015Q2,PERSONNEL COMPENSATION,"","METZLER,FRANMARIE",03/01/15,05/19/15,PHOTOGRAPHER/LAB TECH (TEMP),"10,661.52",FISCAL YEAR 2015,"","","","METZLER,FRANMARIE"
,CHIEF ADMIN OFCR OF THE HOUSE,2015Q2,PERSONNEL COMPENSATION,"","MICHALEK, WILLIAM",04/01/15,06/30/15,BILLING ADMINISTRATOR,"17,521.26",FISCAL YEAR 2015,"","","","MICHALEK, WILLIAM"
,CHIEF ADMIN OFCR OF THE HOUSE,2015Q2,PERSONNEL COMPENSATION,"","MILASI, FRANCESCO",04/01/15,06/30/15,SENIOR NETWORK TECHNICIAN (A),"24,368.49",FISCAL YEAR 2015,"","","","MILASI, FRANCESCO"
,CHIEF ADMIN OFCR OF THE HOUSE,2015Q2,PERSONNEL COMPENSATION,"","MILBUT, ANTHONY P",04/01/15,06/30/15,MOBILE COMMUNICATIONS SPECIAL,"26,433.75",FISCAL YEAR 2015,"","","","MILBUT, ANTHONY P"
,CHIEF ADMIN OFCR OF THE HOUSE,2015Q2,PERSONNEL COMPENSATION,"","MILLER JR, LOUIS",04/01/15,06/30/15,PURCHASING AGENT,"14,190.09",FISCAL YEAR 2015,"","","","MILLER JR, LOUIS"
,CHIEF ADMIN OFCR OF THE HOUSE,2015Q2,PERSONNEL COMPENSATION,"","MILLER, KEITH E",03/01/15,06/30/15,BROADCAST PRODUCTION TECHNICIA,"22,493.04",FISCAL YEAR 2015,"","","","MILLER, KEITH E"
,CHIEF ADMIN OFCR OF THE HOUSE,2015Q2,PERSONNEL COMPENSATION,"","MILLER,MICHAEL A",04/01/15,06/30/15,"MANAGER, PROD AND SUPPORT","27,469.74",FISCAL YEAR 2015,"","","","MILLER,MICHAEL A"
,CHIEF ADMIN OFCR OF THE HOUSE,2015Q2,PERSONNEL COMPENSATION,"","MILLER,SHAWN",04/01/15,06/30/15,GRAPHICS & DESKTOP PUBL SPEC,"17,298.00",FISCAL YEAR 2015,"","","","MILLER,SHAWN"
,CHIEF ADMIN OFCR OF THE HOUSE,2015Q2,PERSONNEL COMPENSATION,"","MILLER-LAMILL, ELOISE R",04/01/15,06/30/15,BROADCAST PRODUCTION TECHNICIA,"23,460.75",FISCAL YEAR 2015,"","","","MILLER-LAMILL, ELOISE R"
,CHIEF ADMIN OFCR OF THE HOUSE,2015Q2,PERSONNEL COMPENSATION,"","MILLER-LAMILL, ELOISE R",03/01/15,05/31/15,BROADCAST PRODUCTION TECHNICIA (OVERTIME),"2,210.70",FISCAL YEAR 2015,"","","","MILLER-LAMILL, ELOISE R"
,CHIEF ADMIN OFCR OF THE HOUSE,2015Q2,PERSONNEL COMPENSATION,"","MINOR,LESLIE",04/01/15,06/30/15,FINANCIAL COUNSELOR,"17,034.16",FISCAL YEAR 2015,"","","","MINOR,LESLIE"
,CHIEF ADMIN OFCR OF THE HOUSE,2015Q2,PERSONNEL COMPENSATION,"","MINTON, DONNA",04/01/15,06/30/15,BUSINESS PROC APPLIC SPEC,"29,025.99",FISCAL YEAR 2015,"","","","MINTON, DONNA"
,CHIEF ADMIN OFCR OF THE HOUSE,2015Q2,PERSONNEL COMPENSATION,"","MINTURN, JOHN J",04/01/15,06/30/15,INFO SYSTEMS SECURITY MNGR,"33,993.00",FISCAL YEAR 2015,"","","","MINTURN, JOHN J"
,CHIEF ADMIN OFCR OF THE HOUSE,2015Q2,PERSONNEL COMPENSATION,"","MITTAL, RAHUL V",04/01/15,06/30/15,RISK AND INTERNAL CTRL ANALYST,"24,180.99",FISCAL YEAR 2015,"","","","MITTAL, RAHUL V"
,CHIEF ADMIN OFCR OF THE HOUSE,2015Q2,PERSONNEL COMPENSATION,"","MODICA, MICHAEL",04/01/15,06/30/15,CUSTOMER RELATIONS MANAGER,"32,712.00",FISCAL YEAR 2015,"","","","MODICA, MICHAEL"
,CHIEF ADMIN OFCR OF THE HOUSE,2015Q2,PERSONNEL COMPENSATION,"","MOE, NELSON P",04/01/15,04/30/15,CHIEF INFORMATION OFFICER,"14,034.25",FISCAL YEAR 2015,"","","","MOE, NELSON P"
,CHIEF ADMIN OFCR OF THE HOUSE,2015Q2,PERSONNEL COMPENSATION,"","MOLL, ANDREW C",04/01/15,06/30/15,SR INTERNET SYSTEMS SPECIALIST,"34,407.51",FISCAL YEAR 2015,"","","","MOLL, ANDREW C"
,CHIEF ADMIN OFCR OF THE HOUSE,2015Q2,PERSONNEL COMPENSATION,"","MONAHAN, TIMOTHY J",04/01/15,04/30/15,"DIRECTOR, CAO IO OPERATIONS","8,638.08",FISCAL YEAR 2015,"","","","MONAHAN, TIMOTHY J"
,CHIEF ADMIN OFCR OF THE HOUSE,2015Q2,PERSONNEL COMPENSATION,"","MONAHAN, TIMOTHY J",05/01/15,06/30/15,ASSIST CHIEF LOGISTICS OFFICER,"19,549.66",FISCAL YEAR 2015,"","","","MONAHAN, TIMOTHY J"
,CHIEF ADMIN OFCR OF THE HOUSE,2015Q2,PERSONNEL COMPENSATION,"","MOORE II,GARY L",04/01/15,06/30/15,SENIOR NETWORK TECHNICIAN,"18,870.00",FISCAL YEAR 2015,"","","","MOORE II,GARY L"
,CHIEF ADMIN OFCR OF THE HOUSE,2015Q2,PERSONNEL COMPENSATION,"","MOORE, EDWARDA P",04/01/15,06/30/15,FINANCIAL COUNSELOR,"20,694.00",FISCAL YEAR 2015,"","","","MOORE, EDWARDA P"
,CHIEF ADMIN OFCR OF THE HOUSE,2015Q2,PERSONNEL COMPENSATION,"","MORA,CARLOS",04/01/15,04/30/15,BROADCAST ENGINEER/PROD SPEC,"4,174.16",FISCAL YEAR 2015,"","","","MORA,CARLOS"
,CHIEF ADMIN OFCR OF THE HOUSE,2015Q2,PERSONNEL COMPENSATION,"","MORA,CARLOS",03/01/15,03/31/15,BROADCAST ENGINEER/PROD SPEC. (OVERTIME),106.24,FISCAL YEAR 2015,"","","","MORA,CARLOS"
,CHIEF ADMIN OFCR OF THE HOUSE,2015Q2,PERSONNEL COMPENSATION,"","MORA,CARLOS",04/01/15,04/17/15,BROADCAST ENGINEER/PROD SPEC. (OTHER COMPENSATION),"7,350.82",FISCAL YEAR 2015,"","","","MORA,CARLOS"
,CHIEF ADMIN OFCR OF THE HOUSE,2015Q2,PERSONNEL COMPENSATION,"","MORETTI, SCOTT A",04/01/15,06/30/15,NETWORK TECHNICIAN,"23,004.24",FISCAL YEAR 2015,"","","","MORETTI, SCOTT A"
,CHIEF ADMIN OFCR OF THE HOUSE,2015Q2,PERSONNEL COMPENSATION,"","MORGAN,CODY R",04/01/15,06/30/15,JOURNEYMAN TEXTILE SPEC,"16,902.24",FISCAL YEAR 2015,"","","","MORGAN,CODY R"
,CHIEF ADMIN OFCR OF THE HOUSE,2015Q2,PERSONNEL COMPENSATION,"","MORRIS,NICOLE C",04/01/15,06/30/15,IT GOVERNANCE COMPLIANCE MANAG,"33,993.00",FISCAL YEAR 2015,"","","","MORRIS,NICOLE C"
,CHIEF ADMIN OFCR OF THE HOUSE,2015Q2,PERSONNEL COMPENSATION,"","MOSES,ELIAS",04/01/15,06/30/15,APPLICATION SYSTEMS ADMINISTRA,"31,016.25",FISCAL YEAR 2015,"","","","MOSES,ELIAS"
,CHIEF ADMIN OFCR OF THE HOUSE,2015Q2,PERSONNEL COMPENSATION,"","MOSLEY, JOSEPH",04/01/15,06/30/15,TECHNICAL DIRECTOR (A),"24,636.00",FISCAL YEAR 2015,"","","","MOSLEY, JOSEPH"
,CHIEF ADMIN OFCR OF THE HOUSE,2015Q2,PERSONNEL COMPENSATION,"","MOSLEY, JOSEPH",03/01/15,05/31/15,TECHNICAL DIRECTOR (A) (OVERTIME),"2,416.20",FISCAL YEAR 2015,"","","","MOSLEY, JOSEPH"
,CHIEF ADMIN OFCR OF THE HOUSE,2015Q2,PERSONNEL COMPENSATION,"","MOXLEY,STEVEN",04/01/15,04/30/15,SR. SECURITY ENGINEER,"7,907.83",FISCAL YEAR 2015,"","","","MOXLEY,STEVEN"
,CHIEF ADMIN OFCR OF THE HOUSE,2015Q2,PERSONNEL COMPENSATION,"","MOXLEY,STEVEN",05/01/15,06/30/15,SR APPLICATION SECURITY ANALYS,"18,658.84",FISCAL YEAR 2015,"","","","MOXLEY,STEVEN"
,CHIEF ADMIN OFCR OF THE HOUSE,2015Q2,PERSONNEL COMPENSATION,"","MOYA, DAVID L",04/01/15,06/30/15,SYSTEMS ENGINEER,"25,548.00",FISCAL YEAR 2015,"","","","MOYA, DAVID L"
,CHIEF ADMIN OFCR OF THE HOUSE,2015Q2,PERSONNEL COMPENSATION,"","MUJAHID,WILLIAM L",04/01/15,06/30/15,NETWORK TECHNICIAN,"22,098.51",FISCAL YEAR 2015,"","","","MUJAHID,WILLIAM L"
,CHIEF ADMIN OFCR OF THE HOUSE,2015Q2,PERSONNEL COMPENSATION,"","MUNCY, JAMES P",04/01/15,06/30/15,SENIOR NETWORK TECHNICIAN,"23,916.00",FISCAL YEAR 2015,"","","","MUNCY, JAMES P"
,CHIEF ADMIN OFCR OF THE HOUSE,2015Q2,PERSONNEL COMPENSATION,"","MURPHY,LORI O",04/01/15,06/30/15,PAYROLL & BENEFITS GENERALIST,"16,504.50",FISCAL YEAR 2015,"","","","MURPHY,LORI O"
,CHIEF ADMIN OFCR OF THE HOUSE,2015Q2,PERSONNEL COMPENSATION,"","MURPHY,ROBERT",04/01/15,06/30/15,"MANAGER, FINANCIAL SYSTEMS","40,870.26",FISCAL YEAR 2015,"","","","MURPHY,ROBERT"
,CHIEF ADMIN OFCR OF THE HOUSE,2015Q2,PERSONNEL COMPENSATION,"","MYERS, ANTHONY C",04/01/15,06/30/15,NETWORK COMM SPECIALIST,"22,551.24",FISCAL YEAR 2015,"","","","MYERS, ANTHONY C"
,CHIEF ADMIN OFCR OF THE HOUSE,2015Q2,PERSONNEL COMPENSATION,"","NADEAU,JOHN J",04/01/15,06/30/15,DIRECTOR FINANCIAL COUNSELING,"34,620.51",FISCAL YEAR 2015,"","","","NADEAU,JOHN J"
,CHIEF ADMIN OFCR OF THE HOUSE,2015Q2,PERSONNEL COMPENSATION,"","NASH, MICHAEL R",04/01/15,06/30/15,BRANCH MANAGER,"35,867.25",FISCAL YEAR 2015,"","","","NASH, MICHAEL R"
,CHIEF ADMIN OFCR OF THE HOUSE,2015Q2,PERSONNEL COMPENSATION,"","NASR,HAITHAM M",04/01/15,06/30/15,SR BROADCAST ENG/PROD SPECLST,"22,809.75",FISCAL YEAR 2015,"","","","NASR,HAITHAM M"
